Organisation Code,Organisation Label,Effective Date,Organisational Unit,Service Division Label,Category Internal Name,Purpose,Detailed Expenditure Code,Payment Date,Transaction Number,Irrecoverable VAT Amount,Amount,Capital Or Revenue,Benificiary Name,Procurement Card
Http://opendatacommunities.org/id/metropolitan-district-council/leeds,Leeds City Council,31/10/2016,Environment & Housing,Leeds Building Services,Supplies and Services,Operational Materials,205,10/10/2016,1610-00001,0.00,178.92,R,A & A Electrical Distributors Ltd,No
Http://opendatacommunities.org/id/metropolitan-district-council/leeds,Leeds City Council,31/10/2016,Environment & Housing,Leeds Building Services,Supplies and Services,Operational Materials,205,10/10/2016,1610-00002,0.00,42.20,R,A & A Electrical Distributors Ltd,No
Http://opendatacommunities.org/id/metropolitan-district-council/leeds,Leeds City Council,31/10/2016,Environment & Housing,Leeds Building Services,Supplies and Services,Operational Materials,205,10/10/2016,1610-00003,0.00,178.92,R,A & A Electrical Distributors Ltd,No
Http://opendatacommunities.org/id/metropolitan-district-council/leeds,Leeds City Council,31/10/2016,Environment & Housing,Leeds Building Services,Supplies and Services,Operational Materials,205,10/10/2016,1610-00004,0.00,28.00,R,A & A Electrical Distributors Ltd,No
Http://opendatacommunities.org/id/metropolitan-district-council/leeds,Leeds City Council,31/10/2016,Environment & Housing,Leeds Building Services,Supplies and Services,Operational Materials,205,14/10/2016,1610-00005,0.00,391.72,R,A & A Electrical Distributors Ltd,No
Http://opendatacommunities.org/id/metropolitan-district-council/leeds,Leeds City Council,31/10/2016,Environment & Housing,Leeds Building Services,Supplies and Services,Operational Materials,205,24/10/2016,1610-00006,0.00,89.15,R,A & A Electrical Distributors Ltd,No
Http://opendatacommunities.org/id/metropolitan-district-council/leeds,Leeds City Council,31/10/2016,Environment & Housing,Leeds Building Services,Supplies and Services,Operational Materials,205,24/10/2016,1610-00007,0.00,105.90,R,A & A Electrical Distributors Ltd,No
Http://opendatacommunities.org/id/metropolitan-district-council/leeds,Leeds City Council,31/10/2016,Environment & Housing,Leeds Building Services,Supplies and Services,Operational Materials,205,03/10/2016,1610-00008,0.00,11.71,R,A Andrews & Sons (Marbles & Tiles),No
Http://opendatacommunities.org/id/metropolitan-district-council/leeds,Leeds City Council,31/10/2016,Environment & Housing,Leeds Building Services,Supplies and Services,Operational Materials,205,17/10/2016,1610-00009,0.00,10.64,R,A Andrews & Sons (Marbles & Tiles),No
Http://opendatacommunities.org/id/metropolitan-district-council/leeds,Leeds City Council,31/10/2016,Environment & Housing,Leeds Building Services,Supplies and Services,Operational Materials,205,17/10/2016,1610-00010,0.00,5.09,R,A Andrews & Sons (Marbles & Tiles),No
Http://opendatacommunities.org/id/metropolitan-district-council/leeds,Leeds City Council,31/10/2016,City Development,Libraries  Arts & Heritage,Supplies and Services,Bought In Professional Services,277,07/10/2016,1610-00011,0.00,120.00,R,A B Jones,No
Http://opendatacommunities.org/id/metropolitan-district-council/leeds,Leeds City Council,31/10/2016,City Development,Libraries  Arts & Heritage,Supplies and Services,Bought In Professional Services,277,07/10/2016,1610-00012,0.00,120.00,R,A B Jones,No
Http://opendatacommunities.org/id/metropolitan-district-council/leeds,Leeds City Council,31/10/2016,City Development,Libraries  Arts & Heritage,Supplies and Services,Other Hired And Contracted Services,265,07/10/2016,1610-00013,0.00,312.80,R,A C Entertainment Technologies Ltd,No
Http://opendatacommunities.org/id/metropolitan-district-council/leeds,Leeds City Council,31/10/2016,Environment & Housing,Parks and Countryside,Supplies and Services,Bought In Professional Services,277,28/10/2016,1610-00014,0.00,2073.25,R,REDACTED COMMERCIAL CONFIDENTIALITY,No
Http://opendatacommunities.org/id/metropolitan-district-council/leeds,Leeds City Council,31/10/2016,Childrens Services,Learning Skills & Universal,Third Party Payments,Services Rendered By Voluntary Sector,505,28/10/2016,1610-00015,0.00,673.33,R,A E Speight,No
Http://opendatacommunities.org/id/metropolitan-district-council/leeds,Leeds City Council,31/10/2016,Civic Enterprise Leeds,Commercial Services  ,Supplies and Services,Food & Drink,231,16/09/2016,1610-00016,0.00,1165.61,R,A F Blakemore & Son Ltd,Yes
Http://opendatacommunities.org/id/metropolitan-district-council/leeds,Leeds City Council,31/10/2016,Childrens Services,Learning Skills & Universal,Third Party Payments,Services Rendered By Other Organisations,511,28/10/2016,1610-00017,0.00,24.33,R,A Foley,No
Http://opendatacommunities.org/id/metropolitan-district-council/leeds,Leeds City Council,31/10/2016,Environment & Housing,Housing Leeds Service,Capital,Other Costs,7,06/10/2016,1610-00018,0.00,350.00,C,REDACTED PERSONAL DATA,No
Http://opendatacommunities.org/id/metropolitan-district-council/leeds,Leeds City Council,31/10/2016,Childrens Services,Learning Skills & Universal,Third Party Payments,Services Rendered By Other Organisations,511,28/10/2016,1610-00019,0.00,10.67,R,A Hayes,No
Http://opendatacommunities.org/id/metropolitan-district-council/leeds,Leeds City Council,31/10/2016,Environment & Housing,Leeds Building Services,Supplies and Services,Operational Materials,205,03/10/2016,1610-00020,0.00,215.12,R,A J H  Pump Supply & Repair Ltd,No
Http://opendatacommunities.org/id/metropolitan-district-council/leeds,Leeds City Council,31/10/2016,Environment & Housing,Leeds Building Services,Supplies and Services,Operational Materials,205,03/10/2016,1610-00021,0.00,217.62,R,A J H  Pump Supply & Repair Ltd,No
Http://opendatacommunities.org/id/metropolitan-district-council/leeds,Leeds City Council,31/10/2016,Environment & Housing,Leeds Building Services,Supplies and Services,Operational Materials,205,03/10/2016,1610-00022,0.00,12.76,R,A J H  Pump Supply & Repair Ltd,No
Http://opendatacommunities.org/id/metropolitan-district-council/leeds,Leeds City Council,31/10/2016,Environment & Housing,Leeds Building Services,Supplies and Services,Operational Materials,205,03/10/2016,1610-00023,0.00,370.31,R,A J H  Pump Supply & Repair Ltd,No
Http://opendatacommunities.org/id/metropolitan-district-council/leeds,Leeds City Council,31/10/2016,Environment & Housing,Leeds Building Services,Supplies and Services,Operational Materials,205,07/10/2016,1610-00024,0.00,193.40,R,A J H  Pump Supply & Repair Ltd,No
Http://opendatacommunities.org/id/metropolitan-district-council/leeds,Leeds City Council,31/10/2016,Environment & Housing,Leeds Building Services,Supplies and Services,Operational Materials,205,07/10/2016,1610-00025,0.00,400.57,R,A J H  Pump Supply & Repair Ltd,No
Http://opendatacommunities.org/id/metropolitan-district-council/leeds,Leeds City Council,31/10/2016,Environment & Housing,Leeds Building Services,Supplies and Services,Operational Materials,205,07/10/2016,1610-00026,0.00,47.95,R,A J H  Pump Supply & Repair Ltd,No
Http://opendatacommunities.org/id/metropolitan-district-council/leeds,Leeds City Council,31/10/2016,Environment & Housing,Leeds Building Services,Supplies and Services,Operational Materials,205,10/10/2016,1610-00027,0.00,163.00,R,A J H  Pump Supply & Repair Ltd,No
Http://opendatacommunities.org/id/metropolitan-district-council/leeds,Leeds City Council,31/10/2016,Environment & Housing,Leeds Building Services,Supplies and Services,Operational Materials,205,10/10/2016,1610-00028,0.00,105.00,R,A J H  Pump Supply & Repair Ltd,No
Http://opendatacommunities.org/id/metropolitan-district-council/leeds,Leeds City Council,31/10/2016,Environment & Housing,Leeds Building Services,Supplies and Services,Operational Materials,205,10/10/2016,1610-00029,0.00,300.00,R,A J H  Pump Supply & Repair Ltd,No
Http://opendatacommunities.org/id/metropolitan-district-council/leeds,Leeds City Council,31/10/2016,Environment & Housing,Leeds Building Services,Supplies and Services,Operational Materials,205,10/10/2016,1610-00030,0.00,245.00,R,A J H  Pump Supply & Repair Ltd,No
Http://opendatacommunities.org/id/metropolitan-district-council/leeds,Leeds City Council,31/10/2016,Environment & Housing,Leeds Building Services,Supplies and Services,Operational Materials,205,10/10/2016,1610-00031,0.00,15.80,R,A J H  Pump Supply & Repair Ltd,No
Http://opendatacommunities.org/id/metropolitan-district-council/leeds,Leeds City Council,31/10/2016,Environment & Housing,Leeds Building Services,Supplies and Services,Operational Materials,205,10/10/2016,1610-00032,0.00,470.00,R,A J H  Pump Supply & Repair Ltd,No
Http://opendatacommunities.org/id/metropolitan-district-council/leeds,Leeds City Council,31/10/2016,Environment & Housing,Leeds Building Services,Supplies and Services,Operational Materials,205,10/10/2016,1610-00033,0.00,118.70,R,A J H  Pump Supply & Repair Ltd,No
Http://opendatacommunities.org/id/metropolitan-district-council/leeds,Leeds City Council,31/10/2016,Environment & Housing,Leeds Building Services,Supplies and Services,Operational Materials,205,10/10/2016,1610-00034,0.00,623.85,R,A J H  Pump Supply & Repair Ltd,No
Http://opendatacommunities.org/id/metropolitan-district-council/leeds,Leeds City Council,31/10/2016,Environment & Housing,Leeds Building Services,Supplies and Services,Operational Materials,205,10/10/2016,1610-00035,0.00,140.00,R,A J H  Pump Supply & Repair Ltd,No
Http://opendatacommunities.org/id/metropolitan-district-council/leeds,Leeds City Council,31/10/2016,Environment & Housing,Leeds Building Services,Supplies and Services,Operational Materials,205,10/10/2016,1610-00036,0.00,1367.00,R,A J H  Pump Supply & Repair Ltd,No
Http://opendatacommunities.org/id/metropolitan-district-council/leeds,Leeds City Council,31/10/2016,Environment & Housing,Leeds Building Services,Supplies and Services,Operational Materials,205,13/10/2016,1610-00037,0.00,695.00,R,A J H  Pump Supply & Repair Ltd,No
Http://opendatacommunities.org/id/metropolitan-district-council/leeds,Leeds City Council,31/10/2016,Environment & Housing,Leeds Building Services,Supplies and Services,Operational Materials,205,13/10/2016,1610-00038,0.00,64.00,R,A J H  Pump Supply & Repair Ltd,No
Http://opendatacommunities.org/id/metropolitan-district-council/leeds,Leeds City Council,31/10/2016,Environment & Housing,Leeds Building Services,Supplies and Services,Operational Materials,205,13/10/2016,1610-00039,0.00,18.95,R,A J H  Pump Supply & Repair Ltd,No
Http://opendatacommunities.org/id/metropolitan-district-council/leeds,Leeds City Council,31/10/2016,Environment & Housing,Leeds Building Services,Supplies and Services,Operational Materials,205,13/10/2016,1610-00040,0.00,300.00,R,A J H  Pump Supply & Repair Ltd,No
Http://opendatacommunities.org/id/metropolitan-district-council/leeds,Leeds City Council,31/10/2016,Environment & Housing,Leeds Building Services,Supplies and Services,Operational Materials,205,13/10/2016,1610-00041,0.00,75.00,R,A J H  Pump Supply & Repair Ltd,No
Http://opendatacommunities.org/id/metropolitan-district-council/leeds,Leeds City Council,31/10/2016,Environment & Housing,Leeds Building Services,Supplies and Services,Operational Materials,205,24/10/2016,1610-00042,0.00,698.00,R,A J H  Pump Supply & Repair Ltd,No
Http://opendatacommunities.org/id/metropolitan-district-council/leeds,Leeds City Council,31/10/2016,Environment & Housing,Leeds Building Services,Supplies and Services,Operational Materials,205,26/10/2016,1610-00043,0.00,8.25,R,A J H  Pump Supply & Repair Ltd,No
Http://opendatacommunities.org/id/metropolitan-district-council/leeds,Leeds City Council,31/10/2016,Environment & Housing,Leeds Building Services,Supplies and Services,Operational Materials,205,26/10/2016,1610-00044,0.00,47.05,R,A J H  Pump Supply & Repair Ltd,No
Http://opendatacommunities.org/id/metropolitan-district-council/leeds,Leeds City Council,31/10/2016,Environment & Housing,Leeds Building Services,Supplies and Services,Operational Materials,205,26/10/2016,1610-00045,0.00,8.95,R,A J H  Pump Supply & Repair Ltd,No
Http://opendatacommunities.org/id/metropolitan-district-council/leeds,Leeds City Council,31/10/2016,Environment & Housing,Leeds Building Services,Supplies and Services,Operational Materials,205,26/10/2016,1610-00046,0.00,859.60,R,A J H  Pump Supply & Repair Ltd,No
Http://opendatacommunities.org/id/metropolitan-district-council/leeds,Leeds City Council,31/10/2016,Environment & Housing,Leeds Building Services,Supplies and Services,Operational Materials,205,26/10/2016,1610-00047,0.00,134.23,R,A J H  Pump Supply & Repair Ltd,No
Http://opendatacommunities.org/id/metropolitan-district-council/leeds,Leeds City Council,31/10/2016,Environment & Housing,Leeds Building Services,Supplies and Services,Operational Materials,205,26/10/2016,1610-00048,0.00,135.65,R,A J H  Pump Supply & Repair Ltd,No
Http://opendatacommunities.org/id/metropolitan-district-council/leeds,Leeds City Council,31/10/2016,Environment & Housing,Leeds Building Services,Supplies and Services,Operational Materials,205,26/10/2016,1610-00049,0.00,75.95,R,A J H  Pump Supply & Repair Ltd,No
Http://opendatacommunities.org/id/metropolitan-district-council/leeds,Leeds City Council,31/10/2016,Environment & Housing,Leeds Building Services,Supplies and Services,Operational Materials,205,26/10/2016,1610-00050,0.00,138.58,R,A J H  Pump Supply & Repair Ltd,No
Http://opendatacommunities.org/id/metropolitan-district-council/leeds,Leeds City Council,31/10/2016,Environment & Housing,Leeds Building Services,Supplies and Services,Operational Materials,205,26/10/2016,1610-00051,0.00,17.50,R,A J H  Pump Supply & Repair Ltd,No
Http://opendatacommunities.org/id/metropolitan-district-council/leeds,Leeds City Council,31/10/2016,Environment & Housing,Leeds Building Services,Supplies and Services,Operational Materials,205,26/10/2016,1610-00052,0.00,53.80,R,A J H  Pump Supply & Repair Ltd,No
Http://opendatacommunities.org/id/metropolitan-district-council/leeds,Leeds City Council,31/10/2016,Environment & Housing,Leeds Building Services,Supplies and Services,Operational Materials,205,26/10/2016,1610-00053,0.00,51.00,R,A J H  Pump Supply & Repair Ltd,No
Http://opendatacommunities.org/id/metropolitan-district-council/leeds,Leeds City Council,31/10/2016,Environment & Housing,Leeds Building Services,Supplies and Services,Operational Materials,205,26/10/2016,1610-00054,0.00,15.90,R,A J H  Pump Supply & Repair Ltd,No
Http://opendatacommunities.org/id/metropolitan-district-council/leeds,Leeds City Council,31/10/2016,Environment & Housing,Leeds Building Services,Supplies and Services,Operational Materials,205,26/10/2016,1610-00055,0.00,356.59,R,A J H  Pump Supply & Repair Ltd,No
Http://opendatacommunities.org/id/metropolitan-district-council/leeds,Leeds City Council,31/10/2016,Environment & Housing,Leeds Building Services,Supplies and Services,Operational Materials,205,26/10/2016,1610-00056,0.00,140.10,R,A J H  Pump Supply & Repair Ltd,No
Http://opendatacommunities.org/id/metropolitan-district-council/leeds,Leeds City Council,31/10/2016,Environment & Housing,Leeds Building Services,Supplies and Services,Operational Materials,205,26/10/2016,1610-00057,0.00,20.71,R,A J H  Pump Supply & Repair Ltd,No
Http://opendatacommunities.org/id/metropolitan-district-council/leeds,Leeds City Council,31/10/2016,Environment & Housing,Leeds Building Services,Supplies and Services,Operational Materials,205,26/10/2016,1610-00058,0.00,39.50,R,A J H  Pump Supply & Repair Ltd,No
Http://opendatacommunities.org/id/metropolitan-district-council/leeds,Leeds City Council,31/10/2016,Environment & Housing,Leeds Building Services,Supplies and Services,Operational Materials,205,26/10/2016,1610-00059,0.00,121.51,R,A J H  Pump Supply & Repair Ltd,No
Http://opendatacommunities.org/id/metropolitan-district-council/leeds,Leeds City Council,31/10/2016,Environment & Housing,Leeds Building Services,Supplies and Services,Operational Materials,205,26/10/2016,1610-00060,0.00,62.94,R,A J H  Pump Supply & Repair Ltd,No
Http://opendatacommunities.org/id/metropolitan-district-council/leeds,Leeds City Council,31/10/2016,Environment & Housing,Leeds Building Services,Supplies and Services,Operational Materials,205,26/10/2016,1610-00061,0.00,25.17,R,A J H  Pump Supply & Repair Ltd,No
Http://opendatacommunities.org/id/metropolitan-district-council/leeds,Leeds City Council,31/10/2016,Environment & Housing,Leeds Building Services,Supplies and Services,Operational Materials,205,26/10/2016,1610-00062,0.00,50.88,R,A J H  Pump Supply & Repair Ltd,No
Http://opendatacommunities.org/id/metropolitan-district-council/leeds,Leeds City Council,31/10/2016,Environment & Housing,Leeds Building Services,Supplies and Services,Operational Materials,205,26/10/2016,1610-00063,0.00,9.20,R,A J H  Pump Supply & Repair Ltd,No
Http://opendatacommunities.org/id/metropolitan-district-council/leeds,Leeds City Council,31/10/2016,Environment & Housing,Leeds Building Services,Supplies and Services,Operational Materials,205,26/10/2016,1610-00064,0.00,31.80,R,A J H  Pump Supply & Repair Ltd,No
Http://opendatacommunities.org/id/metropolitan-district-council/leeds,Leeds City Council,31/10/2016,Environment & Housing,Leeds Building Services,Supplies and Services,Operational Materials,205,26/10/2016,1610-00065,0.00,86.21,R,A J H  Pump Supply & Repair Ltd,No
Http://opendatacommunities.org/id/metropolitan-district-council/leeds,Leeds City Council,31/10/2016,Environment & Housing,Leeds Building Services,Supplies and Services,Operational Materials,205,26/10/2016,1610-00066,0.00,9.50,R,A J H  Pump Supply & Repair Ltd,No
Http://opendatacommunities.org/id/metropolitan-district-council/leeds,Leeds City Council,31/10/2016,Environment & Housing,Leeds Building Services,Supplies and Services,Operational Materials,205,26/10/2016,1610-00067,0.00,49.50,R,A J H  Pump Supply & Repair Ltd,No
Http://opendatacommunities.org/id/metropolitan-district-council/leeds,Leeds City Council,31/10/2016,Environment & Housing,Leeds Building Services,Supplies and Services,Operational Materials,205,26/10/2016,1610-00068,0.00,37.31,R,A J H  Pump Supply & Repair Ltd,No
Http://opendatacommunities.org/id/metropolitan-district-council/leeds,Leeds City Council,31/10/2016,Environment & Housing,Leeds Building Services,Supplies and Services,Operational Materials,205,26/10/2016,1610-00069,0.00,172.24,R,A J H  Pump Supply & Repair Ltd,No
Http://opendatacommunities.org/id/metropolitan-district-council/leeds,Leeds City Council,31/10/2016,Environment & Housing,Leeds Building Services,Supplies and Services,Operational Materials,205,26/10/2016,1610-00070,0.00,223.80,R,A J H  Pump Supply & Repair Ltd,No
Http://opendatacommunities.org/id/metropolitan-district-council/leeds,Leeds City Council,31/10/2016,Environment & Housing,Leeds Building Services,Supplies and Services,Operational Materials,205,26/10/2016,1610-00071,0.00,32.24,R,A J H  Pump Supply & Repair Ltd,No
Http://opendatacommunities.org/id/metropolitan-district-council/leeds,Leeds City Council,31/10/2016,Environment & Housing,Leeds Building Services,Supplies and Services,Operational Materials,205,26/10/2016,1610-00072,0.00,55.00,R,A J H  Pump Supply & Repair Ltd,No
Http://opendatacommunities.org/id/metropolitan-district-council/leeds,Leeds City Council,31/10/2016,Environment & Housing,Leeds Building Services,Supplies and Services,Operational Materials,205,26/10/2016,1610-00073,0.00,24.00,R,A J H  Pump Supply & Repair Ltd,No
Http://opendatacommunities.org/id/metropolitan-district-council/leeds,Leeds City Council,31/10/2016,Environment & Housing,Leeds Building Services,Supplies and Services,Operational Materials,205,26/10/2016,1610-00074,0.00,16.12,R,A J H  Pump Supply & Repair Ltd,No
Http://opendatacommunities.org/id/metropolitan-district-council/leeds,Leeds City Council,31/10/2016,Environment & Housing,Leeds Building Services,Supplies and Services,Other Hired And Contracted Services,265,28/10/2016,1610-00075,0.00,180.00,R,A J H  Pump Supply & Repair Ltd,No
Http://opendatacommunities.org/id/metropolitan-district-council/leeds,Leeds City Council,31/10/2016,City Development,Libraries  Arts & Heritage,Supplies and Services,Resaleable Materials,204,14/10/2016,1610-00076,0.00,57.51,R,A J Promotions,No
Http://opendatacommunities.org/id/metropolitan-district-council/leeds,Leeds City Council,31/10/2016,Environment & Housing,Parks and Countryside,Supplies and Services,Resaleable Materials,204,26/10/2016,1610-00077,0.00,210.00,R,A J Promotions,No
Http://opendatacommunities.org/id/metropolitan-district-council/leeds,Leeds City Council,31/10/2016,Environment & Housing,Parks and Countryside,Supplies and Services,Resaleable Materials,204,26/10/2016,1610-00078,0.00,667.93,R,A J Promotions,No
Http://opendatacommunities.org/id/metropolitan-district-council/leeds,Leeds City Council,31/10/2016,Environment & Housing,Parks and Countryside,Supplies and Services,Resaleable Materials,204,26/10/2016,1610-00079,0.00,155.00,R,A J Promotions,No
Http://opendatacommunities.org/id/metropolitan-district-council/leeds,Leeds City Council,31/10/2016,Childrens Services,Learning Skills & Universal,Third Party Payments,Services Rendered By Other Organisations,511,28/10/2016,1610-00080,0.00,24.67,R,A K Walsh,No
Http://opendatacommunities.org/id/metropolitan-district-council/leeds,Leeds City Council,31/10/2016,Environment & Housing,Housing Leeds Service,Capital,Other Costs,7,13/10/2016,1610-00081,0.00,360.00,C,REDACTED PERSONAL DATA,No
Http://opendatacommunities.org/id/metropolitan-district-council/leeds,Leeds City Council,31/10/2016,Environment & Housing,Housing Leeds Service,Capital,Other Costs,7,20/10/2016,1610-00082,0.00,310.00,C,REDACTED PERSONAL DATA,No
Http://opendatacommunities.org/id/metropolitan-district-council/leeds,Leeds City Council,31/10/2016,Childrens Services,Learning Skills & Universal,Third Party Payments,Services Rendered By Other Organisations,511,21/10/2016,1610-00083,0.00,180.00,R,A Little Something Extra Ltd,No
Http://opendatacommunities.org/id/metropolitan-district-council/leeds,Leeds City Council,31/10/2016,Childrens Services,Learning Skills & Universal,Third Party Payments,Services Rendered By Other Organisations,511,21/10/2016,1610-00084,0.00,180.00,R,A Little Something Extra Ltd,No
Http://opendatacommunities.org/id/metropolitan-district-council/leeds,Leeds City Council,31/10/2016,Childrens Services,Learning Skills & Universal,Third Party Payments,Services Rendered By Other Organisations,511,21/10/2016,1610-00085,0.00,90.00,R,A Little Something Extra Ltd,No
Http://opendatacommunities.org/id/metropolitan-district-council/leeds,Leeds City Council,31/10/2016,Childrens Services,Learning Skills & Universal,Third Party Payments,Services Rendered By Other Organisations,511,21/10/2016,1610-00086,0.00,180.00,R,A Little Something Extra Ltd,No
Http://opendatacommunities.org/id/metropolitan-district-council/leeds,Leeds City Council,31/10/2016,Childrens Services,Learning Skills & Universal,Third Party Payments,Services Rendered By Other Organisations,511,21/10/2016,1610-00087,0.00,180.00,R,A Little Something Extra Ltd,No
Http://opendatacommunities.org/id/metropolitan-district-council/leeds,Leeds City Council,31/10/2016,Childrens Services,Learning Skills & Universal,Third Party Payments,Services Rendered By Other Organisations,511,21/10/2016,1610-00088,0.00,180.00,R,A Little Something Extra Ltd,No
Http://opendatacommunities.org/id/metropolitan-district-council/leeds,Leeds City Council,31/10/2016,Citizens and Communities,Customer Access,Supplies and Services,Other Hired And Contracted Services,265,03/10/2016,1610-00089,0.00,146.25,R,A Mohammed,No
Http://opendatacommunities.org/id/metropolitan-district-council/leeds,Leeds City Council,31/10/2016,Citizens and Communities,Customer Access,Supplies and Services,Other Hired And Contracted Services,265,03/10/2016,1610-00090,0.00,352.25,R,A Namaki,No
Http://opendatacommunities.org/id/metropolitan-district-council/leeds,Leeds City Council,31/10/2016,City Development,Libraries  Arts & Heritage,Supplies and Services,Bought In Professional Services,277,25/10/2016,1610-00091,0.00,1000.00,R,A P Wood,No
Http://opendatacommunities.org/id/metropolitan-district-council/leeds,Leeds City Council,31/10/2016,City Development,Libraries  Arts & Heritage,Supplies and Services,Books & Audio-Visual Materials,206,20/10/2016,1610-00092,0.00,154.99,R,A S Jhagra,No
Http://opendatacommunities.org/id/metropolitan-district-council/leeds,Leeds City Council,31/10/2016,Citizens and Communities,Customer Access,Supplies and Services,Other Hired And Contracted Services,265,03/10/2016,1610-00093,0.00,115.00,R,A Sheikholeslami,No
Http://opendatacommunities.org/id/metropolitan-district-council/leeds,Leeds City Council,31/10/2016,Citizens and Communities,Customer Access,Supplies and Services,Other Hired And Contracted Services,265,03/10/2016,1610-00094,0.00,82.80,R,A Sheikholeslami,No
Http://opendatacommunities.org/id/metropolitan-district-council/leeds,Leeds City Council,31/10/2016,Civic Enterprise Leeds,Business Support Centre,Supplies and Services,Other Hired And Contracted Services,265,11/10/2016,1610-00095,0.00,46.25,R,A Star Couriers Ltd,No
Http://opendatacommunities.org/id/metropolitan-district-council/leeds,Leeds City Council,31/10/2016,Civic Enterprise Leeds,Business Support Centre,Supplies and Services,Other Hired And Contracted Services,265,20/10/2016,1610-00096,0.00,35.00,R,A Star Couriers Ltd,No
Http://opendatacommunities.org/id/metropolitan-district-council/leeds,Leeds City Council,31/10/2016,Citizens and Communities,Elections  Licensing and Registration,Income,Admissions  Booking Fees & Ticket Sales,933,13/10/2016,1610-00097,0.00,55.00,R,A T M Shawkat Akbar,No
Http://opendatacommunities.org/id/metropolitan-district-council/leeds,Leeds City Council,31/10/2016,Environment & Housing,Waste Management,Supplies and Services,Other Hired And Contracted Services,265,03/10/2016,1610-00098,0.00,736.50,R,A T Nerac Ltd,No
Http://opendatacommunities.org/id/metropolitan-district-council/leeds,Leeds City Council,31/10/2016,Childrens Services,Learning Skills & Universal,Third Party Payments,Services Rendered By Other Organisations,511,28/10/2016,1610-00099,0.00,75.67,R,A Walding,No
Http://opendatacommunities.org/id/metropolitan-district-council/leeds,Leeds City Council,31/10/2016,Strategic Landlord,Housing Management,Supplies and Services,Compensation Claims,200,13/10/2016,1610-00100,0.00,50.00,R,REDACTED PERSONAL DATA,No
Http://opendatacommunities.org/id/metropolitan-district-council/leeds,Leeds City Council,31/10/2016,Environment & Housing,Waste Management,Capital,Furniture And Equipment,5,21/10/2016,1610-00101,0.00,9312.50,C,A&C Weber Uk Ltd,No
Http://opendatacommunities.org/id/metropolitan-district-council/leeds,Leeds City Council,31/10/2016,Environment & Housing,Waste Management,Capital,Furniture And Equipment,5,25/10/2016,1610-00102,0.00,2130.00,C,A&C Weber Uk Ltd,No
Http://opendatacommunities.org/id/metropolitan-district-council/leeds,Leeds City Council,31/10/2016,Childrens Services,Safeguarding Targeted & Specialist  ,Transfer Payments,Leaving Care Allowances,634,13/09/2016,1610-00103,0.00,392.00,R,Aa Driving School,Yes
Http://opendatacommunities.org/id/metropolitan-district-council/leeds,Leeds City Council,31/10/2016,Childrens Services,Safeguarding Targeted & Specialist  ,Supplies and Services,General Amenity For Clients/Residents,285,14/09/2016,1610-00104,0.00,28.00,R,Aa Driving School,Yes
Http://opendatacommunities.org/id/metropolitan-district-council/leeds,Leeds City Council,31/10/2016,Childrens Services,Safeguarding Targeted & Specialist  ,Supplies and Services,General Amenity For Clients/Residents,285,14/09/2016,1610-00105,0.00,25.96,R,Aa Web Sale,Yes
Http://opendatacommunities.org/id/metropolitan-district-council/leeds,Leeds City Council,31/10/2016,Strategic Landlord,Property and Contracts,Employees,Training & Development,70,21/10/2016,1610-00106,0.00,1290.00,R,Aaa Training Co Ltd,No
Http://opendatacommunities.org/id/metropolitan-district-council/leeds,Leeds City Council,31/10/2016,Strategic Landlord,Property and Contracts,Employees,Training & Development,70,21/10/2016,1610-00107,0.00,745.00,R,Aaa Training Co Ltd,No
Http://opendatacommunities.org/id/metropolitan-district-council/leeds,Leeds City Council,31/10/2016,Central & Corporate,Strategy And Improvement  ,Supplies and Services,Subsistence,256,14/09/2016,1610-00108,0.00,978.50,R,Aagrah Restaurant,Yes
Http://opendatacommunities.org/id/metropolitan-district-council/leeds,Leeds City Council,31/10/2016,Citizens and Communities,Elections  Licensing and Registration,Income,Admissions  Booking Fees & Ticket Sales,933,13/10/2016,1610-00109,0.00,30.00,R,REDACTED PERSONAL DATA,No
Http://opendatacommunities.org/id/metropolitan-district-council/leeds,Leeds City Council,31/10/2016,Childrens Services,Learning Skills & Universal  ,Supplies and Services,Operational Materials,205,23/09/2016,1610-00110,0.00,112.10,R,Aardvark Archery,Yes
Http://opendatacommunities.org/id/metropolitan-district-council/leeds,Leeds City Council,31/10/2016,Central & Corporate,Finance,Employees,Training & Development,70,26/10/2016,1610-00111,0.00,90.00,R,Aat,No
Http://opendatacommunities.org/id/metropolitan-district-council/leeds,Leeds City Council,31/10/2016,Central & Corporate,Finance,Transport,Public Transport Expenses,310,14/10/2016,1610-00112,0.00,204.00,R,Ab Cars (Garforth) Ltd,No
Http://opendatacommunities.org/id/metropolitan-district-council/leeds,Leeds City Council,31/10/2016,City Development,Economic Development  ,Supplies and Services,Postages,212,08/09/2016,1610-00113,0.00,14.50,R,Abacus Express,Yes
Http://opendatacommunities.org/id/metropolitan-district-council/leeds,Leeds City Council,31/10/2016,City Development,Planning & Sustainable Development  ,Supplies and Services,Postages,212,23/09/2016,1610-00114,0.00,25.00,R,Abacus Express,Yes
Http://opendatacommunities.org/id/metropolitan-district-council/leeds,Leeds City Council,31/10/2016,Childrens Services,Safeguarding Targeted & Specialist,Support Services,Legal Disbursements,411,07/10/2016,1610-00115,0.00,15.59,R,Abacus Express Limited,No
Http://opendatacommunities.org/id/metropolitan-district-council/leeds,Leeds City Council,31/10/2016,Childrens Services,Safeguarding Targeted & Specialist,Support Services,Legal Disbursements,411,07/10/2016,1610-00116,0.00,15.59,R,Abacus Express Limited,No
Http://opendatacommunities.org/id/metropolitan-district-council/leeds,Leeds City Council,31/10/2016,Childrens Services,Safeguarding Targeted & Specialist,Support Services,Legal Disbursements,411,12/10/2016,1610-00117,0.00,55.50,R,Abacus Express Limited,No
Http://opendatacommunities.org/id/metropolitan-district-council/leeds,Leeds City Council,31/10/2016,Childrens Services,Safeguarding Targeted & Specialist,Support Services,Legal Disbursements,411,12/10/2016,1610-00118,0.00,31.02,R,Abacus Express Limited,No
Http://opendatacommunities.org/id/metropolitan-district-council/leeds,Leeds City Council,31/10/2016,City Development,Planning & Sustainable Development,Supplies and Services,Other Hired And Contracted Services,265,21/10/2016,1610-00119,0.00,15.59,R,Abacus Express Limited,No
Http://opendatacommunities.org/id/metropolitan-district-council/leeds,Leeds City Council,31/10/2016,City Development,Planning & Sustainable Development,Supplies and Services,Other Hired And Contracted Services,265,25/10/2016,1610-00120,0.00,15.59,R,Abacus Express Limited,No
Http://opendatacommunities.org/id/metropolitan-district-council/leeds,Leeds City Council,31/10/2016,Childrens Services,Safeguarding Targeted & Specialist,Support Services,Legal Disbursements,411,27/10/2016,1610-00121,0.00,31.02,R,Abacus Express Limited,No
Http://opendatacommunities.org/id/metropolitan-district-council/leeds,Leeds City Council,31/10/2016,City Development,Economic Development,Capital,Other Costs,7,27/10/2016,1610-00122,0.00,375.00,C,Abacus Express Limited,No
Http://opendatacommunities.org/id/metropolitan-district-council/leeds,Leeds City Council,31/10/2016,Childrens Services,Safeguarding Targeted & Specialist,Support Services,Legal Disbursements,411,27/10/2016,1610-00123,0.00,31.02,R,Abacus Express Limited,No
Http://opendatacommunities.org/id/metropolitan-district-council/leeds,Leeds City Council,31/10/2016,Childrens Services,Safeguarding Targeted & Specialist,Support Services,Legal Disbursements,411,27/10/2016,1610-00124,0.00,15.59,R,Abacus Express Limited,No
Http://opendatacommunities.org/id/metropolitan-district-council/leeds,Leeds City Council,31/10/2016,Adult Social Care,Services For Older People - 65 And Over,Third Party Payments,Nursing Care Dementia,574,19/10/2016,1610-00125,0.00,1556.00,R,Abbendon Nursing Home,No
Http://opendatacommunities.org/id/metropolitan-district-council/leeds,Leeds City Council,31/10/2016,City Development,Libraries  Arts & Heritage  ,Supplies and Services,Food & Drink,231,08/09/2016,1610-00126,0.00,23.12,R,Abbey House Museum Caf,Yes
Http://opendatacommunities.org/id/metropolitan-district-council/leeds,Leeds City Council,31/10/2016,City Development,Libraries  Arts & Heritage  ,Supplies and Services,Food & Drink,231,08/09/2016,1610-00127,0.00,38.33,R,Abbey House Museum Caf,Yes
Http://opendatacommunities.org/id/metropolitan-district-council/leeds,Leeds City Council,31/10/2016,City Development,Libraries  Arts & Heritage  ,Supplies and Services,Food & Drink,231,28/09/2016,1610-00128,0.00,67.62,R,Abbey House Museum Caf,Yes
Http://opendatacommunities.org/id/metropolitan-district-council/leeds,Leeds City Council,31/10/2016,Environment & Housing,Environmental Action (South),Supplies and Services,Bought In Professional Services,277,07/10/2016,1610-00129,0.00,155.81,R,Abbey House Veterinary Hospital,No
Http://opendatacommunities.org/id/metropolitan-district-council/leeds,Leeds City Council,31/10/2016,Environment & Housing,Environmental Action (South),Supplies and Services,Bought In Professional Services,277,07/10/2016,1610-00130,0.00,96.65,R,Abbey House Veterinary Hospital,No
Http://opendatacommunities.org/id/metropolitan-district-council/leeds,Leeds City Council,31/10/2016,Adult Social Care,Services For Older People - 65 And Over,Third Party Payments,Home Care,568,05/10/2016,1610-00131,0.00,1200.38,R,Abbeyfield The Dales Limited,No
Http://opendatacommunities.org/id/metropolitan-district-council/leeds,Leeds City Council,31/10/2016,Childrens Services,Learning Skills & Universal,Third Party Payments,Services Rendered By Other Organisations,511,28/10/2016,1610-00132,0.00,464.33,R,Abc Daycare And Ozone Out Of School,No
Http://opendatacommunities.org/id/metropolitan-district-council/leeds,Leeds City Council,31/10/2016,Childrens Services,Learning Skills & Universal,Third Party Payments,Services Rendered By Other Organisations,511,28/10/2016,1610-00133,0.00,1019.00,R,Abc Nursery At Lufc,No
Http://opendatacommunities.org/id/metropolitan-district-council/leeds,Leeds City Council,31/10/2016,Childrens Services,Learning Skills & Universal,Third Party Payments,Services Rendered By Other Organisations,511,28/10/2016,1610-00134,0.00,253.00,R,Abc@D'S Childcare Services,No
Http://opendatacommunities.org/id/metropolitan-district-council/leeds,Leeds City Council,31/10/2016,Citizens and Communities,Elections  Licensing and Registration,Income,Admissions  Booking Fees & Ticket Sales,933,06/10/2016,1610-00135,0.00,70.00,R,REDACTED PERSONAL DATA,No
Http://opendatacommunities.org/id/metropolitan-district-council/leeds,Leeds City Council,31/10/2016,Citizens and Communities,Customer Access,Supplies and Services,Other Hired And Contracted Services,265,03/10/2016,1610-00136,0.00,22.50,R,Abdul Wadood Kazizadha,No
Http://opendatacommunities.org/id/metropolitan-district-council/leeds,Leeds City Council,31/10/2016,Childrens Services,Safeguarding Targeted & Specialist,Transfer Payments,Leaving Care Allowances,634,27/10/2016,1610-00137,0.00,50.00,R,REDACTED PERSONAL DATA,No
Http://opendatacommunities.org/id/metropolitan-district-council/leeds,Leeds City Council,31/10/2016,Adult Social Care,Services For Older People - 65 And Over,Third Party Payments,Nursing Home,570,19/10/2016,1610-00138,0.00,29597.64,R,Aberford Hall,No
Http://opendatacommunities.org/id/metropolitan-district-council/leeds,Leeds City Council,31/10/2016,Adult Social Care,Services For Older People - 65 And Over,Third Party Payments,Nursing Care Dementia,574,19/10/2016,1610-00139,0.00,1501.20,R,Aberford Hall,No
Http://opendatacommunities.org/id/metropolitan-district-council/leeds,Leeds City Council,31/10/2016,Adult Social Care,Services For Older People - 65 And Over,Third Party Payments,Residential,580,19/10/2016,1610-00140,0.00,6635.96,R,Aberford Hall,No
Http://opendatacommunities.org/id/metropolitan-district-council/leeds,Leeds City Council,31/10/2016,Environment & Housing,Waste Management,Supplies and Services,Publication And Promotion,267,12/10/2016,1610-00141,0.00,11500.00,R,Abf Pictures Limited,No
Http://opendatacommunities.org/id/metropolitan-district-council/leeds,Leeds City Council,31/10/2016,Environment & Housing,Leeds Building Services,Supplies and Services,Operational Materials,205,10/10/2016,1610-00142,0.00,225.00,R,Abi Garage Doors Ltd,No
Http://opendatacommunities.org/id/metropolitan-district-council/leeds,Leeds City Council,31/10/2016,Childrens Services,Safeguarding Targeted & Specialist,Supplies and Services,Postages,212,18/10/2016,1610-00143,0.00,14.30,R,REDACTED PERSONAL DATA,No
Http://opendatacommunities.org/id/metropolitan-district-council/leeds,Leeds City Council,31/10/2016,Childrens Services,Safeguarding Targeted & Specialist,Supplies and Services,Telephones,213,18/10/2016,1610-00144,0.00,8.00,R,REDACTED PERSONAL DATA,No
Http://opendatacommunities.org/id/metropolitan-district-council/leeds,Leeds City Council,31/10/2016,Childrens Services,Safeguarding Targeted & Specialist,Supplies and Services,Food & Drink,231,18/10/2016,1610-00145,0.00,43.94,R,REDACTED PERSONAL DATA,No
Http://opendatacommunities.org/id/metropolitan-district-council/leeds,Leeds City Council,31/10/2016,Childrens Services,Safeguarding Targeted & Specialist,Transport,Car & Motorcycle Allowances,311,18/10/2016,1610-00146,0.00,14.40,R,REDACTED PERSONAL DATA,No
Http://opendatacommunities.org/id/metropolitan-district-council/leeds,Leeds City Council,31/10/2016,Adult Social Care,Services For Older People Under 65 P/Dis,Third Party Payments,Residential,580,03/10/2016,1610-00147,0.00,3084.00,R,Able Community Care Ltd,No
Http://opendatacommunities.org/id/metropolitan-district-council/leeds,Leeds City Council,31/10/2016,Adult Social Care,Services For Older People Under 65 P/Dis,Third Party Payments,Residential,580,21/10/2016,1610-00148,0.00,3084.00,R,Able Community Care Ltd,No
Http://opendatacommunities.org/id/metropolitan-district-council/leeds,Leeds City Council,31/10/2016,Adult Social Care,Services For Older People Under 65 P/Dis,Third Party Payments,Residential,580,21/10/2016,1610-00149,0.00,1211.54,R,Able Community Care Ltd,No
Http://opendatacommunities.org/id/metropolitan-district-council/leeds,Leeds City Council,31/10/2016,Citizens and Communities,Elections  Licensing and Registration,Income,Admissions  Booking Fees & Ticket Sales,933,20/10/2016,1610-00150,0.00,170.00,R,REDACTED PERSONAL DATA,No
Http://opendatacommunities.org/id/metropolitan-district-council/leeds,Leeds City Council,31/10/2016,Childrens Services,Safeguarding Targeted & Specialist,Employees,Agency Staff,8,04/10/2016,1610-00151,0.00,2271.10,R,Academic Appointments Ltd,No
Http://opendatacommunities.org/id/metropolitan-district-council/leeds,Leeds City Council,31/10/2016,Childrens Services,Safeguarding Targeted & Specialist,Employees,Agency Staff,8,07/10/2016,1610-00152,0.00,641.94,R,Academic Appointments Ltd,No
Http://opendatacommunities.org/id/metropolitan-district-council/leeds,Leeds City Council,31/10/2016,Childrens Services,Safeguarding Targeted & Specialist,Employees,Agency Staff,8,27/10/2016,1610-00153,0.00,1791.10,R,Academic Appointments Ltd,No
Http://opendatacommunities.org/id/metropolitan-district-council/leeds,Leeds City Council,31/10/2016,Childrens Services,Safeguarding Targeted & Specialist,Employees,Agency Staff,8,27/10/2016,1610-00154,0.00,1551.10,R,Academic Appointments Ltd,No
Http://opendatacommunities.org/id/metropolitan-district-council/leeds,Leeds City Council,31/10/2016,Childrens Services,Safeguarding Targeted & Specialist,Employees,Agency Staff,8,27/10/2016,1610-00155,0.00,1791.10,R,Academic Appointments Ltd,No
Http://opendatacommunities.org/id/metropolitan-district-council/leeds,Leeds City Council,31/10/2016,Environment & Housing,Environmental Health,Capital,Construction,3,27/10/2016,1610-00156,0.00,2052.00,C,Accent Homes Ltd,No
Http://opendatacommunities.org/id/metropolitan-district-council/leeds,Leeds City Council,31/10/2016,Environment & Housing,Community Safety,Transport,Hire Of Movable Plant & Machinery,315,28/10/2016,1610-00157,0.00,1307.14,R,Access Hire Nationwide Ltd,No
Http://opendatacommunities.org/id/metropolitan-district-council/leeds,Leeds City Council,31/10/2016,Environment & Housing,Parks And Countryside  ,Supplies and Services,Operational Materials,205,31/08/2016,1610-00158,0.00,27.25,R,Access Locksmiths,Yes
Http://opendatacommunities.org/id/metropolitan-district-council/leeds,Leeds City Council,31/10/2016,Childrens Services,Learning Skills & Universal  ,Supplies and Services,Operational Furniture And Equipment,203,31/08/2016,1610-00159,0.00,38.73,R,Access Locksmiths,Yes
Http://opendatacommunities.org/id/metropolitan-district-council/leeds,Leeds City Council,31/10/2016,Environment & Housing,Waste Management,Supplies and Services,Operational Furniture And Equipment,203,05/10/2016,1610-00160,0.00,103.70,R,Access Locksmiths (Leeds) Limited,No
Http://opendatacommunities.org/id/metropolitan-district-council/leeds,Leeds City Council,31/10/2016,Environment & Housing,Waste Management,Supplies and Services,Operational Furniture And Equipment,203,05/10/2016,1610-00161,0.00,81.80,R,Access Locksmiths (Leeds) Limited,No
Http://opendatacommunities.org/id/metropolitan-district-council/leeds,Leeds City Council,31/10/2016,Strategic Landlord,Housing Management,Premises,General Maintenance,104,07/10/2016,1610-00162,0.00,62.22,R,Access Locksmiths (Leeds) Limited,No
Http://opendatacommunities.org/id/metropolitan-district-council/leeds,Leeds City Council,31/10/2016,Strategic Landlord,Housing Management,Supplies and Services,Office Consumables,210,12/10/2016,1610-00163,0.00,42.00,R,Access Locksmiths (Leeds) Limited,No
Http://opendatacommunities.org/id/metropolitan-district-council/leeds,Leeds City Council,31/10/2016,Environment & Housing,Leeds Building Services,Supplies and Services,Operational Materials,205,13/10/2016,1610-00164,0.00,24.47,R,Access Locksmiths (Leeds) Limited,No
Http://opendatacommunities.org/id/metropolitan-district-council/leeds,Leeds City Council,31/10/2016,Environment & Housing,Leeds Building Services,Supplies and Services,Operational Materials,205,13/10/2016,1610-00165,0.00,84.17,R,Access Locksmiths (Leeds) Limited,No
Http://opendatacommunities.org/id/metropolitan-district-council/leeds,Leeds City Council,31/10/2016,Environment & Housing,Leeds Building Services,Supplies and Services,Operational Materials,205,13/10/2016,1610-00166,0.00,13.47,R,Access Locksmiths (Leeds) Limited,No
Http://opendatacommunities.org/id/metropolitan-district-council/leeds,Leeds City Council,31/10/2016,Environment & Housing,Leeds Building Services,Supplies and Services,Operational Materials,205,13/10/2016,1610-00167,0.00,90.00,R,Access Locksmiths (Leeds) Limited,No
Http://opendatacommunities.org/id/metropolitan-district-council/leeds,Leeds City Council,31/10/2016,Environment & Housing,Leeds Building Services,Supplies and Services,Operational Materials,205,14/10/2016,1610-00168,0.00,83.88,R,Access Locksmiths (Leeds) Limited,No
Http://opendatacommunities.org/id/metropolitan-district-council/leeds,Leeds City Council,31/10/2016,Environment & Housing,Leeds Building Services,Supplies and Services,Operational Materials,205,14/10/2016,1610-00169,0.00,43.04,R,Access Locksmiths (Leeds) Limited,No
Http://opendatacommunities.org/id/metropolitan-district-council/leeds,Leeds City Council,31/10/2016,Environment & Housing,Leeds Building Services,Supplies and Services,Operational Materials,205,14/10/2016,1610-00170,0.00,35.30,R,Access Locksmiths (Leeds) Limited,No
Http://opendatacommunities.org/id/metropolitan-district-council/leeds,Leeds City Council,31/10/2016,Strategic Landlord,Property and Contracts,Premises,General Maintenance,104,21/10/2016,1610-00171,0.00,713.50,R,Access Locksmiths (Leeds) Limited,No
Http://opendatacommunities.org/id/metropolitan-district-council/leeds,Leeds City Council,31/10/2016,Strategic Landlord,Property and Contracts,Premises,General Maintenance,104,21/10/2016,1610-00172,0.00,30.00,R,Access Locksmiths (Leeds) Limited,No
Http://opendatacommunities.org/id/metropolitan-district-council/leeds,Leeds City Council,31/10/2016,Environment & Housing,Waste Management,Supplies and Services,Operational Furniture And Equipment,203,21/10/2016,1610-00173,0.00,521.50,R,Access Locksmiths (Leeds) Limited,No
Http://opendatacommunities.org/id/metropolitan-district-council/leeds,Leeds City Council,31/10/2016,Strategic Landlord,Housing Management,Supplies and Services,Operational Materials,205,21/10/2016,1610-00174,0.00,6.50,R,Access Locksmiths (Leeds) Limited,No
Http://opendatacommunities.org/id/metropolitan-district-council/leeds,Leeds City Council,31/10/2016,Strategic Landlord,Housing Management,Premises,General Maintenance,104,21/10/2016,1610-00175,0.00,570.00,R,Access Locksmiths (Leeds) Limited,No
Http://opendatacommunities.org/id/metropolitan-district-council/leeds,Leeds City Council,31/10/2016,Strategic Landlord,Housing Management,Premises,General Maintenance,104,21/10/2016,1610-00176,0.00,1140.00,R,Access Locksmiths (Leeds) Limited,No
Http://opendatacommunities.org/id/metropolitan-district-council/leeds,Leeds City Council,31/10/2016,Strategic Landlord,Housing Management,Premises,General Maintenance,104,21/10/2016,1610-00177,0.00,296.40,R,Access Locksmiths (Leeds) Limited,No
Http://opendatacommunities.org/id/metropolitan-district-council/leeds,Leeds City Council,31/10/2016,Environment & Housing,Leeds Building Services,Supplies and Services,Operational Materials,205,24/10/2016,1610-00178,0.00,104.41,R,Access Locksmiths (Leeds) Limited,No
Http://opendatacommunities.org/id/metropolitan-district-council/leeds,Leeds City Council,31/10/2016,Environment & Housing,Leeds Building Services,Supplies and Services,Operational Materials,205,24/10/2016,1610-00179,0.00,12.00,R,Access Locksmiths (Leeds) Limited,No
Http://opendatacommunities.org/id/metropolitan-district-council/leeds,Leeds City Council,31/10/2016,Environment & Housing,Leeds Building Services,Supplies and Services,Operational Materials,205,24/10/2016,1610-00180,0.00,32.22,R,Access Locksmiths (Leeds) Limited,No
Http://opendatacommunities.org/id/metropolitan-district-council/leeds,Leeds City Council,31/10/2016,Environment & Housing,Leeds Building Services,Supplies and Services,Operational Materials,205,24/10/2016,1610-00181,0.00,32.76,R,Access Locksmiths (Leeds) Limited,No
Http://opendatacommunities.org/id/metropolitan-district-council/leeds,Leeds City Council,31/10/2016,Environment & Housing,Leeds Building Services,Supplies and Services,Operational Materials,205,24/10/2016,1610-00182,0.00,281.15,R,Access Locksmiths (Leeds) Limited,No
Http://opendatacommunities.org/id/metropolitan-district-council/leeds,Leeds City Council,31/10/2016,Strategic Landlord,Housing Management,Supplies and Services,Operational Materials,205,28/10/2016,1610-00183,0.00,76.00,R,Access Locksmiths (Leeds) Limited,No
Http://opendatacommunities.org/id/metropolitan-district-council/leeds,Leeds City Council,31/10/2016,Environment & Housing,Leeds Building Services,Supplies and Services,Operational Materials,205,28/10/2016,1610-00184,0.00,37.23,R,Access Locksmiths (Leeds) Limited,No
Http://opendatacommunities.org/id/metropolitan-district-council/leeds,Leeds City Council,31/10/2016,Environment & Housing,Leeds Building Services,Supplies and Services,Operational Materials,205,28/10/2016,1610-00185,0.00,310.83,R,Access Locksmiths (Leeds) Limited,No
Http://opendatacommunities.org/id/metropolitan-district-council/leeds,Leeds City Council,31/10/2016,Environment & Housing,Leeds Building Services,Supplies and Services,Operational Materials,205,28/10/2016,1610-00186,0.00,33.53,R,Access Locksmiths (Leeds) Limited,No
Http://opendatacommunities.org/id/metropolitan-district-council/leeds,Leeds City Council,31/10/2016,Strategic Landlord,Housing Management,Supplies and Services,Operational Materials,205,31/10/2016,1610-00187,0.00,31.11,R,Access Locksmiths (Leeds) Limited,No
Http://opendatacommunities.org/id/metropolitan-district-council/leeds,Leeds City Council,31/10/2016,Environment & Housing,Leeds Building Services,Supplies and Services,Operational Furniture And Equipment,203,31/10/2016,1610-00188,0.00,68.22,R,Access Locksmiths (Leeds) Limited,No
Http://opendatacommunities.org/id/metropolitan-district-council/leeds,Leeds City Council,31/10/2016,City Development,Libraries  Arts & Heritage,Supplies and Services,Bought In Professional Services,277,20/10/2016,1610-00189,0.00,6600.00,R,Access Moving Image Ltd,No
Http://opendatacommunities.org/id/metropolitan-district-council/leeds,Leeds City Council,31/10/2016,Environment & Housing,Leeds Building Services,Supplies and Services,Operational Materials,205,03/10/2016,1610-00190,0.00,12.50,R,Access Opening Systems Limited,No
Http://opendatacommunities.org/id/metropolitan-district-council/leeds,Leeds City Council,31/10/2016,Environment & Housing,Leeds Building Services,Supplies and Services,Other Hired And Contracted Services,265,04/10/2016,1610-00191,0.00,1010.99,R,Access Opening Systems Limited,No
Http://opendatacommunities.org/id/metropolitan-district-council/leeds,Leeds City Council,31/10/2016,Environment & Housing,Leeds Building Services,Supplies and Services,Other Hired And Contracted Services,265,04/10/2016,1610-00192,0.00,2018.24,R,Access Opening Systems Limited,No
Http://opendatacommunities.org/id/metropolitan-district-council/leeds,Leeds City Council,31/10/2016,Environment & Housing,Leeds Building Services,Supplies and Services,Other Hired And Contracted Services,265,07/10/2016,1610-00193,0.00,85.00,R,Access Opening Systems Limited,No
Http://opendatacommunities.org/id/metropolitan-district-council/leeds,Leeds City Council,31/10/2016,Environment & Housing,Leeds Building Services,Supplies and Services,Operational Materials,205,07/10/2016,1610-00194,0.00,260.00,R,Access Opening Systems Limited,No
Http://opendatacommunities.org/id/metropolitan-district-council/leeds,Leeds City Council,31/10/2016,Environment & Housing,Leeds Building Services,Supplies and Services,Other Hired And Contracted Services,265,07/10/2016,1610-00195,0.00,85.00,R,Access Opening Systems Limited,No
Http://opendatacommunities.org/id/metropolitan-district-council/leeds,Leeds City Council,31/10/2016,Environment & Housing,Leeds Building Services,Supplies and Services,Operational Materials,205,11/10/2016,1610-00196,0.00,200.00,R,Access Opening Systems Limited,No
Http://opendatacommunities.org/id/metropolitan-district-council/leeds,Leeds City Council,31/10/2016,Environment & Housing,Leeds Building Services,Supplies and Services,Other Hired And Contracted Services,265,13/10/2016,1610-00197,0.00,85.00,R,Access Opening Systems Limited,No
Http://opendatacommunities.org/id/metropolitan-district-council/leeds,Leeds City Council,31/10/2016,Environment & Housing,Leeds Building Services,Supplies and Services,Operational Materials,205,13/10/2016,1610-00198,0.00,1455.00,R,Access Opening Systems Limited,No
Http://opendatacommunities.org/id/metropolitan-district-council/leeds,Leeds City Council,31/10/2016,Environment & Housing,Leeds Building Services,Supplies and Services,Other Hired And Contracted Services,265,14/10/2016,1610-00199,0.00,385.88,R,Access Opening Systems Limited,No
Http://opendatacommunities.org/id/metropolitan-district-council/leeds,Leeds City Council,31/10/2016,Environment & Housing,Leeds Building Services,Supplies and Services,Other Hired And Contracted Services,265,14/10/2016,1610-00200,0.00,85.00,R,Access Opening Systems Limited,No
Http://opendatacommunities.org/id/metropolitan-district-council/leeds,Leeds City Council,31/10/2016,Environment & Housing,Leeds Building Services,Supplies and Services,Operational Materials,205,17/10/2016,1610-00201,0.00,143.50,R,Access Opening Systems Limited,No
Http://opendatacommunities.org/id/metropolitan-district-council/leeds,Leeds City Council,31/10/2016,Environment & Housing,Leeds Building Services,Supplies and Services,Operational Materials,205,17/10/2016,1610-00202,0.00,93.50,R,Access Opening Systems Limited,No
Http://opendatacommunities.org/id/metropolitan-district-council/leeds,Leeds City Council,31/10/2016,Environment & Housing,Leeds Building Services,Supplies and Services,Operational Materials,205,17/10/2016,1610-00203,0.00,238.50,R,Access Opening Systems Limited,No
Http://opendatacommunities.org/id/metropolitan-district-council/leeds,Leeds City Council,31/10/2016,Environment & Housing,Leeds Building Services,Supplies and Services,Other Hired And Contracted Services,265,21/10/2016,1610-00204,0.00,1320.00,R,Access Opening Systems Limited,No
Http://opendatacommunities.org/id/metropolitan-district-council/leeds,Leeds City Council,31/10/2016,Environment & Housing,Leeds Building Services,Supplies and Services,Other Hired And Contracted Services,265,24/10/2016,1610-00205,0.00,85.00,R,Access Opening Systems Limited,No
Http://opendatacommunities.org/id/metropolitan-district-council/leeds,Leeds City Council,31/10/2016,Environment & Housing,Leeds Building Services,Supplies and Services,Other Hired And Contracted Services,265,24/10/2016,1610-00206,0.00,483.75,R,Access Opening Systems Limited,No
Http://opendatacommunities.org/id/metropolitan-district-council/leeds,Leeds City Council,31/10/2016,Environment & Housing,Leeds Building Services,Supplies and Services,Other Hired And Contracted Services,265,24/10/2016,1610-00207,0.00,85.00,R,Access Opening Systems Limited,No
Http://opendatacommunities.org/id/metropolitan-district-council/leeds,Leeds City Council,31/10/2016,Environment & Housing,Leeds Building Services,Supplies and Services,Other Hired And Contracted Services,265,24/10/2016,1610-00208,0.00,85.00,R,Access Opening Systems Limited,No
Http://opendatacommunities.org/id/metropolitan-district-council/leeds,Leeds City Council,31/10/2016,Environment & Housing,Leeds Building Services,Supplies and Services,Other Hired And Contracted Services,265,24/10/2016,1610-00209,0.00,575.00,R,Access Opening Systems Limited,No
Http://opendatacommunities.org/id/metropolitan-district-council/leeds,Leeds City Council,31/10/2016,Environment & Housing,Leeds Building Services,Supplies and Services,Operational Materials,205,27/10/2016,1610-00210,0.00,70.00,R,Access Opening Systems Limited,No
Http://opendatacommunities.org/id/metropolitan-district-council/leeds,Leeds City Council,31/10/2016,Environment & Housing,Leeds Building Services,Supplies and Services,Other Hired And Contracted Services,265,28/10/2016,1610-00211,0.00,85.00,R,Access Opening Systems Limited,No
Http://opendatacommunities.org/id/metropolitan-district-council/leeds,Leeds City Council,31/10/2016,Environment & Housing,Leeds Building Services,Supplies and Services,Other Hired And Contracted Services,265,28/10/2016,1610-00212,0.00,186.25,R,Access Opening Systems Limited,No
Http://opendatacommunities.org/id/metropolitan-district-council/leeds,Leeds City Council,31/10/2016,Environment & Housing,Leeds Building Services,Supplies and Services,Other Hired And Contracted Services,265,28/10/2016,1610-00213,0.00,97.50,R,Access Opening Systems Limited,No
Http://opendatacommunities.org/id/metropolitan-district-council/leeds,Leeds City Council,31/10/2016,Insurance,Insurance,Supplies and Services,Insurance Claims,248,20/10/2016,1610-00214,0.00,930.00,R,Accountant General Of The Senior Courts,No
Http://opendatacommunities.org/id/metropolitan-district-council/leeds,Leeds City Council,31/10/2016,City Development,Recreation  ,Supplies and Services,Other Hired And Contracted Services,265,28/09/2016,1610-00215,0.00,90.00,R,Ace Container Services L,Yes
Http://opendatacommunities.org/id/metropolitan-district-council/leeds,Leeds City Council,31/10/2016,City Development,Libraries  Arts & Heritage,Transport,Hire Of Movable Plant & Machinery,315,17/10/2016,1610-00216,0.00,45.00,R,Ace Container Services Limited,No
Http://opendatacommunities.org/id/metropolitan-district-council/leeds,Leeds City Council,31/10/2016,City Development,Recreation,Transport,External Hire -Occasional,304,28/10/2016,1610-00217,0.00,128.65,R,Ace Container Services Limited,No
Http://opendatacommunities.org/id/metropolitan-district-council/leeds,Leeds City Council,31/10/2016,City Development,Libraries  Arts & Heritage,Transport,Hire Of Movable Plant & Machinery,315,28/10/2016,1610-00218,0.00,46.50,R,Ace Container Services Limited,No
Http://opendatacommunities.org/id/metropolitan-district-council/leeds,Leeds City Council,31/10/2016,Civic Enterprise Leeds,Commercial Services,Supplies and Services,Crockery  Cutlery & Utensils,221,05/10/2016,1610-00219,0.00,5138.00,R,Acme Facilities Group Ltd,No
Http://opendatacommunities.org/id/metropolitan-district-council/leeds,Leeds City Council,31/10/2016,Childrens Services,Safeguarding Targeted & Specialist,Third Party Payments,Independent Fostering Agencies,509,24/10/2016,1610-00220,0.00,1906.43,R,Acorn Fostering Services,No
Http://opendatacommunities.org/id/metropolitan-district-council/leeds,Leeds City Council,31/10/2016,Adult Social Care,Services For Older People - 65 And Over,Third Party Payments,Nursing Care Dementia,574,19/10/2016,1610-00221,0.00,1480.08,R,Acorn Nursing Home,No
Http://opendatacommunities.org/id/metropolitan-district-council/leeds,Leeds City Council,31/10/2016,City Development,Libraries  Arts & Heritage,Supplies and Services,Other Hired And Contracted Services,265,28/10/2016,1610-00222,0.00,2445.00,R,Acorn Scaffolding (Yorkshire) Ltd,No
Http://opendatacommunities.org/id/metropolitan-district-council/leeds,Leeds City Council,31/10/2016,City Development,Libraries  Arts & Heritage,Supplies and Services,Other Hired And Contracted Services,265,28/10/2016,1610-00223,0.00,2350.00,R,Acorn Scaffolding (Yorkshire) Ltd,No
Http://opendatacommunities.org/id/metropolitan-district-council/leeds,Leeds City Council,31/10/2016,Childrens Services,Learning Skills & Universal,Third Party Payments,Services Rendered By Other Organisations,511,28/10/2016,1610-00224,0.00,280.00,R,Acorns Nursery,No
Http://opendatacommunities.org/id/metropolitan-district-council/leeds,Leeds City Council,31/10/2016,City Development,Highways,Supplies and Services,Other Hired And Contracted Services,265,03/10/2016,1610-00225,0.00,1739.50,R,Acoustic Calibration Services Limited,No
Http://opendatacommunities.org/id/metropolitan-district-council/leeds,Leeds City Council,31/10/2016,Adult Social Care,Services For Adults Under 65 Mental/Dis,Third Party Payments,Residential,580,19/10/2016,1610-00226,0.00,1459.20,R,Acre Green,No
Http://opendatacommunities.org/id/metropolitan-district-council/leeds,Leeds City Council,31/10/2016,Adult Social Care,Services For Older People - 65 And Over,Third Party Payments,Nursing Home,570,19/10/2016,1610-00227,0.00,17930.21,R,Acre Green,No
Http://opendatacommunities.org/id/metropolitan-district-council/leeds,Leeds City Council,31/10/2016,Adult Social Care,Services For Older People - 65 And Over,Third Party Payments,Nursing Care Dementia,574,19/10/2016,1610-00228,0.00,5879.76,R,Acre Green,No
Http://opendatacommunities.org/id/metropolitan-district-council/leeds,Leeds City Council,31/10/2016,Adult Social Care,Services For Older People - 65 And Over,Third Party Payments,Residential,580,19/10/2016,1610-00229,0.00,8857.45,R,Acre Green,No
Http://opendatacommunities.org/id/metropolitan-district-council/leeds,Leeds City Council,31/10/2016,Adult Social Care,Services For Older People Under 65 P/Dis,Third Party Payments,Nursing Home,570,19/10/2016,1610-00230,0.00,5159.84,R,Acre Green,No
Http://opendatacommunities.org/id/metropolitan-district-council/leeds,Leeds City Council,31/10/2016,Adult Social Care,Services For Older People Under 65 P/Dis,Third Party Payments,Residential,580,19/10/2016,1610-00231,0.00,1678.80,R,Acre Green,No
Http://opendatacommunities.org/id/metropolitan-district-council/leeds,Leeds City Council,31/10/2016,Childrens Services,Learning Skills & Universal,Third Party Payments,Services Rendered By Other Organisations,511,28/10/2016,1610-00232,0.00,1284.00,R,Acre Wood Day Nursery,No
Http://opendatacommunities.org/id/metropolitan-district-council/leeds,Leeds City Council,31/10/2016,Public Health,Public Health  ,Employees,Best Value Training,70,09/09/2016,1610-00233,0.00,2990.00,R,Act Now Training,Yes
Http://opendatacommunities.org/id/metropolitan-district-council/leeds,Leeds City Council,31/10/2016,Adult Social Care,Services For Adults Under 65 Mental/Dis,Third Party Payments,Fees - Level 4,520,05/10/2016,1610-00234,0.00,700.00,R,Action First Recruitment Ltd,No
Http://opendatacommunities.org/id/metropolitan-district-council/leeds,Leeds City Council,31/10/2016,Adult Social Care,Services For Adults Under 65 Mental/Dis,Third Party Payments,Fees - Level 4,520,05/10/2016,1610-00235,0.00,350.00,R,Action First Recruitment Ltd,No
Http://opendatacommunities.org/id/metropolitan-district-council/leeds,Leeds City Council,31/10/2016,Adult Social Care,Services For Adults Under 65 Mental/Dis,Third Party Payments,Fees - Level 4,520,05/10/2016,1610-00236,0.00,350.00,R,Action First Recruitment Ltd,No
Http://opendatacommunities.org/id/metropolitan-district-council/leeds,Leeds City Council,31/10/2016,Adult Social Care,Services For Adults Under 65 Mental/Dis,Third Party Payments,Fees - Level 4,520,05/10/2016,1610-00237,0.00,350.00,R,Action First Recruitment Ltd,No
Http://opendatacommunities.org/id/metropolitan-district-council/leeds,Leeds City Council,31/10/2016,Adult Social Care,Services For Adults Under 65 Mental/Dis,Third Party Payments,Fees - Level 4,520,05/10/2016,1610-00238,0.00,1750.00,R,Action First Recruitment Ltd,No
Http://opendatacommunities.org/id/metropolitan-district-council/leeds,Leeds City Council,31/10/2016,Adult Social Care,Services For Adults Under 65 Mental/Dis,Third Party Payments,Fees - Level 4,520,05/10/2016,1610-00239,0.00,350.00,R,Action First Recruitment Ltd,No
Http://opendatacommunities.org/id/metropolitan-district-council/leeds,Leeds City Council,31/10/2016,Adult Social Care,Services For Adults Under 65 Mental/Dis,Third Party Payments,Fees - Level 4,520,05/10/2016,1610-00240,0.00,350.00,R,Action First Recruitment Ltd,No
Http://opendatacommunities.org/id/metropolitan-district-council/leeds,Leeds City Council,31/10/2016,Adult Social Care,Services For Adults Under 65 Mental/Dis,Third Party Payments,Fees - Level 4,520,05/10/2016,1610-00241,0.00,350.00,R,Action First Recruitment Ltd,No
Http://opendatacommunities.org/id/metropolitan-district-council/leeds,Leeds City Council,31/10/2016,Adult Social Care,Services For Adults Under 65 Mental/Dis,Third Party Payments,Fees - Level 4,520,05/10/2016,1610-00242,0.00,350.00,R,Action First Recruitment Ltd,No
Http://opendatacommunities.org/id/metropolitan-district-council/leeds,Leeds City Council,31/10/2016,Adult Social Care,Services For Adults Under 65 Mental/Dis,Third Party Payments,Fees - Level 4,520,05/10/2016,1610-00243,0.00,350.00,R,Action First Recruitment Ltd,No
Http://opendatacommunities.org/id/metropolitan-district-council/leeds,Leeds City Council,31/10/2016,Adult Social Care,Services For Adults Under 65 Mental/Dis,Third Party Payments,Fees - Level 4,520,05/10/2016,1610-00244,0.00,2100.00,R,Action First Recruitment Ltd,No
Http://opendatacommunities.org/id/metropolitan-district-council/leeds,Leeds City Council,31/10/2016,Adult Social Care,Services For Adults Under 65 Mental/Dis,Third Party Payments,Fees - Level 4,520,05/10/2016,1610-00245,0.00,250.00,R,Action First Recruitment Ltd,No
Http://opendatacommunities.org/id/metropolitan-district-council/leeds,Leeds City Council,31/10/2016,Adult Social Care,Services For Adults Under 65 Mental/Dis,Third Party Payments,Fees - Level 4,520,05/10/2016,1610-00246,0.00,1400.00,R,Action First Recruitment Ltd,No
Http://opendatacommunities.org/id/metropolitan-district-council/leeds,Leeds City Council,31/10/2016,Adult Social Care,Services For Adults Under 65 Mental/Dis,Third Party Payments,Fees - Level 4,520,05/10/2016,1610-00247,0.00,350.00,R,Action First Recruitment Ltd,No
Http://opendatacommunities.org/id/metropolitan-district-council/leeds,Leeds City Council,31/10/2016,Adult Social Care,Services For Adults Under 65 Mental/Dis,Third Party Payments,Fees - Level 4,520,05/10/2016,1610-00248,0.00,1050.00,R,Action First Recruitment Ltd,No
Http://opendatacommunities.org/id/metropolitan-district-council/leeds,Leeds City Council,31/10/2016,Adult Social Care,Services For Adults Under 65 Mental/Dis,Third Party Payments,Fees - Level 4,520,05/10/2016,1610-00249,0.00,350.00,R,Action First Recruitment Ltd,No
Http://opendatacommunities.org/id/metropolitan-district-council/leeds,Leeds City Council,31/10/2016,Adult Social Care,Services For Adults Under 65 Mental/Dis,Third Party Payments,Fees - Level 4,520,05/10/2016,1610-00250,0.00,1050.00,R,Action First Recruitment Ltd,No
Http://opendatacommunities.org/id/metropolitan-district-council/leeds,Leeds City Council,31/10/2016,Adult Social Care,Services For Adults Under 65 Mental/Dis,Third Party Payments,Fees - Level 4,520,05/10/2016,1610-00251,0.00,700.00,R,Action First Recruitment Ltd,No
Http://opendatacommunities.org/id/metropolitan-district-council/leeds,Leeds City Council,31/10/2016,Adult Social Care,Services For Adults Under 65 Mental/Dis,Third Party Payments,Fees - Level 4,520,05/10/2016,1610-00252,0.00,1050.00,R,Action First Recruitment Ltd,No
Http://opendatacommunities.org/id/metropolitan-district-council/leeds,Leeds City Council,31/10/2016,Adult Social Care,Services For Adults Under 65 Mental/Dis,Third Party Payments,Fees - Level 4,520,05/10/2016,1610-00253,0.00,350.00,R,Action First Recruitment Ltd,No
Http://opendatacommunities.org/id/metropolitan-district-council/leeds,Leeds City Council,31/10/2016,Adult Social Care,Services For Adults Under 65 Mental/Dis,Third Party Payments,Fees - Level 4,520,05/10/2016,1610-00254,0.00,1050.00,R,Action First Recruitment Ltd,No
Http://opendatacommunities.org/id/metropolitan-district-council/leeds,Leeds City Council,31/10/2016,Adult Social Care,Services For Adults Under 65 Mental/Dis,Third Party Payments,Fees - Level 4,520,05/10/2016,1610-00255,0.00,250.00,R,Action First Recruitment Ltd,No
Http://opendatacommunities.org/id/metropolitan-district-council/leeds,Leeds City Council,31/10/2016,Childrens Services,Safeguarding Targeted & Specialist,Third Party Payments,Independent Fostering Agencies,509,19/10/2016,1610-00256,0.00,4622.40,R,Action For Children,No
Http://opendatacommunities.org/id/metropolitan-district-council/leeds,Leeds City Council,31/10/2016,Childrens Services,Safeguarding Targeted & Specialist,Third Party Payments,Independent Fostering Agencies,509,19/10/2016,1610-00257,0.00,4622.40,R,Action For Children,No
Http://opendatacommunities.org/id/metropolitan-district-council/leeds,Leeds City Council,31/10/2016,Childrens Services,Safeguarding Targeted & Specialist,Third Party Payments,Independent Fostering Agencies,509,19/10/2016,1610-00258,0.00,4622.40,R,Action For Children,No
Http://opendatacommunities.org/id/metropolitan-district-council/leeds,Leeds City Council,31/10/2016,Childrens Services,Safeguarding Targeted & Specialist,Third Party Payments,Independent Fostering Agencies,509,19/10/2016,1610-00259,0.00,4997.10,R,Action For Children,No
Http://opendatacommunities.org/id/metropolitan-district-council/leeds,Leeds City Council,31/10/2016,Childrens Services,Safeguarding Targeted & Specialist,Third Party Payments,Independent Fostering Agencies,509,19/10/2016,1610-00260,0.00,4622.40,R,Action For Children,No
Http://opendatacommunities.org/id/metropolitan-district-council/leeds,Leeds City Council,31/10/2016,Childrens Services,Safeguarding Targeted & Specialist,Third Party Payments,Independent Fostering Agencies,509,20/10/2016,1610-00261,0.00,6829.37,R,Action For Children,No
Http://opendatacommunities.org/id/metropolitan-district-council/leeds,Leeds City Council,31/10/2016,Childrens Services,Safeguarding Targeted & Specialist,Third Party Payments,Interagency Adoptions,559,20/10/2016,1610-00262,0.00,43000.00,R,Action For Children,No
Http://opendatacommunities.org/id/metropolitan-district-council/leeds,Leeds City Council,31/10/2016,Childrens Services,Learning Skills & Universal,Third Party Payments,Services Rendered By Other Organisations,511,28/10/2016,1610-00263,0.00,368.00,R,Active Kids Day Nursery,No
Http://opendatacommunities.org/id/metropolitan-district-council/leeds,Leeds City Council,31/10/2016,Environment & Housing,Waste Management,Supplies and Services,Recycling & Reuse Charges,234,03/10/2016,1610-00264,0.00,-330.00,R,Acumen Waste Services Ltd,No
Http://opendatacommunities.org/id/metropolitan-district-council/leeds,Leeds City Council,31/10/2016,Environment & Housing,Environmental Action (South),Premises,Removal Of Workplace Waste,126,03/10/2016,1610-00265,0.00,220.00,R,Acumen Waste Services Ltd,No
Http://opendatacommunities.org/id/metropolitan-district-council/leeds,Leeds City Council,31/10/2016,Environment & Housing,Environmental Action (South),Premises,Removal Of Workplace Waste,126,03/10/2016,1610-00266,0.00,220.00,R,Acumen Waste Services Ltd,No
Http://opendatacommunities.org/id/metropolitan-district-council/leeds,Leeds City Council,31/10/2016,Environment & Housing,Environmental Action (South),Premises,Removal Of Workplace Waste,126,03/10/2016,1610-00267,0.00,110.00,R,Acumen Waste Services Ltd,No
Http://opendatacommunities.org/id/metropolitan-district-council/leeds,Leeds City Council,31/10/2016,Environment & Housing,Waste Management,Supplies and Services,Recycling & Reuse Charges,234,05/10/2016,1610-00268,0.00,110.00,R,Acumen Waste Services Ltd,No
Http://opendatacommunities.org/id/metropolitan-district-council/leeds,Leeds City Council,31/10/2016,Environment & Housing,Waste Management,Supplies and Services,Recycling & Reuse Charges,234,05/10/2016,1610-00269,0.00,10790.35,R,Acumen Waste Services Ltd,No
Http://opendatacommunities.org/id/metropolitan-district-council/leeds,Leeds City Council,31/10/2016,Environment & Housing,Waste Management,Supplies and Services,Recycling & Reuse Charges,234,05/10/2016,1610-00270,0.00,960.11,R,Acumen Waste Services Ltd,No
Http://opendatacommunities.org/id/metropolitan-district-council/leeds,Leeds City Council,31/10/2016,Environment & Housing,Environmental Action (South),Premises,Removal Of Workplace Waste,126,07/10/2016,1610-00271,0.00,220.00,R,Acumen Waste Services Ltd,No
Http://opendatacommunities.org/id/metropolitan-district-council/leeds,Leeds City Council,31/10/2016,Environment & Housing,Waste Management,Supplies and Services,Recycling & Reuse Charges,234,07/10/2016,1610-00272,0.00,8359.59,R,Acumen Waste Services Ltd,No
Http://opendatacommunities.org/id/metropolitan-district-council/leeds,Leeds City Council,31/10/2016,Environment & Housing,Waste Management,Supplies and Services,Recycling & Reuse Charges,234,20/10/2016,1610-00273,0.00,110.00,R,Acumen Waste Services Ltd,No
Http://opendatacommunities.org/id/metropolitan-district-council/leeds,Leeds City Council,31/10/2016,Environment & Housing,Waste Management,Supplies and Services,Recycling & Reuse Charges,234,21/10/2016,1610-00274,0.00,5759.32,R,Acumen Waste Services Ltd,No
Http://opendatacommunities.org/id/metropolitan-district-council/leeds,Leeds City Council,31/10/2016,Environment & Housing,Waste Management,Supplies and Services,Recycling & Reuse Charges,234,21/10/2016,1610-00275,0.00,3795.55,R,Acumen Waste Services Ltd,No
Http://opendatacommunities.org/id/metropolitan-district-council/leeds,Leeds City Council,31/10/2016,Adult Social Care,Services For Older People - 65 And Over,Third Party Payments,Nursing Home,570,19/10/2016,1610-00276,0.00,2120.00,R,Adbolton Hall,No
Http://opendatacommunities.org/id/metropolitan-district-council/leeds,Leeds City Council,31/10/2016,Public Health,Public Health,Third Party Payments,Public Health Commissioned Services,526,31/10/2016,1610-00277,0.00,133.00,R,Addlestone & Partners,No
Http://opendatacommunities.org/id/metropolitan-district-council/leeds,Leeds City Council,31/10/2016,Central & Corporate,Technology  ,Employees,Agency Staff,8,02/09/2016,1610-00278,0.00,644.10,R,Adecco Alfred Marks,Yes
Http://opendatacommunities.org/id/metropolitan-district-council/leeds,Leeds City Council,31/10/2016,Central & Corporate,Technology  ,Employees,Agency Staff,8,06/09/2016,1610-00279,0.00,2825.45,R,Adecco Alfred Marks,Yes
Http://opendatacommunities.org/id/metropolitan-district-council/leeds,Leeds City Council,31/10/2016,Central & Corporate,Technology  ,Employees,Agency Staff,8,22/09/2016,1610-00280,0.00,1118.70,R,Adecco Alfred Marks,Yes
Http://opendatacommunities.org/id/metropolitan-district-council/leeds,Leeds City Council,31/10/2016,Central & Corporate,Technology  ,Employees,Agency Staff,8,22/09/2016,1610-00281,0.00,6210.00,R,Adecco Alfred Marks,Yes
Http://opendatacommunities.org/id/metropolitan-district-council/leeds,Leeds City Council,31/10/2016,Central & Corporate,Technology  ,Employees,Agency Staff,8,22/09/2016,1610-00282,0.00,11600.00,R,Adecco Alfred Marks,Yes
Http://opendatacommunities.org/id/metropolitan-district-council/leeds,Leeds City Council,31/10/2016,Childrens Services,Learning Skills & Universal,Third Party Payments,Services Rendered By Voluntary Sector,505,28/10/2016,1610-00283,0.00,632.67,R,Adel Pre School,No
Http://opendatacommunities.org/id/metropolitan-district-council/leeds,Leeds City Council,31/10/2016,Adult Social Care,Services For Older People - 65 And Over,Third Party Payments,Residential,580,19/10/2016,1610-00284,0.00,1173.68,R,Adeline Lodge,No
Http://opendatacommunities.org/id/metropolitan-district-council/leeds,Leeds City Council,31/10/2016,Adult Social Care,Services For Older People - 65 And Over,Third Party Payments,Nursing Home,570,19/10/2016,1610-00285,0.00,1056.32,R,Aden House,No
Http://opendatacommunities.org/id/metropolitan-district-council/leeds,Leeds City Council,31/10/2016,Environment & Housing,Leeds Building Services,Supplies and Services,Operational Materials,205,07/10/2016,1610-00286,0.00,6.24,R,Adi Global,No
Http://opendatacommunities.org/id/metropolitan-district-council/leeds,Leeds City Council,31/10/2016,Environment & Housing,Leeds Building Services,Supplies and Services,Operational Materials,205,07/10/2016,1610-00287,0.00,6.24,R,Adi Global,No
Http://opendatacommunities.org/id/metropolitan-district-council/leeds,Leeds City Council,31/10/2016,Environment & Housing,Leeds Building Services,Supplies and Services,Operational Materials,205,07/10/2016,1610-00288,0.00,6.24,R,Adi Global,No
Http://opendatacommunities.org/id/metropolitan-district-council/leeds,Leeds City Council,31/10/2016,Environment & Housing,Leeds Building Services,Supplies and Services,Operational Materials,205,07/10/2016,1610-00289,0.00,6.24,R,Adi Global,No
Http://opendatacommunities.org/id/metropolitan-district-council/leeds,Leeds City Council,31/10/2016,Environment & Housing,Leeds Building Services,Supplies and Services,Operational Materials,205,07/10/2016,1610-00290,0.00,6.24,R,Adi Global,No
Http://opendatacommunities.org/id/metropolitan-district-council/leeds,Leeds City Council,31/10/2016,Environment & Housing,Leeds Building Services,Supplies and Services,Operational Materials,205,07/10/2016,1610-00291,0.00,0.73,R,Adi Global,No
Http://opendatacommunities.org/id/metropolitan-district-council/leeds,Leeds City Council,31/10/2016,Environment & Housing,Leeds Building Services,Supplies and Services,Operational Materials,205,07/10/2016,1610-00292,0.00,48.37,R,Adi Global,No
Http://opendatacommunities.org/id/metropolitan-district-council/leeds,Leeds City Council,31/10/2016,Environment & Housing,Leeds Building Services,Supplies and Services,Operational Materials,205,07/10/2016,1610-00293,0.00,3.17,R,Adi Global,No
Http://opendatacommunities.org/id/metropolitan-district-council/leeds,Leeds City Council,31/10/2016,Environment & Housing,Leeds Building Services,Supplies and Services,Operational Materials,205,07/10/2016,1610-00294,0.00,20.58,R,Adi Global,No
Http://opendatacommunities.org/id/metropolitan-district-council/leeds,Leeds City Council,31/10/2016,Environment & Housing,Leeds Building Services,Supplies and Services,Operational Materials,205,07/10/2016,1610-00295,0.00,38.43,R,Adi Global,No
Http://opendatacommunities.org/id/metropolitan-district-council/leeds,Leeds City Council,31/10/2016,Environment & Housing,Leeds Building Services,Supplies and Services,Operational Materials,205,17/10/2016,1610-00296,0.00,6.38,R,Adi Global,No
Http://opendatacommunities.org/id/metropolitan-district-council/leeds,Leeds City Council,31/10/2016,Environment & Housing,Leeds Building Services,Supplies and Services,Operational Materials,205,17/10/2016,1610-00297,0.00,22.44,R,Adi Global,No
Http://opendatacommunities.org/id/metropolitan-district-council/leeds,Leeds City Council,31/10/2016,Environment & Housing,Leeds Building Services,Supplies and Services,Operational Materials,205,17/10/2016,1610-00298,0.00,56.62,R,Adi Global,No
Http://opendatacommunities.org/id/metropolitan-district-council/leeds,Leeds City Council,31/10/2016,Environment & Housing,Leeds Building Services,Supplies and Services,Operational Materials,205,17/10/2016,1610-00299,0.00,16.98,R,Adi Global,No
Http://opendatacommunities.org/id/metropolitan-district-council/leeds,Leeds City Council,31/10/2016,Environment & Housing,Leeds Building Services,Supplies and Services,Operational Materials,205,17/10/2016,1610-00300,0.00,24.15,R,Adi Global,No
Http://opendatacommunities.org/id/metropolitan-district-council/leeds,Leeds City Council,31/10/2016,Environment & Housing,Leeds Building Services,Supplies and Services,Operational Materials,205,20/10/2016,1610-00301,0.00,932.64,R,Adi Global,No
Http://opendatacommunities.org/id/metropolitan-district-council/leeds,Leeds City Council,31/10/2016,Environment & Housing,Leeds Building Services,Supplies and Services,Operational Materials,205,20/10/2016,1610-00302,0.00,3831.18,R,Adi Global,No
Http://opendatacommunities.org/id/metropolitan-district-council/leeds,Leeds City Council,31/10/2016,Environment & Housing,Leeds Building Services,Supplies and Services,Operational Materials,205,24/10/2016,1610-00303,0.00,602.16,R,Adi Global,No
Http://opendatacommunities.org/id/metropolitan-district-council/leeds,Leeds City Council,31/10/2016,Adult Social Care,Other Adult Services,Supplies and Services,Other Hired And Contracted Services,265,10/10/2016,1610-00304,0.00,15.00,R,REDACTED PERSONAL DATA,No
Http://opendatacommunities.org/id/metropolitan-district-council/leeds,Leeds City Council,31/10/2016,Environment & Housing,Community Safety  ,Supplies and Services,Other Hired And Contracted Services,265,01/09/2016,1610-00305,0.00,64.20,R,Adi-Gardiner Ltd,Yes
Http://opendatacommunities.org/id/metropolitan-district-council/leeds,Leeds City Council,31/10/2016,Insurance,Insurance,Supplies and Services,Insurance Claims,248,02/10/2016,1610-00306,0.00,310.00,R,Admiral Insurance,No
Http://opendatacommunities.org/id/metropolitan-district-council/leeds,Leeds City Council,31/10/2016,Childrens Services,Safeguarding Targeted & Specialist,Third Party Payments,Independent Fostering Agencies,509,07/10/2016,1610-00307,0.00,2945.00,R,Adolescent And Childrens Trust,No
Http://opendatacommunities.org/id/metropolitan-district-council/leeds,Leeds City Council,31/10/2016,Childrens Services,Safeguarding Targeted & Specialist,Third Party Payments,Independent Fostering Agencies,509,07/10/2016,1610-00308,0.00,2945.00,R,Adolescent And Childrens Trust,No
Http://opendatacommunities.org/id/metropolitan-district-council/leeds,Leeds City Council,31/10/2016,Childrens Services,Safeguarding Targeted & Specialist,Third Party Payments,Independent Fostering Agencies,509,07/10/2016,1610-00309,0.00,3100.00,R,Adolescent And Childrens Trust,No
Http://opendatacommunities.org/id/metropolitan-district-council/leeds,Leeds City Council as Accountable Body,31/10/2016,Social Services Pooled Budgets,Jcs For People With Learning Disabilitie,Third Party Payments,Residential,580,13/10/2016,1610-00310,0.00,2609.36,R,Adrian House,No
Http://opendatacommunities.org/id/metropolitan-district-council/leeds,Leeds City Council,31/10/2016,Adult Social Care,Social Services Support Services,Employees,Training Costs,71,27/10/2016,1610-00311,0.00,630.00,R,Adrian House,No
Http://opendatacommunities.org/id/metropolitan-district-council/leeds,Leeds City Council,31/10/2016,Strategic Landlord,Housing Management,Premises,Premises Security Services,162,13/10/2016,1610-00312,0.00,143.56,R,Adt Fire And Security Plc,No
Http://opendatacommunities.org/id/metropolitan-district-council/leeds,Leeds City Council,31/10/2016,Strategic Landlord,Housing Management,Premises,Premises Security Services,162,27/10/2016,1610-00313,0.00,-177.00,R,Adt Fire And Security Plc,No
Http://opendatacommunities.org/id/metropolitan-district-council/leeds,Leeds City Council,31/10/2016,Civic Enterprise Leeds,Corporate Property Management,Premises,Maintenance Of Buildings,101,31/10/2016,1610-00314,0.00,180.00,R,Adt Fire And Security Plc,No
Http://opendatacommunities.org/id/metropolitan-district-council/leeds,Leeds City Council as Accountable Body,31/10/2016,Social Services Pooled Budgets,Jcs For People With Learning Disabilitie,Third Party Payments,Sheltered Accommodation,569,25/10/2016,1610-00315,0.00,1332.20,R,Adult Placement Services,No
Http://opendatacommunities.org/id/metropolitan-district-council/leeds,Leeds City Council as Accountable Body,31/10/2016,Social Services Pooled Budgets,Jcs For People With Learning Disabilitie,Third Party Payments,Sheltered Accommodation,569,25/10/2016,1610-00316,0.00,621.50,R,Adult Placement Services,No
Http://opendatacommunities.org/id/metropolitan-district-council/leeds,Leeds City Council,31/10/2016,Adult Social Care,Services For Adults Under 65 Mental/Dis,Third Party Payments,Nursing Home,570,19/10/2016,1610-00317,0.00,1541.96,R,Adult Supported Living Ltd,No
Http://opendatacommunities.org/id/metropolitan-district-council/leeds,Leeds City Council,31/10/2016,Central & Corporate,Strategy And Improvement  ,Supplies and Services,Computer Software & Equipment,214,08/09/2016,1610-00318,0.00,35.00,R,Adv Services,Yes
Http://opendatacommunities.org/id/metropolitan-district-council/leeds,Leeds City Council,31/10/2016,City Development,Recreation,Supplies and Services,External Audit Fees,261,07/10/2016,1610-00319,0.00,100.00,R,Advance Stocks Ltd,No
Http://opendatacommunities.org/id/metropolitan-district-council/leeds,Leeds City Council,31/10/2016,City Development,Recreation,Supplies and Services,External Audit Fees,261,28/10/2016,1610-00320,0.00,235.00,R,Advance Stocks Ltd,No
Http://opendatacommunities.org/id/metropolitan-district-council/leeds,Leeds City Council,31/10/2016,City Development,Recreation,Supplies and Services,External Audit Fees,261,28/10/2016,1610-00321,0.00,85.00,R,Advance Stocks Ltd,No
Http://opendatacommunities.org/id/metropolitan-district-council/leeds,Leeds City Council,31/10/2016,City Development,Libraries  Arts & Heritage,Supplies and Services,External Audit Fees,261,28/10/2016,1610-00322,0.00,85.00,R,Advance Stocks Ltd,No
Http://opendatacommunities.org/id/metropolitan-district-council/leeds,Leeds City Council,31/10/2016,City Development,Libraries  Arts & Heritage,Supplies and Services,External Audit Fees,261,28/10/2016,1610-00323,0.00,85.00,R,Advance Stocks Ltd,No
Http://opendatacommunities.org/id/metropolitan-district-council/leeds,Leeds City Council,31/10/2016,City Development,Recreation,Supplies and Services,Licences,266,11/10/2016,1610-00324,0.00,715.00,R,Adventure Activities Licensing Authority,No
Http://opendatacommunities.org/id/metropolitan-district-council/leeds,Leeds City Council,31/10/2016,Adult Social Care,Social Services Support Services,Employees,Training Costs,71,25/10/2016,1610-00325,0.00,12225.00,R,Advinia Healthcare Ltd,No
Http://opendatacommunities.org/id/metropolitan-district-council/leeds,Leeds City Council as Accountable Body,31/10/2016,Social Services Pooled Budgets,Jcs For People With Learning Disabilitie,Third Party Payments,Residential,580,19/10/2016,1610-00326,0.00,20213.48,R,Advitam Ltd,No
Http://opendatacommunities.org/id/metropolitan-district-council/leeds,Leeds City Council,31/10/2016,Adult Social Care,Services For Older People - 65 And Over,Third Party Payments,Payments To Voluntary Organisations,561,28/10/2016,1610-00327,0.00,83435.70,R,Advonet,No
Http://opendatacommunities.org/id/metropolitan-district-council/leeds,Leeds City Council,31/10/2016,City Development,Economic Development,Capital,Other Costs,7,05/10/2016,1610-00328,0.00,11258.00,C,Aecom Limited,No
Http://opendatacommunities.org/id/metropolitan-district-council/leeds,Leeds City Council,31/10/2016,Insurance,Insurance,Supplies and Services,Insurance Claims,248,18/10/2016,1610-00329,0.00,630.00,R,Aequitas Legal Solicitors Limited,No
Http://opendatacommunities.org/id/metropolitan-district-council/leeds,Leeds City Council,31/10/2016,City Development,Asset Management Services,Supplies and Services,Advertising,211,28/10/2016,1610-00330,0.00,550.00,R,Aerial Republic Limited,No
Http://opendatacommunities.org/id/metropolitan-district-council/leeds,Leeds City Council,31/10/2016,Citizens and Communities,Customer Access,Supplies and Services,Other Hired And Contracted Services,265,03/10/2016,1610-00331,0.00,12.00,R,Afbedel Ltd,No
Http://opendatacommunities.org/id/metropolitan-district-council/leeds,Leeds City Council,31/10/2016,Adult Social Care,Services For Older People Under 65 P/Dis,Third Party Payments,Home Care,568,03/10/2016,1610-00332,0.00,526.68,R,Affinity Trust,No
Http://opendatacommunities.org/id/metropolitan-district-council/leeds,Leeds City Council as Accountable Body,31/10/2016,Social Services Pooled Budgets,Jcs For People With Learning Disabilitie,Third Party Payments,Home Care,568,31/10/2016,1610-00333,0.00,-85.16,R,Affinity Trust,No
Http://opendatacommunities.org/id/metropolitan-district-council/leeds,Leeds City Council,31/10/2016,Adult Social Care,Services For Older People Under 65 P/Dis,Third Party Payments,Home Care,568,31/10/2016,1610-00334,0.00,526.68,R,Affinity Trust,No
Http://opendatacommunities.org/id/metropolitan-district-council/leeds,Leeds City Council,31/10/2016,Adult Social Care,Services For Older People Under 65 P/Dis,Third Party Payments,Home Care,568,31/10/2016,1610-00335,0.00,134.56,R,Affinity Trust,No
Http://opendatacommunities.org/id/metropolitan-district-council/leeds,Leeds City Council as Accountable Body,31/10/2016,Social Services Pooled Budgets,Jcs For People With Learning Disabilitie,Third Party Payments,Home Care,568,31/10/2016,1610-00336,0.00,-456.63,R,Affinity Trust,No
Http://opendatacommunities.org/id/metropolitan-district-council/leeds,Leeds City Council as Accountable Body,31/10/2016,Social Services Pooled Budgets,Jcs For People With Learning Disabilitie,Third Party Payments,Sheltered Accommodation,569,19/10/2016,1610-00337,0.00,106555.80,R,Affinity Trust North Divisional Office,No
Http://opendatacommunities.org/id/metropolitan-district-council/leeds,Leeds City Council,31/10/2016,Environment & Housing,Parks And Countryside  ,Transport,Hire Of Movable Plant & Machinery,315,13/09/2016,1610-00338,0.00,5145.40,R,Afi Uplift Ltd,Yes
Http://opendatacommunities.org/id/metropolitan-district-council/leeds,Leeds City Council,31/10/2016,Childrens Services,Safeguarding Targeted & Specialist,Third Party Payments,Interagency Adoptions,559,21/10/2016,1610-00339,0.00,18000.00,R,After Adoption,No
Http://opendatacommunities.org/id/metropolitan-district-council/leeds,Leeds City Council,31/10/2016,Childrens Services,Safeguarding Targeted & Specialist,Third Party Payments,Interagency Adoptions,559,21/10/2016,1610-00340,0.00,9000.00,R,After Adoption,No
Http://opendatacommunities.org/id/metropolitan-district-council/leeds,Leeds City Council,31/10/2016,Environment & Housing,SP Contracts & SECC,Third Party Payments,Supporting Ppl - Block Gross Chargeable,514,28/10/2016,1610-00341,0.00,3957.68,R,Age Uk Leeds,No
Http://opendatacommunities.org/id/metropolitan-district-council/leeds,Leeds City Council,31/10/2016,Insurance,Insurance,Supplies and Services,Insurance Claims,248,10/10/2016,1610-00342,0.00,1360.58,R,Ageas Insurance Limited,No
Http://opendatacommunities.org/id/metropolitan-district-council/leeds,Leeds City Council,31/10/2016,City Development,Libraries  Arts & Heritage,Supplies and Services,Bought In Professional Services,277,31/10/2016,1610-00343,0.00,1000.00,R,Agere Learning,No
Http://opendatacommunities.org/id/metropolitan-district-council/leeds,Leeds City Council,31/10/2016,Adult Social Care,Services For Older People Under 65 P/Dis,Third Party Payments,Residential,580,19/10/2016,1610-00344,0.00,5598.40,R,Agricola House,No
Http://opendatacommunities.org/id/metropolitan-district-council/leeds,Leeds City Council,31/10/2016,Childrens Services,Learning Skills & Universal,Supplies and Services,Teaching Materials,202,18/10/2016,1610-00345,0.00,187.50,R,Aid Training & Operations Ltd,No
Http://opendatacommunities.org/id/metropolitan-district-council/leeds,Leeds City Council,31/10/2016,Childrens Services,Learning Skills & Universal,Supplies and Services,Teaching Materials,202,21/10/2016,1610-00346,0.00,49.94,R,Aid Training & Operations Ltd,No
Http://opendatacommunities.org/id/metropolitan-district-council/leeds,Leeds City Council,31/10/2016,Childrens Services,Safeguarding Targeted & Specialist,Transfer Payments,16 Plus Top Up Allowance,625,27/10/2016,1610-00347,0.00,60.00,R,REDACTED PERSONAL DATA,No
Http://opendatacommunities.org/id/metropolitan-district-council/leeds,Leeds City Council as Accountable Body,31/10/2016,Social Services Pooled Budgets,Leeds Community Equip Store Pooled Budgt,Supplies and Services,Other Equipment,203,07/10/2016,1610-00348,0.00,-101.12,R,Aidapt Bathrooms Ltd,No
Http://opendatacommunities.org/id/metropolitan-district-council/leeds,Leeds City Council as Accountable Body,31/10/2016,Social Services Pooled Budgets,Leeds Community Equip Store Pooled Budgt,Supplies and Services,Other Equipment,203,07/10/2016,1610-00349,0.00,2602.40,R,Aidapt Bathrooms Ltd,No
Http://opendatacommunities.org/id/metropolitan-district-council/leeds,Leeds City Council as Accountable Body,31/10/2016,Social Services Pooled Budgets,Leeds Community Equip Store Pooled Budgt,Supplies and Services,Other Equipment,203,13/10/2016,1610-00350,0.00,224.00,R,Aidapt Bathrooms Ltd,No
Http://opendatacommunities.org/id/metropolitan-district-council/leeds,Leeds City Council as Accountable Body,31/10/2016,Social Services Pooled Budgets,Leeds Community Equip Store Pooled Budgt,Supplies and Services,Other Equipment,203,13/10/2016,1610-00351,0.00,158.79,R,Aidapt Bathrooms Ltd,No
Http://opendatacommunities.org/id/metropolitan-district-council/leeds,Leeds City Council as Accountable Body,31/10/2016,Social Services Pooled Budgets,Leeds Community Equip Store Pooled Budgt,Supplies and Services,Other Equipment,203,14/10/2016,1610-00352,0.00,1325.00,R,Aidapt Bathrooms Ltd,No
Http://opendatacommunities.org/id/metropolitan-district-council/leeds,Leeds City Council as Accountable Body,31/10/2016,Social Services Pooled Budgets,Leeds Community Equip Store Pooled Budgt,Supplies and Services,Other Equipment,203,21/10/2016,1610-00353,0.00,137.50,R,Aidapt Bathrooms Ltd,No
Http://opendatacommunities.org/id/metropolitan-district-council/leeds,Leeds City Council as Accountable Body,31/10/2016,Social Services Pooled Budgets,Leeds Community Equip Store Pooled Budgt,Supplies and Services,Other Equipment,203,27/10/2016,1610-00354,0.00,1675.52,R,Aidapt Bathrooms Ltd,No
Http://opendatacommunities.org/id/metropolitan-district-council/leeds,Leeds City Council as Accountable Body,31/10/2016,Social Services Pooled Budgets,Jcs For People With Learning Disabilitie,Third Party Payments,Home Care,568,27/10/2016,1610-00355,0.00,54.90,R,Aid-Call Ltd,No
Http://opendatacommunities.org/id/metropolitan-district-council/leeds,Leeds City Council as Accountable Body,31/10/2016,Social Services Pooled Budgets,Jcs For People With Learning Disabilitie,Supplies and Services,Other Equipment,203,07/10/2016,1610-00356,0.00,2045.00,R,Aidservice Ltd,No
Http://opendatacommunities.org/id/metropolitan-district-council/leeds,Leeds City Council as Accountable Body,31/10/2016,Social Services Pooled Budgets,Jcs For People With Learning Disabilitie,Supplies and Services,Other Equipment,203,28/10/2016,1610-00357,0.00,394.00,R,Aidservice Ltd,No
Http://opendatacommunities.org/id/metropolitan-district-council/leeds,Leeds City Council,31/10/2016,Environment & Housing,Leeds Building Services,Supplies and Services,Operational Materials,205,10/10/2016,1610-00358,0.00,33.00,R,Air Conditioning Accessories,No
Http://opendatacommunities.org/id/metropolitan-district-council/leeds,Leeds City Council,31/10/2016,Environment & Housing,Leeds Building Services,Supplies and Services,Operational Materials,205,10/10/2016,1610-00359,0.00,47.80,R,Air Conditioning Accessories,No
Http://opendatacommunities.org/id/metropolitan-district-council/leeds,Leeds City Council,31/10/2016,Environment & Housing,Leeds Building Services,Supplies and Services,Operational Materials,205,10/10/2016,1610-00360,0.00,51.84,R,Air Conditioning Accessories,No
Http://opendatacommunities.org/id/metropolitan-district-council/leeds,Leeds City Council,31/10/2016,Environment & Housing,Leeds Building Services,Supplies and Services,Operational Materials,205,10/10/2016,1610-00361,0.00,75.00,R,Air Conditioning Accessories,No
Http://opendatacommunities.org/id/metropolitan-district-council/leeds,Leeds City Council,31/10/2016,Environment & Housing,Leeds Building Services,Supplies and Services,Operational Materials,205,10/10/2016,1610-00362,0.00,98.00,R,Air Conditioning Accessories,No
Http://opendatacommunities.org/id/metropolitan-district-council/leeds,Leeds City Council,31/10/2016,Environment & Housing,Leeds Building Services,Supplies and Services,Operational Materials,205,14/10/2016,1610-00363,0.00,43.10,R,Air Conditioning Accessories,No
Http://opendatacommunities.org/id/metropolitan-district-council/leeds,Leeds City Council,31/10/2016,Environment & Housing,Leeds Building Services,Supplies and Services,Operational Materials,205,24/10/2016,1610-00364,0.00,193.70,R,Air Conditioning Accessories,No
Http://opendatacommunities.org/id/metropolitan-district-council/leeds,Leeds City Council,31/10/2016,Environment & Housing,Leeds Building Services,Supplies and Services,Operational Materials,205,24/10/2016,1610-00365,0.00,904.00,R,Air Conditioning Accessories,No
Http://opendatacommunities.org/id/metropolitan-district-council/leeds,Leeds City Council,31/10/2016,Environment & Housing,Leeds Building Services,Supplies and Services,Operational Materials,205,24/10/2016,1610-00366,0.00,357.76,R,Air Conditioning Accessories,No
Http://opendatacommunities.org/id/metropolitan-district-council/leeds,Leeds City Council,31/10/2016,Environment & Housing,Leeds Building Services,Supplies and Services,Operational Materials,205,24/10/2016,1610-00367,0.00,278.08,R,Air Conditioning Accessories,No
Http://opendatacommunities.org/id/metropolitan-district-council/leeds,Leeds City Council,31/10/2016,Environment & Housing,Leeds Building Services,Supplies and Services,Operational Materials,205,24/10/2016,1610-00368,0.00,411.10,R,Air Conditioning Accessories,No
Http://opendatacommunities.org/id/metropolitan-district-council/leeds,Leeds City Council,31/10/2016,Environment & Housing,Leeds Building Services,Supplies and Services,Operational Materials,205,24/10/2016,1610-00369,0.00,6.78,R,Air Conditioning Accessories,No
Http://opendatacommunities.org/id/metropolitan-district-council/leeds,Leeds City Council,31/10/2016,Environment & Housing,Leeds Building Services,Supplies and Services,Operational Materials,205,24/10/2016,1610-00370,0.00,53.96,R,Air Conditioning Accessories,No
Http://opendatacommunities.org/id/metropolitan-district-council/leeds,Leeds City Council,31/10/2016,Environment & Housing,Leeds Building Services,Supplies and Services,Operational Materials,205,24/10/2016,1610-00371,0.00,179.50,R,Air Conditioning Accessories,No
Http://opendatacommunities.org/id/metropolitan-district-council/leeds,Leeds City Council,31/10/2016,Environment & Housing,Leeds Building Services,Supplies and Services,Operational Materials,205,28/10/2016,1610-00372,0.00,428.60,R,Air Conditioning Accessories,No
Http://opendatacommunities.org/id/metropolitan-district-council/leeds,Leeds City Council,31/10/2016,Environment & Housing,Leeds Building Services,Supplies and Services,Operational Materials,205,28/10/2016,1610-00373,0.00,123.92,R,Air Conditioning Accessories,No
Http://opendatacommunities.org/id/metropolitan-district-council/leeds,Leeds City Council,31/10/2016,Environment & Housing,Leeds Building Services,Supplies and Services,Operational Materials,205,28/10/2016,1610-00374,0.00,12.53,R,Air Conditioning Accessories,No
Http://opendatacommunities.org/id/metropolitan-district-council/leeds,Leeds City Council,31/10/2016,Environment & Housing,Leeds Building Services,Supplies and Services,Operational Materials,205,28/10/2016,1610-00375,0.00,202.96,R,Air Conditioning Accessories,No
Http://opendatacommunities.org/id/metropolitan-district-council/leeds,Leeds City Council,31/10/2016,Civic Enterprise Leeds,Commercial Services  ,Supplies and Services,Operational Materials,205,08/09/2016,1610-00376,0.00,222.95,R,Air Force Pneumati,Yes
Http://opendatacommunities.org/id/metropolitan-district-council/leeds,Leeds City Council,31/10/2016,Environment & Housing,Leeds Building Services,Supplies and Services,Operational Materials,205,13/10/2016,1610-00377,0.00,22.20,R,Air Force Pneumatics & Hydraulics,No
Http://opendatacommunities.org/id/metropolitan-district-council/leeds,Leeds City Council,31/10/2016,Environment & Housing,Environmental Health,Supplies and Services,Operational Furniture And Equipment,203,05/10/2016,1610-00378,0.00,62.58,R,Air Liquide Uk,No
Http://opendatacommunities.org/id/metropolitan-district-council/leeds,Leeds City Council,31/10/2016,Environment & Housing,Environmental Health,Supplies and Services,Operational Furniture And Equipment,203,06/10/2016,1610-00379,0.00,13.63,R,Air Liquide Uk,No
Http://opendatacommunities.org/id/metropolitan-district-council/leeds,Leeds City Council,31/10/2016,Environment & Housing,Environmental Health,Supplies and Services,Operational Furniture And Equipment,203,06/10/2016,1610-00380,0.00,13.63,R,Air Liquide Uk,No
Http://opendatacommunities.org/id/metropolitan-district-council/leeds,Leeds City Council,31/10/2016,Environment & Housing,Leeds Building Services,Supplies and Services,Operational Materials,205,10/10/2016,1610-00381,0.00,152.40,R,Air Liquide Uk,No
Http://opendatacommunities.org/id/metropolitan-district-council/leeds,Leeds City Council,31/10/2016,Environment & Housing,Environmental Health,Supplies and Services,Operational Furniture And Equipment,203,10/10/2016,1610-00382,0.00,442.00,R,Air Liquide Uk,No
Http://opendatacommunities.org/id/metropolitan-district-council/leeds,Leeds City Council,31/10/2016,Environment & Housing,Environmental Health,Supplies and Services,Operational Furniture And Equipment,203,10/10/2016,1610-00383,0.00,442.00,R,Air Liquide Uk,No
Http://opendatacommunities.org/id/metropolitan-district-council/leeds,Leeds City Council,31/10/2016,Environment & Housing,Leeds Building Services,Supplies and Services,Operational Furniture And Equipment,203,20/10/2016,1610-00384,0.00,159.72,R,Air Liquide Uk,No
Http://opendatacommunities.org/id/metropolitan-district-council/leeds,Leeds City Council,31/10/2016,Environment & Housing,Environmental Health,Supplies and Services,Other Hired And Contracted Services,265,07/10/2016,1610-00385,0.00,248.00,R,Air Monitors Ltd,No
Http://opendatacommunities.org/id/metropolitan-district-council/leeds,Leeds City Council,31/10/2016,Adult Social Care,Services For Adults Under 65 Mental/Dis,Third Party Payments,Residential,580,19/10/2016,1610-00386,0.00,6028.00,R,Aire House,No
Http://opendatacommunities.org/id/metropolitan-district-council/leeds,Leeds City Council as Accountable Body,31/10/2016,Social Services Pooled Budgets,Jcs For People With Learning Disabilitie,Third Party Payments,Residential,580,19/10/2016,1610-00387,0.00,3059.84,R,Aire House,No
Http://opendatacommunities.org/id/metropolitan-district-council/leeds,Leeds City Council,31/10/2016,City Development,Economic Development,Capital,Other Costs,7,03/10/2016,1610-00388,0.00,212461.82,C,Aire Valley Land Llp,No
Http://opendatacommunities.org/id/metropolitan-district-council/leeds,Leeds City Council,31/10/2016,Adult Social Care,Services For Older People - 65 And Over,Third Party Payments,Residential Care Dementia,571,19/10/2016,1610-00389,0.00,56989.89,R,Aire View Residential Home,No
Http://opendatacommunities.org/id/metropolitan-district-council/leeds,Leeds City Council,31/10/2016,Adult Social Care,Services For Older People - 65 And Over,Third Party Payments,Residential,580,19/10/2016,1610-00390,0.00,13693.26,R,Aire View Residential Home,No
Http://opendatacommunities.org/id/metropolitan-district-council/leeds,Leeds City Council,31/10/2016,Citizens and Communities,Communities,Supplies and Services,'Well Being' Large Grants Projects,230,12/10/2016,1610-00391,0.00,1622.00,R,Aireborough Supported Activities Scheme,No
Http://opendatacommunities.org/id/metropolitan-district-council/leeds,Leeds City Council,31/10/2016,Childrens Services,Safeguarding Targeted & Specialist,Third Party Payments,Services Rendered By Voluntary Sector,505,19/10/2016,1610-00392,0.00,12125.00,R,Aireborough Supported Activities Scheme,No
Http://opendatacommunities.org/id/metropolitan-district-council/leeds,Leeds City Council,31/10/2016,Childrens Services,Safeguarding Targeted & Specialist,Third Party Payments,Services Rendered By Voluntary Sector,505,19/10/2016,1610-00393,0.00,16330.00,R,Aireborough Supported Activities Scheme,No
Http://opendatacommunities.org/id/metropolitan-district-council/leeds,Leeds City Council,31/10/2016,Adult Social Care,Services For Older People - 65 And Over,Third Party Payments,Residential Care Dementia,571,19/10/2016,1610-00394,0.00,1806.65,R,Airedale (Goldsborough),No
Http://opendatacommunities.org/id/metropolitan-district-council/leeds,Leeds City Council,31/10/2016,Adult Social Care,Services For Older People - 65 And Over,Third Party Payments,Residential,580,19/10/2016,1610-00395,0.00,19030.07,R,Airedale (Goldsborough),No
Http://opendatacommunities.org/id/metropolitan-district-council/leeds,Leeds City Council,31/10/2016,Adult Social Care,Services For Older People Under 65 P/Dis,Third Party Payments,Residential,580,19/10/2016,1610-00396,0.00,1948.18,R,Airedale (Goldsborough),No
Http://opendatacommunities.org/id/metropolitan-district-council/leeds,Leeds City Council,31/10/2016,City Development,Economic Development,Supplies and Services,Grants To Businesses,243,25/10/2016,1610-00397,0.00,26032.00,R,Airedale House Ltd,No
Http://opendatacommunities.org/id/metropolitan-district-council/leeds,Leeds City Council,31/10/2016,Civic Enterprise Leeds,Commercial Services,Supplies and Services,Other Hired And Contracted Services,265,07/10/2016,1610-00398,0.00,101.25,R,Air-Weigh Europe Limited,No
Http://opendatacommunities.org/id/metropolitan-district-council/leeds,Leeds City Council,31/10/2016,Civic Enterprise Leeds,Commercial Services,Supplies and Services,Other Hired And Contracted Services,265,07/10/2016,1610-00399,0.00,101.25,R,Air-Weigh Europe Limited,No
Http://opendatacommunities.org/id/metropolitan-district-council/leeds,Leeds City Council,31/10/2016,Civic Enterprise Leeds,Commercial Services,Supplies and Services,Other Hired And Contracted Services,265,07/10/2016,1610-00400,0.00,101.25,R,Air-Weigh Europe Limited,No
Http://opendatacommunities.org/id/metropolitan-district-council/leeds,Leeds City Council,31/10/2016,Civic Enterprise Leeds,Commercial Services,Supplies and Services,Other Hired And Contracted Services,265,07/10/2016,1610-00401,0.00,101.25,R,Air-Weigh Europe Limited,No
Http://opendatacommunities.org/id/metropolitan-district-council/leeds,Leeds City Council,31/10/2016,Civic Enterprise Leeds,Commercial Services,Supplies and Services,Other Hired And Contracted Services,265,07/10/2016,1610-00402,0.00,101.25,R,Air-Weigh Europe Limited,No
Http://opendatacommunities.org/id/metropolitan-district-council/leeds,Leeds City Council,31/10/2016,Civic Enterprise Leeds,Commercial Services,Supplies and Services,Other Hired And Contracted Services,265,07/10/2016,1610-00403,0.00,101.25,R,Air-Weigh Europe Limited,No
Http://opendatacommunities.org/id/metropolitan-district-council/leeds,Leeds City Council,31/10/2016,Civic Enterprise Leeds,Commercial Services,Supplies and Services,Other Hired And Contracted Services,265,07/10/2016,1610-00404,0.00,101.25,R,Air-Weigh Europe Limited,No
Http://opendatacommunities.org/id/metropolitan-district-council/leeds,Leeds City Council,31/10/2016,Civic Enterprise Leeds,Commercial Services,Supplies and Services,Other Hired And Contracted Services,265,07/10/2016,1610-00405,0.00,101.25,R,Air-Weigh Europe Limited,No
Http://opendatacommunities.org/id/metropolitan-district-council/leeds,Leeds City Council,31/10/2016,Civic Enterprise Leeds,Commercial Services,Supplies and Services,Other Hired And Contracted Services,265,07/10/2016,1610-00406,0.00,101.25,R,Air-Weigh Europe Limited,No
Http://opendatacommunities.org/id/metropolitan-district-council/leeds,Leeds City Council,31/10/2016,Civic Enterprise Leeds,Commercial Services,Supplies and Services,Other Hired And Contracted Services,265,07/10/2016,1610-00407,0.00,101.25,R,Air-Weigh Europe Limited,No
Http://opendatacommunities.org/id/metropolitan-district-council/leeds,Leeds City Council,31/10/2016,Civic Enterprise Leeds,Commercial Services,Supplies and Services,Other Hired And Contracted Services,265,07/10/2016,1610-00408,0.00,101.25,R,Air-Weigh Europe Limited,No
Http://opendatacommunities.org/id/metropolitan-district-council/leeds,Leeds City Council,31/10/2016,Civic Enterprise Leeds,Commercial Services,Supplies and Services,Other Hired And Contracted Services,265,07/10/2016,1610-00409,0.00,101.25,R,Air-Weigh Europe Limited,No
Http://opendatacommunities.org/id/metropolitan-district-council/leeds,Leeds City Council,31/10/2016,Civic Enterprise Leeds,Commercial Services,Supplies and Services,Other Hired And Contracted Services,265,28/10/2016,1610-00410,0.00,180.00,R,Air-Weigh Europe Limited,No
Http://opendatacommunities.org/id/metropolitan-district-council/leeds,Leeds City Council,31/10/2016,Adult Social Care,Services For Adults Under 65 Mental/Dis,Third Party Payments,Fees - Level 4,520,03/10/2016,1610-00411,0.00,175.00,R,Ait Mitra,No
Http://opendatacommunities.org/id/metropolitan-district-council/leeds,Leeds City Council,31/10/2016,Adult Social Care,Services For Adults Under 65 Mental/Dis,Third Party Payments,Fees - Level 4,520,03/10/2016,1610-00412,0.00,175.00,R,Ait Mitra,No
Http://opendatacommunities.org/id/metropolitan-district-council/leeds,Leeds City Council,31/10/2016,Adult Social Care,Services For Adults Under 65 Mental/Dis,Third Party Payments,Fees - Level 4,520,03/10/2016,1610-00413,0.00,175.00,R,Ait Mitra,No
Http://opendatacommunities.org/id/metropolitan-district-council/leeds,Leeds City Council,31/10/2016,Adult Social Care,Services For Adults Under 65 Mental/Dis,Third Party Payments,Fees - Level 4,520,21/10/2016,1610-00414,0.00,175.00,R,Ait Mitra,No
Http://opendatacommunities.org/id/metropolitan-district-council/leeds,Leeds City Council,31/10/2016,Adult Social Care,Services For Adults Under 65 Mental/Dis,Third Party Payments,Fees - Level 4,520,21/10/2016,1610-00415,0.00,175.00,R,Ait Mitra,No
Http://opendatacommunities.org/id/metropolitan-district-council/leeds,Leeds City Council,31/10/2016,Adult Social Care,Services For Adults Under 65 Mental/Dis,Third Party Payments,Fees - Level 4,520,21/10/2016,1610-00416,0.00,175.00,R,Ait Mitra,No
Http://opendatacommunities.org/id/metropolitan-district-council/leeds,Leeds City Council,31/10/2016,Adult Social Care,Services For Adults Under 65 Mental/Dis,Third Party Payments,Fees - Level 4,520,28/10/2016,1610-00417,0.00,175.00,R,Ait Mitra,No
Http://opendatacommunities.org/id/metropolitan-district-council/leeds,Leeds City Council as Accountable Body,31/10/2016,Social Services Pooled Budgets,Jcs For People With Learning Disabilitie,Third Party Payments,Residential,580,19/10/2016,1610-00418,0.00,6173.24,R,Aitch Care Homes,No
Http://opendatacommunities.org/id/metropolitan-district-council/leeds,Leeds City Council,31/10/2016,Environment & Housing,Parks and Countryside,Supplies and Services,Operational Materials,205,07/10/2016,1610-00419,0.00,1065.00,R,Aitkens Sportsturf Ltd,No
Http://opendatacommunities.org/id/metropolitan-district-council/leeds,Leeds City Council,31/10/2016,Environment & Housing,Parks and Countryside,Supplies and Services,Operational Materials,205,13/10/2016,1610-00420,0.00,150.00,R,Aitkens Sportsturf Ltd,No
Http://opendatacommunities.org/id/metropolitan-district-council/leeds,Leeds City Council,31/10/2016,Environment & Housing,Parks and Countryside,Supplies and Services,Other Hired And Contracted Services,265,28/10/2016,1610-00421,0.00,119.90,R,Aitkens Sportsturf Ltd,No
Http://opendatacommunities.org/id/metropolitan-district-council/leeds,Leeds City Council,31/10/2016,Environment & Housing,Parks and Countryside,Supplies and Services,Operational Materials,205,28/10/2016,1610-00422,0.00,1030.75,R,Aitkens Sportsturf Ltd,No
Http://opendatacommunities.org/id/metropolitan-district-council/leeds,Leeds City Council,31/10/2016,Adult Social Care,Services For Older People - 65 And Over,Third Party Payments,Home Care,568,14/10/2016,1610-00423,0.00,4378.04,R,Aj Social Care,No
Http://opendatacommunities.org/id/metropolitan-district-council/leeds,Leeds City Council,31/10/2016,Adult Social Care,Services For Older People Under 65 P/Dis,Third Party Payments,Home Care,568,14/10/2016,1610-00424,0.00,4042.94,R,Aj Social Care,No
Http://opendatacommunities.org/id/metropolitan-district-council/leeds,Leeds City Council,31/10/2016,Adult Social Care,Services For Older People - 65 And Over,Third Party Payments,Home Care,568,14/10/2016,1610-00425,0.00,16536.20,R,Aj Social Care,No
Http://opendatacommunities.org/id/metropolitan-district-council/leeds,Leeds City Council,31/10/2016,Adult Social Care,Services For Older People Under 65 P/Dis,Third Party Payments,Home Care,568,14/10/2016,1610-00426,0.00,4637.14,R,Aj Social Care,No
Http://opendatacommunities.org/id/metropolitan-district-council/leeds,Leeds City Council,31/10/2016,Adult Social Care,Services For Older People Under 65 P/Dis,Third Party Payments,Home Care,568,28/10/2016,1610-00427,0.00,31.96,R,Aj Social Care,No
Http://opendatacommunities.org/id/metropolitan-district-council/leeds,Leeds City Council,31/10/2016,Environment & Housing,Leeds Building Services,Supplies and Services,Operational Furniture And Equipment,203,13/10/2016,1610-00428,0.00,325.00,R,Ajm Fixings & Power Tools Ltd,No
Http://opendatacommunities.org/id/metropolitan-district-council/leeds,Leeds City Council,31/10/2016,Environment & Housing,Leeds Building Services,Supplies and Services,Operational Furniture And Equipment,203,13/10/2016,1610-00429,0.00,49.50,R,Ajm Fixings & Power Tools Ltd,No
Http://opendatacommunities.org/id/metropolitan-district-council/leeds,Leeds City Council,31/10/2016,Environment & Housing,Leeds Building Services,Supplies and Services,Stores - Central And Other Depots,005,13/10/2016,1610-00430,0.00,875.80,R,Ajm Fixings & Power Tools Ltd,No
Http://opendatacommunities.org/id/metropolitan-district-council/leeds,Leeds City Council,31/10/2016,Environment & Housing,Leeds Building Services,Supplies and Services,Operational Furniture And Equipment,203,13/10/2016,1610-00431,0.00,149.00,R,Ajm Fixings & Power Tools Ltd,No
Http://opendatacommunities.org/id/metropolitan-district-council/leeds,Leeds City Council,31/10/2016,Environment & Housing,Leeds Building Services,Supplies and Services,Operational Furniture And Equipment,203,14/10/2016,1610-00432,0.00,382.16,R,Ajm Fixings & Power Tools Ltd,No
Http://opendatacommunities.org/id/metropolitan-district-council/leeds,Leeds City Council,31/10/2016,Environment & Housing,Leeds Building Services,Supplies and Services,Operational Furniture And Equipment,203,17/10/2016,1610-00433,0.00,404.00,R,Ajm Fixings & Power Tools Ltd,No
Http://opendatacommunities.org/id/metropolitan-district-council/leeds,Leeds City Council,31/10/2016,Environment & Housing,Leeds Building Services,Supplies and Services,Operational Furniture And Equipment,203,17/10/2016,1610-00434,0.00,129.00,R,Ajm Fixings & Power Tools Ltd,No
Http://opendatacommunities.org/id/metropolitan-district-council/leeds,Leeds City Council,31/10/2016,Environment & Housing,Leeds Building Services,Supplies and Services,Operational Furniture And Equipment,203,24/10/2016,1610-00435,0.00,19.50,R,Ajm Fixings & Power Tools Ltd,No
Http://opendatacommunities.org/id/metropolitan-district-council/leeds,Leeds City Council,31/10/2016,Adult Social Care,Services For Older People - 65 And Over,Third Party Payments,Nursing Home,570,19/10/2016,1610-00436,0.00,1261.04,R,Akari Care Ltd,No
Http://opendatacommunities.org/id/metropolitan-district-council/leeds,Leeds City Council,31/10/2016,Childrens Services,Safeguarding Targeted & Specialist,Transport,Public Transport Expenses,310,17/10/2016,1610-00437,0.00,28.80,R,REDACTED PERSONAL DATA,No
Http://opendatacommunities.org/id/metropolitan-district-council/leeds,Leeds City Council,31/10/2016,Environment & Housing,Leeds Building Services,Supplies and Services,Operational Materials,205,14/10/2016,1610-00438,0.00,114.08,R,Akw Medicare Ltd,No
Http://opendatacommunities.org/id/metropolitan-district-council/leeds,Leeds City Council,31/10/2016,Central & Corporate,Democratic Services  ,Supplies and Services,Other Hired And Contracted Services,265,13/09/2016,1610-00439,0.00,50.00,R,Alan Brown Flowers,Yes
Http://opendatacommunities.org/id/metropolitan-district-council/leeds,Leeds City Council,31/10/2016,Central & Corporate,Democratic Services  ,Premises,Grounds Maintenance Work,111,22/09/2016,1610-00440,0.00,25.00,R,Alan Brown Flowers,Yes
Http://opendatacommunities.org/id/metropolitan-district-council/leeds,Leeds City Council,31/10/2016,Central & Corporate,Democratic Services  ,Premises,Grounds Maintenance Work,111,27/09/2016,1610-00441,0.00,175.00,R,Alan Brown Flowers,Yes
Http://opendatacommunities.org/id/metropolitan-district-council/leeds,Leeds City Council,31/10/2016,Childrens Services,Learning Skills & Universal,Third Party Payments,Services Rendered By Other Organisations,511,28/10/2016,1610-00442,0.00,40.33,R,Alanna Cardiss,No
Http://opendatacommunities.org/id/metropolitan-district-council/leeds,Leeds City Council,31/10/2016,City Development,Recreation,Income,Sporting & Other Recreational Fees,928,20/10/2016,1610-00443,0.00,71.57,R,REDACTED PERSONAL DATA,No
Http://opendatacommunities.org/id/metropolitan-district-council/leeds,Leeds City Council as Accountable Body,31/10/2016,Social Services Pooled Budgets,Leeds Community Equip Store Pooled Budgt,Supplies and Services,Other Equipment,203,17/10/2016,1610-00444,0.00,-158.00,R,Albion Electric Stores Ltd,No
Http://opendatacommunities.org/id/metropolitan-district-council/leeds,Leeds City Council as Accountable Body,31/10/2016,Social Services Pooled Budgets,Leeds Community Equip Store Pooled Budgt,Supplies and Services,Other Equipment,203,21/10/2016,1610-00445,0.00,158.00,R,Albion Electric Stores Ltd,No
Http://opendatacommunities.org/id/metropolitan-district-council/leeds,Leeds City Council as Accountable Body,31/10/2016,Social Services Pooled Budgets,Leeds Community Equip Store Pooled Budgt,Supplies and Services,Other Equipment,203,21/10/2016,1610-00446,0.00,244.60,R,Albion Electric Stores Ltd,No
Http://opendatacommunities.org/id/metropolitan-district-council/leeds,Leeds City Council,31/10/2016,Environment & Housing,Waste Management,Supplies and Services,Other Hired And Contracted Services,265,28/10/2016,1610-00447,0.00,136.00,R,Alcontrol Uk Ltd,No
Http://opendatacommunities.org/id/metropolitan-district-council/leeds,Leeds City Council,31/10/2016,Childrens Services,Learning Skills & Universal  ,Supplies and Services,Operational Materials,205,10/09/2016,1610-00448,0.00,7.21,R,Aldi,Yes
Http://opendatacommunities.org/id/metropolitan-district-council/leeds,Leeds City Council,31/10/2016,City Development,Recreation  ,Supplies and Services,Food & Drink,231,29/09/2016,1610-00449,0.00,5.78,R,Aldi,Yes
Http://opendatacommunities.org/id/metropolitan-district-council/leeds,Leeds City Council,31/10/2016,City Development,Libraries  Arts & Heritage,Income,Admissions  Booking Fees & Ticket Sales,933,05/10/2016,1610-00450,0.00,2626.00,R,Alechemy Brewing,No
Http://opendatacommunities.org/id/metropolitan-district-council/leeds,Leeds City Council,31/10/2016,City Development,Libraries  Arts & Heritage,Income,Non Dwelling Rents,952,05/10/2016,1610-00451,0.00,-393.90,R,Alechemy Brewing,No
Http://opendatacommunities.org/id/metropolitan-district-council/leeds,Leeds City Council,31/10/2016,Childrens Services,Safeguarding Targeted & Specialist,Support Services,Legal Disbursements,411,06/10/2016,1610-00452,0.00,133.40,R,Alere Toxicology Plc,No
Http://opendatacommunities.org/id/metropolitan-district-council/leeds,Leeds City Council,31/10/2016,Childrens Services,Safeguarding Targeted & Specialist,Support Services,Legal Disbursements,411,07/10/2016,1610-00453,0.00,118.06,R,Alere Toxicology Plc,No
Http://opendatacommunities.org/id/metropolitan-district-council/leeds,Leeds City Council,31/10/2016,Childrens Services,Safeguarding Targeted & Specialist,Support Services,Legal Disbursements,411,07/10/2016,1610-00454,0.00,147.95,R,Alere Toxicology Plc,No
Http://opendatacommunities.org/id/metropolitan-district-council/leeds,Leeds City Council,31/10/2016,Childrens Services,Safeguarding Targeted & Specialist,Support Services,Legal Disbursements,411,27/10/2016,1610-00455,0.00,23.75,R,Alere Toxicology Plc,No
Http://opendatacommunities.org/id/metropolitan-district-council/leeds,Leeds City Council,31/10/2016,Insurance,Insurance,Supplies and Services,Other Hired And Contracted Services,265,27/10/2016,1610-00456,0.00,7978.20,R,Alex Milne Law Costing Services Ltd,No
Http://opendatacommunities.org/id/metropolitan-district-council/leeds,Leeds City Council,31/10/2016,Childrens Services,Learning Skills & Universal,Supplies and Services,Training Allowances,257,07/10/2016,1610-00457,0.00,255.59,R,REDACTED PERSONAL DATA,No
Http://opendatacommunities.org/id/metropolitan-district-council/leeds,Leeds City Council,31/10/2016,Childrens Services,Learning Skills & Universal,Supplies and Services,Training Allowances,257,13/10/2016,1610-00458,0.00,264.84,R,REDACTED PERSONAL DATA,No
Http://opendatacommunities.org/id/metropolitan-district-council/leeds,Leeds City Council,31/10/2016,Childrens Services,Learning Skills & Universal,Supplies and Services,Training Allowances,257,21/10/2016,1610-00459,0.00,264.84,R,REDACTED PERSONAL DATA,No
Http://opendatacommunities.org/id/metropolitan-district-council/leeds,Leeds City Council,31/10/2016,Childrens Services,Learning Skills & Universal,Supplies and Services,Training Allowances,257,27/10/2016,1610-00460,0.00,264.84,R,REDACTED PERSONAL DATA,No
Http://opendatacommunities.org/id/metropolitan-district-council/leeds,Leeds City Council,31/10/2016,Childrens Services,Safeguarding Targeted & Specialist,Support Services,Legal Disbursements,411,03/10/2016,1610-00461,0.00,812.00,R,Alex Taylor,No
Http://opendatacommunities.org/id/metropolitan-district-council/leeds,Leeds City Council,31/10/2016,Childrens Services,Safeguarding Targeted & Specialist,Support Services,Legal Disbursements,411,04/10/2016,1610-00462,0.00,361.00,R,Alex Taylor,No
Http://opendatacommunities.org/id/metropolitan-district-council/leeds,Leeds City Council,31/10/2016,Childrens Services,Safeguarding Targeted & Specialist,Support Services,Legal Disbursements,411,14/10/2016,1610-00463,0.00,3204.00,R,Alex Taylor,No
Http://opendatacommunities.org/id/metropolitan-district-council/leeds,Leeds City Council,31/10/2016,Adult Social Care,Services For Older People - 65 And Over,Third Party Payments,Residential Care Dementia,571,19/10/2016,1610-00464,0.00,8967.00,R,Alexander Residential Home,No
Http://opendatacommunities.org/id/metropolitan-district-council/leeds,Leeds City Council,31/10/2016,Adult Social Care,Services For Older People - 65 And Over,Third Party Payments,Residential,580,19/10/2016,1610-00465,0.00,21417.48,R,Alexander Residential Home,No
Http://opendatacommunities.org/id/metropolitan-district-council/leeds,Leeds City Council,31/10/2016,Citizens and Communities,Customer Access,Supplies and Services,Other Hired And Contracted Services,265,03/10/2016,1610-00466,0.00,238.75,R,Alexandra Costenco,No
Http://opendatacommunities.org/id/metropolitan-district-council/leeds,Leeds City Council,31/10/2016,Adult Social Care,Services For Older People - 65 And Over,Third Party Payments,Residential Care Dementia,571,19/10/2016,1610-00467,0.00,1511.28,R,Alexandra Court,No
Http://opendatacommunities.org/id/metropolitan-district-council/leeds,Leeds City Council,31/10/2016,Adult Social Care,Services For Older People - 65 And Over,Third Party Payments,Residential,580,19/10/2016,1610-00468,0.00,11586.80,R,Alexandra Court,No
Http://opendatacommunities.org/id/metropolitan-district-council/leeds,Leeds City Council,31/10/2016,Citizens and Communities,Customer Access,Supplies and Services,Other Hired And Contracted Services,265,03/10/2016,1610-00469,0.00,922.25,R,Alexandra Hirst,No
Http://opendatacommunities.org/id/metropolitan-district-council/leeds,Leeds City Council,31/10/2016,Environment & Housing,Leeds Building Services,Supplies and Services,Other Hired And Contracted Services,265,24/10/2016,1610-00470,0.00,6847.00,R,Alfred Bagnall & Sons (Leeds) Ltd,No
Http://opendatacommunities.org/id/metropolitan-district-council/leeds,Leeds City Council,31/10/2016,Environment & Housing,Leeds Building Services,Supplies and Services,Other Hired And Contracted Services,265,24/10/2016,1610-00471,0.00,8803.00,R,Alfred Bagnall & Sons (Leeds) Ltd,No
Http://opendatacommunities.org/id/metropolitan-district-council/leeds,Leeds City Council,31/10/2016,Environment & Housing,Leeds Building Services,Supplies and Services,Other Hired And Contracted Services,265,28/10/2016,1610-00472,0.00,1849.60,R,Alfred Bagnall & Sons (Leeds) Ltd,No
Http://opendatacommunities.org/id/metropolitan-district-council/leeds,Leeds City Council,31/10/2016,Childrens Services,Safeguarding Targeted & Specialist,Transfer Payments,Leaving Care Allowances,634,06/10/2016,1610-00473,0.00,60.00,R,REDACTED PERSONAL DATA,No
Http://opendatacommunities.org/id/metropolitan-district-council/leeds,Leeds City Council,31/10/2016,Childrens Services,Safeguarding Targeted & Specialist,Transfer Payments,Leaving Care Allowances,634,13/10/2016,1610-00474,0.00,60.00,R,REDACTED PERSONAL DATA,No
Http://opendatacommunities.org/id/metropolitan-district-council/leeds,Leeds City Council,31/10/2016,Childrens Services,Safeguarding Targeted & Specialist,Transfer Payments,Leaving Care Allowances,634,20/10/2016,1610-00475,0.00,60.00,R,REDACTED PERSONAL DATA,No
Http://opendatacommunities.org/id/metropolitan-district-council/leeds,Leeds City Council,31/10/2016,Childrens Services,Safeguarding Targeted & Specialist,Transfer Payments,Leaving Care Allowances,634,27/10/2016,1610-00476,0.00,60.00,R,REDACTED PERSONAL DATA,No
Http://opendatacommunities.org/id/metropolitan-district-council/leeds,Leeds City Council,31/10/2016,Childrens Services,Safeguarding Targeted & Specialist,Support Services,Legal Disbursements,411,07/10/2016,1610-00477,0.00,1985.75,R,REDACTED PERSONAL DATA,No
Http://opendatacommunities.org/id/metropolitan-district-council/leeds,Leeds City Council,31/10/2016,Childrens Services,Safeguarding Targeted & Specialist,Third Party Payments,Section 17,551,07/10/2016,1610-00478,0.00,56.90,R,REDACTED PERSONAL DATA,No
Http://opendatacommunities.org/id/metropolitan-district-council/leeds,Leeds City Council,31/10/2016,Childrens Services,Safeguarding Targeted & Specialist,Third Party Payments,Section 17,551,14/10/2016,1610-00479,0.00,56.90,R,REDACTED PERSONAL DATA,No
Http://opendatacommunities.org/id/metropolitan-district-council/leeds,Leeds City Council,31/10/2016,Childrens Services,Safeguarding Targeted & Specialist,Third Party Payments,Section 17,551,21/10/2016,1610-00480,0.00,56.90,R,REDACTED PERSONAL DATA,No
Http://opendatacommunities.org/id/metropolitan-district-council/leeds,Leeds City Council,31/10/2016,Childrens Services,Safeguarding Targeted & Specialist,Third Party Payments,Section 17,551,28/10/2016,1610-00481,0.00,56.90,R,REDACTED PERSONAL DATA,No
Http://opendatacommunities.org/id/metropolitan-district-council/leeds,Leeds City Council,31/10/2016,Central & Corporate,Legal Services,Support Services,Squattr Pns - Counsels' Fees,411,18/10/2016,1610-00482,0.00,600.00,R,Alison Meacher,No
Http://opendatacommunities.org/id/metropolitan-district-council/leeds,Leeds City Council,31/10/2016,Central & Corporate,Legal Services,Support Services,Squattr Pns - Counsels' Fees,411,21/10/2016,1610-00483,0.00,100.00,R,Alison Meacher,No
Http://opendatacommunities.org/id/metropolitan-district-council/leeds,Leeds City Council,31/10/2016,Childrens Services,Safeguarding Targeted & Specialist,Transfer Payments,Leaving Care Allowances,634,26/10/2016,1610-00484,0.00,250.00,R,All Abode,No
Http://opendatacommunities.org/id/metropolitan-district-council/leeds,Leeds City Council,31/10/2016,Childrens Services,Safeguarding Targeted & Specialist,Third Party Payments,Section 17,551,28/10/2016,1610-00485,0.00,120.00,R,All Abode,No
Http://opendatacommunities.org/id/metropolitan-district-council/leeds,Leeds City Council,31/10/2016,Environment & Housing,Leeds Building Services,Supplies and Services,Other Hired And Contracted Services,265,13/10/2016,1610-00486,0.00,195.00,R,All Clear Solutions Ltd,No
Http://opendatacommunities.org/id/metropolitan-district-council/leeds,Leeds City Council,31/10/2016,Environment & Housing,Leeds Building Services,Supplies and Services,Other Hired And Contracted Services,265,13/10/2016,1610-00487,0.00,195.00,R,All Clear Solutions Ltd,No
Http://opendatacommunities.org/id/metropolitan-district-council/leeds,Leeds City Council,31/10/2016,Environment & Housing,Leeds Building Services,Supplies and Services,Other Hired And Contracted Services,265,13/10/2016,1610-00488,0.00,195.00,R,All Clear Solutions Ltd,No
Http://opendatacommunities.org/id/metropolitan-district-council/leeds,Leeds City Council,31/10/2016,Environment & Housing,Leeds Building Services,Supplies and Services,Other Hired And Contracted Services,265,13/10/2016,1610-00489,0.00,195.00,R,All Clear Solutions Ltd,No
Http://opendatacommunities.org/id/metropolitan-district-council/leeds,Leeds City Council,31/10/2016,Environment & Housing,Leeds Building Services,Supplies and Services,Other Hired And Contracted Services,265,13/10/2016,1610-00490,0.00,195.00,R,All Clear Solutions Ltd,No
Http://opendatacommunities.org/id/metropolitan-district-council/leeds,Leeds City Council,31/10/2016,Environment & Housing,Leeds Building Services,Supplies and Services,Other Hired And Contracted Services,265,13/10/2016,1610-00491,0.00,195.00,R,All Clear Solutions Ltd,No
Http://opendatacommunities.org/id/metropolitan-district-council/leeds,Leeds City Council,31/10/2016,Environment & Housing,Leeds Building Services,Supplies and Services,Other Hired And Contracted Services,265,17/10/2016,1610-00492,0.00,195.00,R,All Clear Solutions Ltd,No
Http://opendatacommunities.org/id/metropolitan-district-council/leeds,Leeds City Council,31/10/2016,Environment & Housing,Leeds Building Services,Supplies and Services,Other Hired And Contracted Services,265,17/10/2016,1610-00493,0.00,195.00,R,All Clear Solutions Ltd,No
Http://opendatacommunities.org/id/metropolitan-district-council/leeds,Leeds City Council,31/10/2016,Environment & Housing,Leeds Building Services,Supplies and Services,Other Hired And Contracted Services,265,17/10/2016,1610-00494,0.00,195.00,R,All Clear Solutions Ltd,No
Http://opendatacommunities.org/id/metropolitan-district-council/leeds,Leeds City Council,31/10/2016,Environment & Housing,Leeds Building Services,Supplies and Services,Other Hired And Contracted Services,265,28/10/2016,1610-00495,0.00,250.00,R,All Clear Solutions Ltd,No
Http://opendatacommunities.org/id/metropolitan-district-council/leeds,Leeds City Council,31/10/2016,City Development,Libraries  Arts & Heritage  ,Supplies and Services,Other Hired And Contracted Services,265,12/09/2016,1610-00496,0.00,422.92,R,All In One Marketing L,Yes
Http://opendatacommunities.org/id/metropolitan-district-council/leeds,Leeds City Council,31/10/2016,Childrens Services,Learning Skills & Universal,Third Party Payments,Services Rendered By Other Organisations,511,28/10/2016,1610-00497,0.00,408.33,R,All Stars Childcare,No
Http://opendatacommunities.org/id/metropolitan-district-council/leeds,Leeds City Council as Accountable Body,31/10/2016,Social Services Pooled Budgets,Jcs For People With Learning Disabilitie,Third Party Payments,Sheltered Accommodation,569,19/10/2016,1610-00498,0.00,12777.88,R,Allerton Avenue,No
Http://opendatacommunities.org/id/metropolitan-district-council/leeds,Leeds City Council,31/10/2016,Central & Corporate,Finance,Supplies and Services,Bank Charges,263,03/10/2016,1610-00499,0.00,-64.61,R,Alliance & Leicester Commercial Bank,No
Http://opendatacommunities.org/id/metropolitan-district-council/leeds,Leeds City Council,31/10/2016,Strategic Landlord,Housing Management,Supplies and Services,Other Hired And Contracted Services,265,05/10/2016,1610-00500,0.00,287.29,R,Alliance & Leicester Commercial Bank,No
Http://opendatacommunities.org/id/metropolitan-district-council/leeds,Leeds City Council,31/10/2016,Central & Corporate,Finance,Supplies and Services,Bank Charges,263,05/10/2016,1610-00501,0.00,5.06,R,Alliance & Leicester Commercial Bank,No
Http://opendatacommunities.org/id/metropolitan-district-council/leeds,Leeds City Council,31/10/2016,Central & Corporate,Finance,Supplies and Services,Bank Charges,263,05/10/2016,1610-00502,0.00,304.01,R,Alliance & Leicester Commercial Bank,No
Http://opendatacommunities.org/id/metropolitan-district-council/leeds,Leeds City Council,31/10/2016,Central & Corporate,Finance,Supplies and Services,Bank Charges,263,05/10/2016,1610-00503,0.00,817.97,R,Alliance & Leicester Commercial Bank,No
Http://opendatacommunities.org/id/metropolitan-district-council/leeds,Leeds City Council,31/10/2016,Central & Corporate,Finance,Supplies and Services,Bank Charges,263,05/10/2016,1610-00504,0.00,100.14,R,Alliance & Leicester Commercial Bank,No
Http://opendatacommunities.org/id/metropolitan-district-council/leeds,Leeds City Council,31/10/2016,City Development,Recreation,Supplies and Services,Advertising,211,19/10/2016,1610-00505,0.00,281.00,R,Alliance Leisure Service Ltd,No
Http://opendatacommunities.org/id/metropolitan-district-council/leeds,Leeds City Council,31/10/2016,City Development,Recreation,Supplies and Services,Printing,215,19/10/2016,1610-00506,0.00,1544.00,R,Alliance Leisure Service Ltd,No
Http://opendatacommunities.org/id/metropolitan-district-council/leeds,Leeds City Council,31/10/2016,City Development,Highways,Supplies and Services,Other Hired And Contracted Services,265,11/10/2016,1610-00507,0.00,700.00,R,Allied Exploration & Geotechnics Ltd,No
Http://opendatacommunities.org/id/metropolitan-district-council/leeds,Leeds City Council,31/10/2016,City Development,Highways,Supplies and Services,Other Hired And Contracted Services,265,18/10/2016,1610-00508,0.00,820.00,R,Allied Exploration & Geotechnics Ltd,No
Http://opendatacommunities.org/id/metropolitan-district-council/leeds,Leeds City Council,31/10/2016,City Development,Highways,Capital,Other Costs,7,18/10/2016,1610-00509,0.00,3212.65,C,Allied Exploration & Geotechnics Ltd,No
Http://opendatacommunities.org/id/metropolitan-district-council/leeds,Leeds City Council,31/10/2016,City Development,Highways,Supplies and Services,Other Hired And Contracted Services,265,19/10/2016,1610-00510,0.00,5855.10,R,Allied Exploration & Geotechnics Ltd,No
Http://opendatacommunities.org/id/metropolitan-district-council/leeds,Leeds City Council,31/10/2016,City Development,Highways,Supplies and Services,Other Hired And Contracted Services,265,25/10/2016,1610-00511,0.00,2926.80,R,Allied Exploration & Geotechnics Ltd,No
Http://opendatacommunities.org/id/metropolitan-district-council/leeds,Leeds City Council,31/10/2016,City Development,Highways,Supplies and Services,Other Hired And Contracted Services,265,25/10/2016,1610-00512,0.00,392.10,R,Allied Exploration & Geotechnics Ltd,No
Http://opendatacommunities.org/id/metropolitan-district-council/leeds,Leeds City Council,31/10/2016,Adult Social Care,Services For Older People - 65 And Over,Third Party Payments,Home Care,568,03/10/2016,1610-00513,0.00,3236.27,R,Allied Healthcare,No
Http://opendatacommunities.org/id/metropolitan-district-council/leeds,Leeds City Council,31/10/2016,Adult Social Care,Services For Older People - 65 And Over,Third Party Payments,Home Care,568,03/10/2016,1610-00514,0.00,15534.27,R,Allied Healthcare,No
Http://opendatacommunities.org/id/metropolitan-district-council/leeds,Leeds City Council,31/10/2016,Adult Social Care,Services For Older People Under 65 P/Dis,Third Party Payments,Home Care,568,03/10/2016,1610-00515,0.00,11050.16,R,Allied Healthcare,No
Http://opendatacommunities.org/id/metropolitan-district-council/leeds,Leeds City Council,31/10/2016,Adult Social Care,Other Generic Services,Third Party Payments,Home Care,568,04/10/2016,1610-00516,0.00,6002.29,R,Allied Healthcare,No
Http://opendatacommunities.org/id/metropolitan-district-council/leeds,Leeds City Council as Accountable Body,31/10/2016,Social Services Pooled Budgets,Jcs For People With Learning Disabilitie,Third Party Payments,Home Care,568,06/10/2016,1610-00517,0.00,564.75,R,Allied Healthcare,No
Http://opendatacommunities.org/id/metropolitan-district-council/leeds,Leeds City Council as Accountable Body,31/10/2016,Social Services Pooled Budgets,Jcs For People With Learning Disabilitie,Third Party Payments,Home Care,568,07/10/2016,1610-00518,0.00,765.55,R,Allied Healthcare,No
Http://opendatacommunities.org/id/metropolitan-district-council/leeds,Leeds City Council as Accountable Body,31/10/2016,Social Services Pooled Budgets,Jcs For People With Learning Disabilitie,Third Party Payments,Home Care,568,07/10/2016,1610-00519,0.00,564.75,R,Allied Healthcare,No
Http://opendatacommunities.org/id/metropolitan-district-council/leeds,Leeds City Council as Accountable Body,31/10/2016,Social Services Pooled Budgets,Jcs For People With Learning Disabilitie,Third Party Payments,Home Care,568,07/10/2016,1610-00520,0.00,809.87,R,Allied Healthcare,No
Http://opendatacommunities.org/id/metropolitan-district-council/leeds,Leeds City Council,31/10/2016,Adult Social Care,Services For Older People - 65 And Over,Third Party Payments,Home Care,568,07/10/2016,1610-00521,0.00,9887.27,R,Allied Healthcare,No
Http://opendatacommunities.org/id/metropolitan-district-council/leeds,Leeds City Council,31/10/2016,Adult Social Care,Services For Older People Under 65 P/Dis,Third Party Payments,Home Care,568,07/10/2016,1610-00522,0.00,3759.86,R,Allied Healthcare,No
Http://opendatacommunities.org/id/metropolitan-district-council/leeds,Leeds City Council as Accountable Body,31/10/2016,Social Services Pooled Budgets,Jcs For People With Learning Disabilitie,Third Party Payments,Home Care,568,10/10/2016,1610-00523,0.00,214.55,R,Allied Healthcare,No
Http://opendatacommunities.org/id/metropolitan-district-council/leeds,Leeds City Council as Accountable Body,31/10/2016,Social Services Pooled Budgets,Jcs For People With Learning Disabilitie,Third Party Payments,Home Care,568,10/10/2016,1610-00524,0.00,1157.90,R,Allied Healthcare,No
Http://opendatacommunities.org/id/metropolitan-district-council/leeds,Leeds City Council as Accountable Body,31/10/2016,Social Services Pooled Budgets,Jcs For People With Learning Disabilitie,Third Party Payments,Home Care,568,10/10/2016,1610-00525,0.00,566.00,R,Allied Healthcare,No
Http://opendatacommunities.org/id/metropolitan-district-council/leeds,Leeds City Council as Accountable Body,31/10/2016,Social Services Pooled Budgets,Jcs For People With Learning Disabilitie,Third Party Payments,Home Care,568,13/10/2016,1610-00526,0.00,564.75,R,Allied Healthcare,No
Http://opendatacommunities.org/id/metropolitan-district-council/leeds,Leeds City Council,31/10/2016,Adult Social Care,Services For Older People - 65 And Over,Third Party Payments,Home Care,568,13/10/2016,1610-00527,0.00,2073.15,R,Allied Healthcare,No
Http://opendatacommunities.org/id/metropolitan-district-council/leeds,Leeds City Council,31/10/2016,Adult Social Care,Services For Older People Under 65 P/Dis,Third Party Payments,Home Care,568,13/10/2016,1610-00528,0.00,341.46,R,Allied Healthcare,No
Http://opendatacommunities.org/id/metropolitan-district-council/leeds,Leeds City Council,31/10/2016,Adult Social Care,Services For Older People - 65 And Over,Third Party Payments,Home Care,568,13/10/2016,1610-00529,0.00,511.36,R,Allied Healthcare,No
Http://opendatacommunities.org/id/metropolitan-district-council/leeds,Leeds City Council,31/10/2016,Adult Social Care,Services For Older People - 65 And Over,Third Party Payments,Home Care,568,13/10/2016,1610-00530,0.00,9071.66,R,Allied Healthcare,No
Http://opendatacommunities.org/id/metropolitan-district-council/leeds,Leeds City Council,31/10/2016,Adult Social Care,Services For Older People Under 65 P/Dis,Third Party Payments,Home Care,568,13/10/2016,1610-00531,0.00,3422.38,R,Allied Healthcare,No
Http://opendatacommunities.org/id/metropolitan-district-council/leeds,Leeds City Council,31/10/2016,Adult Social Care,Services For Older People - 65 And Over,Third Party Payments,Home Care,568,13/10/2016,1610-00532,0.00,15902.02,R,Allied Healthcare,No
Http://opendatacommunities.org/id/metropolitan-district-council/leeds,Leeds City Council,31/10/2016,Adult Social Care,Services For Older People Under 65 P/Dis,Third Party Payments,Home Care,568,13/10/2016,1610-00533,0.00,4111.75,R,Allied Healthcare,No
Http://opendatacommunities.org/id/metropolitan-district-council/leeds,Leeds City Council as Accountable Body,31/10/2016,Social Services Pooled Budgets,Jcs For People With Learning Disabilitie,Third Party Payments,Home Care,568,14/10/2016,1610-00534,0.00,15173.75,R,Allied Healthcare,No
Http://opendatacommunities.org/id/metropolitan-district-council/leeds,Leeds City Council,31/10/2016,Childrens Services,Safeguarding Targeted & Specialist,Third Party Payments,Services Rendered By Voluntary Sector,505,20/10/2016,1610-00535,0.00,678.05,R,Allied Healthcare,No
Http://opendatacommunities.org/id/metropolitan-district-council/leeds,Leeds City Council,31/10/2016,Childrens Services,Safeguarding Targeted & Specialist,Third Party Payments,Services Rendered By Voluntary Sector,505,20/10/2016,1610-00536,0.00,797.60,R,Allied Healthcare,No
Http://opendatacommunities.org/id/metropolitan-district-council/leeds,Leeds City Council,31/10/2016,Childrens Services,Safeguarding Targeted & Specialist,Third Party Payments,Services Rendered By Voluntary Sector,505,20/10/2016,1610-00537,0.00,807.20,R,Allied Healthcare,No
Http://opendatacommunities.org/id/metropolitan-district-council/leeds,Leeds City Council,31/10/2016,Childrens Services,Safeguarding Targeted & Specialist,Third Party Payments,Services Rendered By Voluntary Sector,505,20/10/2016,1610-00538,0.00,488.05,R,Allied Healthcare,No
Http://opendatacommunities.org/id/metropolitan-district-council/leeds,Leeds City Council,31/10/2016,Childrens Services,Safeguarding Targeted & Specialist,Third Party Payments,Services Rendered By Voluntary Sector,505,20/10/2016,1610-00539,0.00,190.00,R,Allied Healthcare,No
Http://opendatacommunities.org/id/metropolitan-district-council/leeds,Leeds City Council,31/10/2016,Childrens Services,Safeguarding Targeted & Specialist,Third Party Payments,Services Rendered By Voluntary Sector,505,20/10/2016,1610-00540,0.00,797.60,R,Allied Healthcare,No
Http://opendatacommunities.org/id/metropolitan-district-council/leeds,Leeds City Council as Accountable Body,31/10/2016,Social Services Pooled Budgets,Jcs For People With Learning Disabilitie,Third Party Payments,Home Care,568,20/10/2016,1610-00541,0.00,1038.56,R,Allied Healthcare,No
Http://opendatacommunities.org/id/metropolitan-district-council/leeds,Leeds City Council as Accountable Body,31/10/2016,Social Services Pooled Budgets,Jcs For People With Learning Disabilitie,Third Party Payments,Home Care,568,20/10/2016,1610-00542,0.00,915.12,R,Allied Healthcare,No
Http://opendatacommunities.org/id/metropolitan-district-council/leeds,Leeds City Council as Accountable Body,31/10/2016,Social Services Pooled Budgets,Jcs For People With Learning Disabilitie,Third Party Payments,Home Care,568,20/10/2016,1610-00543,0.00,223.84,R,Allied Healthcare,No
Http://opendatacommunities.org/id/metropolitan-district-council/leeds,Leeds City Council,31/10/2016,Childrens Services,Safeguarding Targeted & Specialist,Third Party Payments,Services Rendered By Voluntary Sector,505,20/10/2016,1610-00544,0.00,684.00,R,Allied Healthcare,No
Http://opendatacommunities.org/id/metropolitan-district-council/leeds,Leeds City Council as Accountable Body,31/10/2016,Social Services Pooled Budgets,Jcs For People With Learning Disabilitie,Third Party Payments,Home Care,568,20/10/2016,1610-00545,0.00,65.88,R,Allied Healthcare,No
Http://opendatacommunities.org/id/metropolitan-district-council/leeds,Leeds City Council as Accountable Body,31/10/2016,Social Services Pooled Budgets,Jcs For People With Learning Disabilitie,Third Party Payments,Home Care,568,20/10/2016,1610-00546,0.00,16576.58,R,Allied Healthcare,No
Http://opendatacommunities.org/id/metropolitan-district-council/leeds,Leeds City Council as Accountable Body,31/10/2016,Social Services Pooled Budgets,Jcs For People With Learning Disabilitie,Third Party Payments,Home Care,568,20/10/2016,1610-00547,0.00,502.00,R,Allied Healthcare,No
Http://opendatacommunities.org/id/metropolitan-district-council/leeds,Leeds City Council,31/10/2016,Childrens Services,Safeguarding Targeted & Specialist,Third Party Payments,Services Rendered By Voluntary Sector,505,21/10/2016,1610-00548,0.00,684.00,R,Allied Healthcare,No
Http://opendatacommunities.org/id/metropolitan-district-council/leeds,Leeds City Council,31/10/2016,Childrens Services,Safeguarding Targeted & Specialist,Third Party Payments,Services Rendered By Voluntary Sector,505,21/10/2016,1610-00549,0.00,669.75,R,Allied Healthcare,No
Http://opendatacommunities.org/id/metropolitan-district-council/leeds,Leeds City Council as Accountable Body,31/10/2016,Social Services Pooled Budgets,Jcs For People With Learning Disabilitie,Third Party Payments,Home Care,568,24/10/2016,1610-00550,0.00,15544.77,R,Allied Healthcare,No
Http://opendatacommunities.org/id/metropolitan-district-council/leeds,Leeds City Council,31/10/2016,Adult Social Care,Other Generic Services,Third Party Payments,Home Care,568,25/10/2016,1610-00551,0.00,17081.67,R,Allied Healthcare,No
Http://opendatacommunities.org/id/metropolitan-district-council/leeds,Leeds City Council,31/10/2016,Adult Social Care,Other Generic Services,Third Party Payments,Home Care,568,25/10/2016,1610-00552,0.00,6945.86,R,Allied Healthcare,No
Http://opendatacommunities.org/id/metropolitan-district-council/leeds,Leeds City Council as Accountable Body,31/10/2016,Social Services Pooled Budgets,Jcs For People With Learning Disabilitie,Third Party Payments,Home Care,568,25/10/2016,1610-00553,0.00,80.02,R,Allied Healthcare,No
Http://opendatacommunities.org/id/metropolitan-district-council/leeds,Leeds City Council as Accountable Body,31/10/2016,Social Services Pooled Budgets,Jcs For People With Learning Disabilitie,Third Party Payments,Home Care,568,25/10/2016,1610-00554,0.00,16.47,R,Allied Healthcare,No
Http://opendatacommunities.org/id/metropolitan-district-council/leeds,Leeds City Council,31/10/2016,Childrens Services,Safeguarding Targeted & Specialist,Third Party Payments,Services Rendered By Voluntary Sector,505,28/10/2016,1610-00555,0.00,797.60,R,Allied Healthcare,No
Http://opendatacommunities.org/id/metropolitan-district-council/leeds,Leeds City Council as Accountable Body,31/10/2016,Social Services Pooled Budgets,Jcs For People With Learning Disabilitie,Third Party Payments,Home Care,568,28/10/2016,1610-00556,0.00,1288.32,R,Allied Healthcare,No
Http://opendatacommunities.org/id/metropolitan-district-council/leeds,Leeds City Council as Accountable Body,31/10/2016,Social Services Pooled Budgets,Jcs For People With Learning Disabilitie,Third Party Payments,Home Care,568,28/10/2016,1610-00557,0.00,816.60,R,Allied Healthcare,No
Http://opendatacommunities.org/id/metropolitan-district-council/leeds,Leeds City Council,31/10/2016,Childrens Services,Safeguarding Targeted & Specialist,Third Party Payments,Services Rendered By Voluntary Sector,505,28/10/2016,1610-00558,0.00,684.00,R,Allied Healthcare,No
Http://opendatacommunities.org/id/metropolitan-district-council/leeds,Leeds City Council,31/10/2016,Childrens Services,Safeguarding Targeted & Specialist,Third Party Payments,Services Rendered By Voluntary Sector,505,28/10/2016,1610-00559,0.00,797.60,R,Allied Healthcare,No
Http://opendatacommunities.org/id/metropolitan-district-council/leeds,Leeds City Council,31/10/2016,Childrens Services,Safeguarding Targeted & Specialist,Third Party Payments,Services Rendered By Voluntary Sector,505,28/10/2016,1610-00560,0.00,797.60,R,Allied Healthcare,No
Http://opendatacommunities.org/id/metropolitan-district-council/leeds,Leeds City Council,31/10/2016,Childrens Services,Safeguarding Targeted & Specialist,Third Party Payments,Services Rendered By Voluntary Sector,505,28/10/2016,1610-00561,0.00,356.75,R,Allied Healthcare,No
Http://opendatacommunities.org/id/metropolitan-district-council/leeds,Leeds City Council,31/10/2016,Strategic Landlord,Housing Management,Supplies and Services,Other Hired And Contracted Services,265,13/10/2016,1610-00562,0.00,4.98,R,Allpay Limted,No
Http://opendatacommunities.org/id/metropolitan-district-council/leeds,Leeds City Council,31/10/2016,Strategic Landlord,Housing Management,Supplies and Services,Other Hired And Contracted Services,265,28/10/2016,1610-00563,0.00,738.20,R,Allpay Limted,No
Http://opendatacommunities.org/id/metropolitan-district-council/leeds,Leeds City Council,31/10/2016,Central & Corporate,Democratic Services,Transport,Fuel (Non LCC Supplies),321,07/10/2016,1610-00564,0.00,184.72,R,Allstar Business Solutions Ltd,No
Http://opendatacommunities.org/id/metropolitan-district-council/leeds,Leeds City Council,31/10/2016,Childrens Services,Learning Skills & Universal,Transport,Fuel (Non LCC Supplies),321,07/10/2016,1610-00565,0.00,1263.35,R,Allstar Business Solutions Ltd,No
Http://opendatacommunities.org/id/metropolitan-district-council/leeds,Leeds City Council,31/10/2016,Environment & Housing,Parks and Countryside,Transport,Fuel (Non LCC Supplies),321,07/10/2016,1610-00566,0.00,57.49,R,Allstar Business Solutions Ltd,No
Http://opendatacommunities.org/id/metropolitan-district-council/leeds,Leeds City Council,31/10/2016,City Development,Highways,Transport,Fuel (Non LCC Supplies),321,07/10/2016,1610-00567,0.00,450.65,R,Allstar Business Solutions Ltd,No
Http://opendatacommunities.org/id/metropolitan-district-council/leeds,Leeds City Council,31/10/2016,Environment & Housing,Waste Management,Transport,Fuel (Non LCC Supplies),321,07/10/2016,1610-00568,0.00,9.20,R,Allstar Business Solutions Ltd,No
Http://opendatacommunities.org/id/metropolitan-district-council/leeds,Leeds City Council,31/10/2016,Environment & Housing,SP Contracts & SECC,Third Party Payments,Supporting Ppl - Block Gross Chargeable,514,26/10/2016,1610-00569,0.00,41.22,R,Alpha (Rsl) Limited,No
Http://opendatacommunities.org/id/metropolitan-district-council/leeds,Leeds City Council,31/10/2016,Childrens Services,Safeguarding Targeted & Specialist,Support Services,Legal Disbursements,411,12/10/2016,1610-00570,0.00,26.25,R,Alphabiolabs,No
Http://opendatacommunities.org/id/metropolitan-district-council/leeds,Leeds City Council,31/10/2016,Childrens Services,Safeguarding Targeted & Specialist,Support Services,Legal Disbursements,411,12/10/2016,1610-00571,0.00,148.34,R,Alphabiolabs,No
Http://opendatacommunities.org/id/metropolitan-district-council/leeds,Leeds City Council,31/10/2016,Childrens Services,Safeguarding Targeted & Specialist,Support Services,Legal Disbursements,411,14/10/2016,1610-00572,0.00,60.00,R,Alphabiolabs,No
Http://opendatacommunities.org/id/metropolitan-district-council/leeds,Leeds City Council,31/10/2016,Childrens Services,Safeguarding Targeted & Specialist,Support Services,Legal Disbursements,411,14/10/2016,1610-00573,0.00,120.00,R,Alphabiolabs,No
Http://opendatacommunities.org/id/metropolitan-district-council/leeds,Leeds City Council,31/10/2016,Childrens Services,Safeguarding Targeted & Specialist,Support Services,Legal Disbursements,411,20/10/2016,1610-00574,0.00,97.50,R,Alphabiolabs,No
Http://opendatacommunities.org/id/metropolitan-district-council/leeds,Leeds City Council,31/10/2016,Childrens Services,Safeguarding Targeted & Specialist,Support Services,Legal Disbursements,411,27/10/2016,1610-00575,0.00,130.00,R,Alphabiolabs,No
Http://opendatacommunities.org/id/metropolitan-district-council/leeds,Leeds City Council,31/10/2016,Childrens Services,Safeguarding Targeted & Specialist  ,Supplies and Services,Teaching Materials,202,12/09/2016,1610-00576,0.00,32.50,R,Alphagraphics,Yes
Http://opendatacommunities.org/id/metropolitan-district-council/leeds,Leeds City Council,31/10/2016,Childrens Services,Safeguarding Targeted & Specialist,Supplies and Services,Conference Meetings,253,06/10/2016,1610-00577,0.00,50.00,R,Alwoodley Community Association,No
Http://opendatacommunities.org/id/metropolitan-district-council/leeds,Leeds City Council,31/10/2016,Childrens Services,Safeguarding Targeted & Specialist,Supplies and Services,Conference Meetings,253,18/10/2016,1610-00578,0.00,50.00,R,Alwoodley Community Association,No
Http://opendatacommunities.org/id/metropolitan-district-council/leeds,Leeds City Council,31/10/2016,Childrens Services,Safeguarding Targeted & Specialist,Supplies and Services,Conference Meetings,253,28/10/2016,1610-00579,0.00,50.00,R,Alwoodley Community Association,No
Http://opendatacommunities.org/id/metropolitan-district-council/leeds,Leeds City Council,31/10/2016,City Development,Libraries  Arts & Heritage,Supplies and Services,Operational Materials,205,17/10/2016,1610-00580,0.00,220.00,R,Am Trading Enterprises Limited,No
Http://opendatacommunities.org/id/metropolitan-district-council/leeds,Leeds City Council,31/10/2016,Childrens Services,Partnership Development & Leadership,Employees,Training & Development,70,28/10/2016,1610-00581,0.00,1322.20,R,REDACTED PERSONAL DATA,No
Http://opendatacommunities.org/id/metropolitan-district-council/leeds,Leeds City Council,31/10/2016,Environment & Housing,Streetscene Environmental Services,Income,Penalties  Fines & Car Parking Charges,934,07/10/2016,1610-00582,0.00,4.00,R,REDACTED PERSONAL DATA,No
Http://opendatacommunities.org/id/metropolitan-district-council/leeds,Leeds City Council,31/10/2016,Environment & Housing,Leeds Building Services,Supplies and Services,Operational Materials,205,10/10/2016,1610-00583,0.00,172.35,R,Amari Plastics Plc,No
Http://opendatacommunities.org/id/metropolitan-district-council/leeds,Leeds City Council,31/10/2016,Environment & Housing,Leeds Building Services,Supplies and Services,Operational Materials,205,17/10/2016,1610-00584,0.00,84.35,R,Amari Plastics Plc,No
Http://opendatacommunities.org/id/metropolitan-district-council/leeds,Leeds City Council,31/10/2016,Childrens Services,Learning Skills & Universal,Third Party Payments,Services Rendered By Other Organisations,511,28/10/2016,1610-00585,0.00,2141.67,R,Amazing Grace Early Years Childcare,No
Http://opendatacommunities.org/id/metropolitan-district-council/leeds,Leeds City Council,31/10/2016,City Development,Recreation,Supplies and Services,Operational Furniture And Equipment,203,14/10/2016,1610-00586,0.00,198.34,R,Amazon Leisure Uk Ltd,No
Http://opendatacommunities.org/id/metropolitan-district-council/leeds,Leeds City Council,31/10/2016,City Development,Recreation,Supplies and Services,Operational Furniture And Equipment,203,14/10/2016,1610-00587,0.00,119.85,R,Amazon Leisure Uk Ltd,No
Http://opendatacommunities.org/id/metropolitan-district-council/leeds,Leeds City Council,31/10/2016,City Development,Recreation,Supplies and Services,Operational Furniture And Equipment,203,19/10/2016,1610-00588,0.00,128.81,R,Amazon Leisure Uk Ltd,No
Http://opendatacommunities.org/id/metropolitan-district-council/leeds,Leeds City Council,31/10/2016,City Development,Recreation,Supplies and Services,Operational Furniture And Equipment,203,19/10/2016,1610-00589,0.00,105.00,R,Amazon Leisure Uk Ltd,No
Http://opendatacommunities.org/id/metropolitan-district-council/leeds,Leeds City Council,31/10/2016,City Development,Recreation,Supplies and Services,Operational Furniture And Equipment,203,21/10/2016,1610-00590,0.00,154.54,R,Amazon Leisure Uk Ltd,No
Http://opendatacommunities.org/id/metropolitan-district-council/leeds,Leeds City Council,31/10/2016,City Development,Recreation,Supplies and Services,Operational Furniture And Equipment,203,24/10/2016,1610-00591,0.00,116.25,R,Amazon Leisure Uk Ltd,No
Http://opendatacommunities.org/id/metropolitan-district-council/leeds,Leeds City Council,31/10/2016,Childrens Services,Learning Skills & Universal  ,Supplies and Services,Operational Materials,205,31/08/2016,1610-00592,0.00,-7.99,R,Amazon Prime,Yes
Http://opendatacommunities.org/id/metropolitan-district-council/leeds,Leeds City Council,31/10/2016,Citizens And Communities,Benefits  Wlefare And Poverty  ,Supplies and Services,Other Hired And Contracted Services,265,23/09/2016,1610-00593,0.00,7.99,R,Amazon Prime,Yes
Http://opendatacommunities.org/id/metropolitan-district-council/leeds,Leeds City Council,31/10/2016,City Development,Libraries  Arts & Heritage  ,Supplies and Services,Office Consumables,210,27/09/2016,1610-00594,0.00,7.99,R,Amazon Prime,Yes
Http://opendatacommunities.org/id/metropolitan-district-council/leeds,Leeds City Council,31/10/2016,City Development,Libraries  Arts & Heritage  ,Supplies and Services,Books & Audio-Visual Materials,206,05/09/2016,1610-00595,0.00,74.31,R,Amazon Svcs Europe sar,Yes
Http://opendatacommunities.org/id/metropolitan-district-council/leeds,Leeds City Council,31/10/2016,Childrens Services,Learning Skills & Universal  ,Supplies and Services,Operational Furniture And Equipment,203,08/09/2016,1610-00596,0.00,9.98,R,Amazon Svcs Europe sar,Yes
Http://opendatacommunities.org/id/metropolitan-district-council/leeds,Leeds City Council,31/10/2016,Childrens Services,Safeguarding Targeted & Specialist  ,Supplies and Services,Teaching Materials,202,12/09/2016,1610-00597,0.00,13.99,R,Amazon Svcs Europe sar,Yes
Http://opendatacommunities.org/id/metropolitan-district-council/leeds,Leeds City Council,31/10/2016,Childrens Services,Learning Skills & Universal  ,Supplies and Services,Operational Materials,205,13/09/2016,1610-00598,0.00,14.98,R,Amazon Svcs Europe sar,Yes
Http://opendatacommunities.org/id/metropolitan-district-council/leeds,Leeds City Council,31/10/2016,Citizens And Communities,Communities  ,Supplies and Services,Operational Furniture And Equipment,203,14/09/2016,1610-00599,0.00,132.99,R,Amazon Svcs Europe sar,Yes
Http://opendatacommunities.org/id/metropolitan-district-council/leeds,Leeds City Council,31/10/2016,City Development,Libraries  Arts & Heritage  ,Supplies and Services,Teaching Materials,202,17/09/2016,1610-00600,0.00,35.45,R,Amazon Svcs Europe sar,Yes
Http://opendatacommunities.org/id/metropolitan-district-council/leeds,Leeds City Council,31/10/2016,City Development,Libraries  Arts & Heritage  ,Supplies and Services,Books & Audio-Visual Materials,206,21/09/2016,1610-00601,0.00,33.45,R,Amazon Svcs Europe sar,Yes
Http://opendatacommunities.org/id/metropolitan-district-council/leeds,Leeds City Council,31/10/2016,Childrens Services,Safeguarding Targeted & Specialist  ,Transfer Payments,Leaving Care Grants,635,22/09/2016,1610-00602,0.00,26.72,R,Amazon Svcs Europe sar,Yes
Http://opendatacommunities.org/id/metropolitan-district-council/leeds,Leeds City Council,31/10/2016,Childrens Services,Safeguarding Targeted & Specialist  ,Supplies and Services,General Amenity For Clients/Residents,285,25/09/2016,1610-00603,0.00,35.02,R,Amazon Svcs Europe sar,Yes
Http://opendatacommunities.org/id/metropolitan-district-council/leeds,Leeds City Council,31/10/2016,Childrens Services,Safeguarding Targeted & Specialist  ,Supplies and Services,Teaching Materials,202,27/09/2016,1610-00604,0.00,25.27,R,Amazon Svcs Europe sar,Yes
Http://opendatacommunities.org/id/metropolitan-district-council/leeds,Leeds City Council,31/10/2016,City Development,Libraries  Arts & Heritage  ,Premises,Cleaning Maintenance & Toiletries,127,28/09/2016,1610-00605,0.00,398.02,R,Amazon Svcs Europe sar,Yes
Http://opendatacommunities.org/id/metropolitan-district-council/leeds,Leeds City Council,31/10/2016,City Development,Recreation  ,Supplies and Services,Operational Furniture And Equipment,203,31/08/2016,1610-00606,0.00,17.95,R,Amazon UK Marketplace,Yes
Http://opendatacommunities.org/id/metropolitan-district-council/leeds,Leeds City Council,31/10/2016,Strategic Landlord,Property And Contracts  ,Supplies and Services,Computer Software & Equipment,214,31/08/2016,1610-00607,0.00,201.00,R,Amazon UK Marketplace,Yes
Http://opendatacommunities.org/id/metropolitan-district-council/leeds,Leeds City Council,31/10/2016,City Development,Recreation  ,Supplies and Services,Operational Furniture And Equipment,203,31/08/2016,1610-00608,0.00,14.79,R,Amazon UK Marketplace,Yes
Http://opendatacommunities.org/id/metropolitan-district-council/leeds,Leeds City Council,31/10/2016,Childrens Services,Learning Skills & Universal  ,Supplies and Services,Teaching Materials,202,31/08/2016,1610-00609,0.00,6.68,R,Amazon UK Marketplace,Yes
Http://opendatacommunities.org/id/metropolitan-district-council/leeds,Leeds City Council,31/10/2016,City Development,Libraries  Arts & Heritage  ,Supplies and Services,Operational Furniture And Equipment,203,31/08/2016,1610-00610,0.00,40.20,R,Amazon UK Marketplace,Yes
Http://opendatacommunities.org/id/metropolitan-district-council/leeds,Leeds City Council,31/10/2016,Childrens Services,Learning Skills & Universal  ,Supplies and Services,Operational Materials,205,01/09/2016,1610-00611,0.00,29.99,R,Amazon UK Marketplace,Yes
Http://opendatacommunities.org/id/metropolitan-district-council/leeds,Leeds City Council,31/10/2016,Childrens Services,Safeguarding Targeted & Specialist  ,Transfer Payments,Leaving Care Grants,635,01/09/2016,1610-00612,0.00,21.33,R,Amazon UK Marketplace,Yes
Http://opendatacommunities.org/id/metropolitan-district-council/leeds,Leeds City Council,31/10/2016,Childrens Services,Learning Skills & Universal  ,Supplies and Services,Teaching Materials,202,01/09/2016,1610-00613,0.00,-32.04,R,Amazon UK Marketplace,Yes
Http://opendatacommunities.org/id/metropolitan-district-council/leeds,Leeds City Council,31/10/2016,City Development,Libraries  Arts & Heritage  ,Supplies and Services,Books & Audio-Visual Materials,206,01/09/2016,1610-00614,0.00,0.95,R,Amazon UK Marketplace,Yes
Http://opendatacommunities.org/id/metropolitan-district-council/leeds,Leeds City Council,31/10/2016,Childrens Services,Partnership Development & Leadership  ,Supplies and Services,Office Consumables,210,01/09/2016,1610-00615,0.00,1.71,R,Amazon UK Marketplace,Yes
Http://opendatacommunities.org/id/metropolitan-district-council/leeds,Leeds City Council,31/10/2016,Childrens Services,Learning Skills & Universal  ,Supplies and Services,Teaching Materials,202,01/09/2016,1610-00616,0.00,43.15,R,Amazon UK Marketplace,Yes
Http://opendatacommunities.org/id/metropolitan-district-council/leeds,Leeds City Council,31/10/2016,Central & Corporate,Finance  ,Supplies and Services,Office Furniture & Equipment,201,01/09/2016,1610-00617,0.00,10.90,R,Amazon UK Marketplace,Yes
Http://opendatacommunities.org/id/metropolitan-district-council/leeds,Leeds City Council,31/10/2016,City Development,Libraries  Arts & Heritage  ,Supplies and Services,Other Hired And Contracted Services,265,01/09/2016,1610-00618,0.00,7.60,R,Amazon UK Marketplace,Yes
Http://opendatacommunities.org/id/metropolitan-district-council/leeds,Leeds City Council,31/10/2016,Environment & Housing,Streetscene Environmental Services  ,Supplies and Services,Operational Furniture And Equipment,203,02/09/2016,1610-00619,0.00,31.37,R,Amazon UK Marketplace,Yes
Http://opendatacommunities.org/id/metropolitan-district-council/leeds,Leeds City Council,31/10/2016,Citizens And Communities,Elections  Licensing And Registration  ,Supplies and Services,Office Consumables,210,02/09/2016,1610-00620,0.00,47.98,R,Amazon UK Marketplace,Yes
Http://opendatacommunities.org/id/metropolitan-district-council/leeds,Leeds City Council,31/10/2016,City Development,Libraries  Arts & Heritage  ,Supplies and Services,Operational Materials,205,03/09/2016,1610-00621,0.00,12.80,R,Amazon UK Marketplace,Yes
Http://opendatacommunities.org/id/metropolitan-district-council/leeds,Leeds City Council,31/10/2016,City Development,Libraries  Arts & Heritage  ,Supplies and Services,Operational Materials,205,03/09/2016,1610-00622,0.00,8.10,R,Amazon UK Marketplace,Yes
Http://opendatacommunities.org/id/metropolitan-district-council/leeds,Leeds City Council,31/10/2016,City Development,Libraries  Arts & Heritage  ,Supplies and Services,Operational Materials,205,04/09/2016,1610-00623,0.00,22.89,R,Amazon UK Marketplace,Yes
Http://opendatacommunities.org/id/metropolitan-district-council/leeds,Leeds City Council,31/10/2016,City Development,Libraries  Arts & Heritage  ,Supplies and Services,Books & Audio-Visual Materials,206,04/09/2016,1610-00624,0.00,26.74,R,Amazon UK Marketplace,Yes
Http://opendatacommunities.org/id/metropolitan-district-council/leeds,Leeds City Council,31/10/2016,City Development,Recreation  ,Supplies and Services,Operational Furniture And Equipment,203,05/09/2016,1610-00625,0.00,4.92,R,Amazon UK Marketplace,Yes
Http://opendatacommunities.org/id/metropolitan-district-council/leeds,Leeds City Council,31/10/2016,Childrens Services,Safeguarding Targeted & Specialist  ,Supplies and Services,Teaching Materials,202,05/09/2016,1610-00626,0.00,8.66,R,Amazon UK Marketplace,Yes
Http://opendatacommunities.org/id/metropolitan-district-council/leeds,Leeds City Council,31/10/2016,Citizens And Communities,Customer Access  ,Supplies and Services,Operational Furniture And Equipment,203,06/09/2016,1610-00627,0.00,149.99,R,Amazon UK Marketplace,Yes
Http://opendatacommunities.org/id/metropolitan-district-council/leeds,Leeds City Council,31/10/2016,Childrens Services,Safeguarding Targeted & Specialist  ,Supplies and Services,General Amenity For Clients/Residents,285,06/09/2016,1610-00628,0.00,10.28,R,Amazon UK Marketplace,Yes
Http://opendatacommunities.org/id/metropolitan-district-council/leeds,Leeds City Council,31/10/2016,Childrens Services,Learning Skills & Universal  ,Supplies and Services,Teaching Materials,202,06/09/2016,1610-00629,0.00,219.99,R,Amazon UK Marketplace,Yes
Http://opendatacommunities.org/id/metropolitan-district-council/leeds,Leeds City Council,31/10/2016,City Development,Libraries  Arts & Heritage  ,Supplies and Services,Operational Materials,205,06/09/2016,1610-00630,0.00,13.48,R,Amazon UK Marketplace,Yes
Http://opendatacommunities.org/id/metropolitan-district-council/leeds,Leeds City Council,31/10/2016,Citizens And Communities,Elections  Licensing And Registration  ,Supplies and Services,Office Consumables,210,07/09/2016,1610-00631,0.00,34.05,R,Amazon UK Marketplace,Yes
Http://opendatacommunities.org/id/metropolitan-district-council/leeds,Leeds City Council,31/10/2016,City Development,Libraries  Arts & Heritage  ,Supplies and Services,Books & Audio-Visual Materials,206,07/09/2016,1610-00632,0.00,40.42,R,Amazon UK Marketplace,Yes
Http://opendatacommunities.org/id/metropolitan-district-council/leeds,Leeds City Council,31/10/2016,Childrens Services,Safeguarding Targeted & Specialist  ,Transfer Payments,Leaving Care Grants,635,07/09/2016,1610-00633,0.00,269.99,R,Amazon UK Marketplace,Yes
Http://opendatacommunities.org/id/metropolitan-district-council/leeds,Leeds City Council,31/10/2016,City Development,Recreation  ,Supplies and Services,Operational Furniture And Equipment,203,07/09/2016,1610-00634,0.00,15.97,R,Amazon UK Marketplace,Yes
Http://opendatacommunities.org/id/metropolitan-district-council/leeds,Leeds City Council,31/10/2016,Childrens Services,Learning Skills & Universal  ,Supplies and Services,Operational Materials,205,07/09/2016,1610-00635,0.00,5.55,R,Amazon UK Marketplace,Yes
Http://opendatacommunities.org/id/metropolitan-district-council/leeds,Leeds City Council,31/10/2016,Adult Social Care,Services For Adults Under 65 Learn/Dis  ,Supplies and Services,Office Furniture & Equipment,201,07/09/2016,1610-00636,0.00,26.75,R,Amazon UK Marketplace,Yes
Http://opendatacommunities.org/id/metropolitan-district-council/leeds,Leeds City Council,31/10/2016,Childrens Services,Learning Skills & Universal  ,Supplies and Services,Books & Audio-Visual Materials,206,07/09/2016,1610-00637,0.00,8.37,R,Amazon UK Marketplace,Yes
Http://opendatacommunities.org/id/metropolitan-district-council/leeds,Leeds City Council,31/10/2016,Childrens Services,Safeguarding Targeted & Specialist  ,Transfer Payments,Leaving Care Grants,635,08/09/2016,1610-00638,0.00,249.98,R,Amazon UK Marketplace,Yes
Http://opendatacommunities.org/id/metropolitan-district-council/leeds,Leeds City Council,31/10/2016,City Development,Highways  ,Supplies and Services,Books & Audio-Visual Materials,206,08/09/2016,1610-00639,0.00,22.25,R,Amazon UK Marketplace,Yes
Http://opendatacommunities.org/id/metropolitan-district-council/leeds,Leeds City Council,31/10/2016,Citizens And Communities,Customer Access  ,Supplies and Services,Office Consumables,210,08/09/2016,1610-00640,0.00,3.71,R,Amazon UK Marketplace,Yes
Http://opendatacommunities.org/id/metropolitan-district-council/leeds,Leeds City Council,31/10/2016,Childrens Services,Learning Skills & Universal  ,Supplies and Services,Office Consumables,210,08/09/2016,1610-00641,0.00,66.29,R,Amazon UK Marketplace,Yes
Http://opendatacommunities.org/id/metropolitan-district-council/leeds,Leeds City Council,31/10/2016,City Development,Libraries  Arts & Heritage  ,Supplies and Services,Operational Materials,205,08/09/2016,1610-00642,0.00,54.95,R,Amazon UK Marketplace,Yes
Http://opendatacommunities.org/id/metropolitan-district-council/leeds,Leeds City Council,31/10/2016,Central & Corporate,Pppu And Procurement  ,Supplies and Services,Operational Materials,205,08/09/2016,1610-00643,0.00,1.69,R,Amazon UK Marketplace,Yes
Http://opendatacommunities.org/id/metropolitan-district-council/leeds,Leeds City Council,31/10/2016,Childrens Services,Safeguarding Targeted & Specialist  ,Supplies and Services,Office Consumables,210,08/09/2016,1610-00644,0.00,3.11,R,Amazon UK Marketplace,Yes
Http://opendatacommunities.org/id/metropolitan-district-council/leeds,Leeds City Council,31/10/2016,Childrens Services,Partnership Development & Leadership  ,Premises,Maintenance Of Buildings,101,08/09/2016,1610-00645,0.00,219.99,R,Amazon UK Marketplace,Yes
Http://opendatacommunities.org/id/metropolitan-district-council/leeds,Leeds City Council,31/10/2016,Childrens Services,Safeguarding Targeted & Specialist  ,Supplies and Services,Telephones,213,08/09/2016,1610-00646,0.00,5.02,R,Amazon UK Marketplace,Yes
Http://opendatacommunities.org/id/metropolitan-district-council/leeds,Leeds City Council,31/10/2016,City Development,Recreation  ,Supplies and Services,Operational Materials,205,08/09/2016,1610-00647,0.00,33.96,R,Amazon UK Marketplace,Yes
Http://opendatacommunities.org/id/metropolitan-district-council/leeds,Leeds City Council,31/10/2016,Childrens Services,Learning Skills & Universal  ,Supplies and Services,Operational Materials,205,09/09/2016,1610-00648,0.00,56.18,R,Amazon UK Marketplace,Yes
Http://opendatacommunities.org/id/metropolitan-district-council/leeds,Leeds City Council,31/10/2016,Childrens Services,Learning Skills & Universal  ,Supplies and Services,Office Consumables,210,09/09/2016,1610-00649,0.00,16.02,R,Amazon UK Marketplace,Yes
Http://opendatacommunities.org/id/metropolitan-district-council/leeds,Leeds City Council,31/10/2016,City Development,Libraries  Arts & Heritage  ,Supplies and Services,Operational Materials,205,09/09/2016,1610-00650,0.00,33.90,R,Amazon UK Marketplace,Yes
Http://opendatacommunities.org/id/metropolitan-district-council/leeds,Leeds City Council,31/10/2016,Childrens Services,Learning Skills & Universal  ,Supplies and Services,Teaching Materials,202,09/09/2016,1610-00651,0.00,31.40,R,Amazon UK Marketplace,Yes
Http://opendatacommunities.org/id/metropolitan-district-council/leeds,Leeds City Council,31/10/2016,Childrens Services,Learning Skills & Universal  ,Supplies and Services,Teaching Materials,202,09/09/2016,1610-00652,0.00,12.07,R,Amazon UK Marketplace,Yes
Http://opendatacommunities.org/id/metropolitan-district-council/leeds,Leeds City Council,31/10/2016,Childrens Services,Partnership Development & Leadership  ,Supplies and Services,Food & Drink,231,09/09/2016,1610-00653,0.00,17.37,R,Amazon UK Marketplace,Yes
Http://opendatacommunities.org/id/metropolitan-district-council/leeds,Leeds City Council,31/10/2016,City Development,Libraries  Arts & Heritage  ,Supplies and Services,Operational Materials,205,09/09/2016,1610-00654,0.00,1.72,R,Amazon UK Marketplace,Yes
Http://opendatacommunities.org/id/metropolitan-district-council/leeds,Leeds City Council,31/10/2016,Childrens Services,Learning Skills & Universal  ,Supplies and Services,Teaching Materials,202,09/09/2016,1610-00655,0.00,9.66,R,Amazon UK Marketplace,Yes
Http://opendatacommunities.org/id/metropolitan-district-council/leeds,Leeds City Council,31/10/2016,Childrens Services,Learning Skills & Universal  ,Supplies and Services,Teaching Furniture & Equipment,207,09/09/2016,1610-00656,0.00,19.91,R,Amazon UK Marketplace,Yes
Http://opendatacommunities.org/id/metropolitan-district-council/leeds,Leeds City Council,31/10/2016,Central & Corporate,Finance  ,Supplies and Services,Office Consumables,210,09/09/2016,1610-00657,0.00,8.90,R,Amazon UK Marketplace,Yes
Http://opendatacommunities.org/id/metropolitan-district-council/leeds,Leeds City Council,31/10/2016,Childrens Services,Learning Skills & Universal  ,Supplies and Services,Operational Materials,205,10/09/2016,1610-00658,0.00,6.90,R,Amazon UK Marketplace,Yes
Http://opendatacommunities.org/id/metropolitan-district-council/leeds,Leeds City Council,31/10/2016,Childrens Services,Safeguarding Targeted & Specialist  ,Supplies and Services,Operational Furniture And Equipment,203,11/09/2016,1610-00659,0.00,72.69,R,Amazon UK Marketplace,Yes
Http://opendatacommunities.org/id/metropolitan-district-council/leeds,Leeds City Council,31/10/2016,Childrens Services,Safeguarding Targeted & Specialist  ,Supplies and Services,Office Consumables,210,12/09/2016,1610-00660,0.00,10.98,R,Amazon UK Marketplace,Yes
Http://opendatacommunities.org/id/metropolitan-district-council/leeds,Leeds City Council,31/10/2016,City Development,Libraries  Arts & Heritage  ,Supplies and Services,Operational Materials,205,12/09/2016,1610-00661,0.00,28.50,R,Amazon UK Marketplace,Yes
Http://opendatacommunities.org/id/metropolitan-district-council/leeds,Leeds City Council,31/10/2016,Childrens Services,Learning Skills & Universal  ,Supplies and Services,Operational Materials,205,12/09/2016,1610-00662,0.00,12.90,R,Amazon UK Marketplace,Yes
Http://opendatacommunities.org/id/metropolitan-district-council/leeds,Leeds City Council,31/10/2016,Childrens Services,Partnership Development & Leadership  ,Premises,Cleaning Maintenance & Toiletries,127,12/09/2016,1610-00663,0.00,17.88,R,Amazon UK Marketplace,Yes
Http://opendatacommunities.org/id/metropolitan-district-council/leeds,Leeds City Council,31/10/2016,Childrens Services,Learning Skills & Universal  ,Supplies and Services,Operational Materials,205,12/09/2016,1610-00664,0.00,26.00,R,Amazon UK Marketplace,Yes
Http://opendatacommunities.org/id/metropolitan-district-council/leeds,Leeds City Council,31/10/2016,Childrens Services,Safeguarding Targeted & Specialist  ,Supplies and Services,Books & Audio-Visual Materials,206,12/09/2016,1610-00665,0.00,11.89,R,Amazon UK Marketplace,Yes
Http://opendatacommunities.org/id/metropolitan-district-council/leeds,Leeds City Council,31/10/2016,Childrens Services,Learning Skills & Universal  ,Supplies and Services,Operational Furniture And Equipment,203,13/09/2016,1610-00666,0.00,10.78,R,Amazon UK Marketplace,Yes
Http://opendatacommunities.org/id/metropolitan-district-council/leeds,Leeds City Council,31/10/2016,Childrens Services,Learning Skills & Universal  ,Supplies and Services,Books & Audio-Visual Materials,206,13/09/2016,1610-00667,0.00,8.37,R,Amazon UK Marketplace,Yes
Http://opendatacommunities.org/id/metropolitan-district-council/leeds,Leeds City Council,31/10/2016,Childrens Services,Safeguarding Targeted & Specialist  ,Supplies and Services,Office Consumables,210,13/09/2016,1610-00668,0.00,13.96,R,Amazon UK Marketplace,Yes
Http://opendatacommunities.org/id/metropolitan-district-council/leeds,Leeds City Council,31/10/2016,Childrens Services,Learning Skills & Universal  ,Supplies and Services,Teaching Materials,202,13/09/2016,1610-00669,0.00,11.99,R,Amazon UK Marketplace,Yes
Http://opendatacommunities.org/id/metropolitan-district-council/leeds,Leeds City Council,31/10/2016,Childrens Services,Learning Skills & Universal  ,Supplies and Services,Teaching Materials,202,13/09/2016,1610-00670,0.00,173.32,R,Amazon UK Marketplace,Yes
Http://opendatacommunities.org/id/metropolitan-district-council/leeds,Leeds City Council,31/10/2016,Childrens Services,Safeguarding Targeted & Specialist  ,Supplies and Services,Office Consumables,210,13/09/2016,1610-00671,0.00,20.98,R,Amazon UK Marketplace,Yes
Http://opendatacommunities.org/id/metropolitan-district-council/leeds,Leeds City Council,31/10/2016,Adult Social Care,Services For Adults Under 65 Learn/Dis  ,Supplies and Services,Office Furniture & Equipment,201,14/09/2016,1610-00672,0.00,12.49,R,Amazon UK Marketplace,Yes
Http://opendatacommunities.org/id/metropolitan-district-council/leeds,Leeds City Council,31/10/2016,City Development,Recreation  ,Supplies and Services,Operational Materials,205,14/09/2016,1610-00673,0.00,22.49,R,Amazon UK Marketplace,Yes
Http://opendatacommunities.org/id/metropolitan-district-council/leeds,Leeds City Council,31/10/2016,Childrens Services,Learning Skills & Universal  ,Supplies and Services,Office Consumables,210,14/09/2016,1610-00674,0.00,20.98,R,Amazon UK Marketplace,Yes
Http://opendatacommunities.org/id/metropolitan-district-council/leeds,Leeds City Council,31/10/2016,Citizens And Communities,Customer Access  ,Supplies and Services,Operational Materials,205,14/09/2016,1610-00675,0.00,13.48,R,Amazon UK Marketplace,Yes
Http://opendatacommunities.org/id/metropolitan-district-council/leeds,Leeds City Council,31/10/2016,City Development,Libraries  Arts & Heritage  ,Supplies and Services,Operational Furniture And Equipment,203,14/09/2016,1610-00676,0.00,43.97,R,Amazon UK Marketplace,Yes
Http://opendatacommunities.org/id/metropolitan-district-council/leeds,Leeds City Council,31/10/2016,City Development,Libraries  Arts & Heritage  ,Supplies and Services,Operational Furniture And Equipment,203,14/09/2016,1610-00677,0.00,42.73,R,Amazon UK Marketplace,Yes
Http://opendatacommunities.org/id/metropolitan-district-council/leeds,Leeds City Council,31/10/2016,City Development,Libraries  Arts & Heritage  ,Supplies and Services,Operational Furniture And Equipment,203,14/09/2016,1610-00678,0.00,41.70,R,Amazon UK Marketplace,Yes
Http://opendatacommunities.org/id/metropolitan-district-council/leeds,Leeds City Council,31/10/2016,City Development,Libraries  Arts & Heritage  ,Supplies and Services,Computer Software & Equipment,214,14/09/2016,1610-00679,0.00,695.83,R,Amazon UK Marketplace,Yes
Http://opendatacommunities.org/id/metropolitan-district-council/leeds,Leeds City Council,31/10/2016,Citizens And Communities,Customer Access  ,Supplies and Services,Operational Furniture And Equipment,203,14/09/2016,1610-00680,0.00,-149.99,R,Amazon UK Marketplace,Yes
Http://opendatacommunities.org/id/metropolitan-district-council/leeds,Leeds City Council,31/10/2016,Environment & Housing,Parks And Countryside  ,Supplies and Services,Office Consumables,210,14/09/2016,1610-00681,0.00,9.46,R,Amazon UK Marketplace,Yes
Http://opendatacommunities.org/id/metropolitan-district-council/leeds,Leeds City Council,31/10/2016,Strategic Landlord,Housing Management  ,Supplies and Services,Computer Software & Equipment,214,14/09/2016,1610-00682,0.00,29.99,R,Amazon UK Marketplace,Yes
Http://opendatacommunities.org/id/metropolitan-district-council/leeds,Leeds City Council,31/10/2016,Environment & Housing,Parks And Countryside  ,Supplies and Services,Office Consumables,210,15/09/2016,1610-00683,0.00,264.74,R,Amazon UK Marketplace,Yes
Http://opendatacommunities.org/id/metropolitan-district-council/leeds,Leeds City Council,31/10/2016,Strategic Landlord,Housing Management  ,Supplies and Services,Grant Related Expenditure,290,15/09/2016,1610-00684,0.00,37.99,R,Amazon UK Marketplace,Yes
Http://opendatacommunities.org/id/metropolitan-district-council/leeds,Leeds City Council,31/10/2016,City Development,Recreation  ,Supplies and Services,Operational Materials,205,15/09/2016,1610-00685,0.00,4.98,R,Amazon UK Marketplace,Yes
Http://opendatacommunities.org/id/metropolitan-district-council/leeds,Leeds City Council,31/10/2016,Childrens Services,Learning Skills & Universal  ,Supplies and Services,Teaching Materials,202,15/09/2016,1610-00686,0.00,21.98,R,Amazon UK Marketplace,Yes
Http://opendatacommunities.org/id/metropolitan-district-council/leeds,Leeds City Council,31/10/2016,Strategic Landlord,Housing Management  ,Supplies and Services,Grant Related Expenditure,290,15/09/2016,1610-00687,0.00,24.07,R,Amazon UK Marketplace,Yes
Http://opendatacommunities.org/id/metropolitan-district-council/leeds,Leeds City Council,31/10/2016,Childrens Services,Learning Skills & Universal  ,Supplies and Services,Books & Audio-Visual Materials,206,16/09/2016,1610-00688,0.00,6.37,R,Amazon UK Marketplace,Yes
Http://opendatacommunities.org/id/metropolitan-district-council/leeds,Leeds City Council,31/10/2016,Citizens And Communities,Customer Access  ,Supplies and Services,Office Furniture & Equipment,201,16/09/2016,1610-00689,0.00,99.99,R,Amazon UK Marketplace,Yes
Http://opendatacommunities.org/id/metropolitan-district-council/leeds,Leeds City Council,31/10/2016,City Development,Recreation  ,Supplies and Services,Operational Furniture And Equipment,203,16/09/2016,1610-00690,0.00,59.00,R,Amazon UK Marketplace,Yes
Http://opendatacommunities.org/id/metropolitan-district-council/leeds,Leeds City Council,31/10/2016,City Development,Libraries  Arts & Heritage  ,Supplies and Services,Operational Furniture And Equipment,203,16/09/2016,1610-00691,0.00,13.96,R,Amazon UK Marketplace,Yes
Http://opendatacommunities.org/id/metropolitan-district-council/leeds,Leeds City Council,31/10/2016,City Development,Recreation  ,Supplies and Services,Operational Materials,205,16/09/2016,1610-00692,0.00,1.80,R,Amazon UK Marketplace,Yes
Http://opendatacommunities.org/id/metropolitan-district-council/leeds,Leeds City Council,31/10/2016,City Development,Libraries  Arts & Heritage  ,Supplies and Services,Operational Furniture And Equipment,203,17/09/2016,1610-00693,0.00,15.45,R,Amazon UK Marketplace,Yes
Http://opendatacommunities.org/id/metropolitan-district-council/leeds,Leeds City Council,31/10/2016,Childrens Services,Learning Skills & Universal  ,Supplies and Services,Books & Audio-Visual Materials,206,17/09/2016,1610-00694,0.00,23.96,R,Amazon UK Marketplace,Yes
Http://opendatacommunities.org/id/metropolitan-district-council/leeds,Leeds City Council,31/10/2016,City Development,Libraries  Arts & Heritage  ,Supplies and Services,Operational Furniture And Equipment,203,17/09/2016,1610-00695,0.00,6.45,R,Amazon UK Marketplace,Yes
Http://opendatacommunities.org/id/metropolitan-district-council/leeds,Leeds City Council,31/10/2016,City Development,Libraries  Arts & Heritage  ,Supplies and Services,Operational Furniture And Equipment,203,17/09/2016,1610-00696,0.00,7.96,R,Amazon UK Marketplace,Yes
Http://opendatacommunities.org/id/metropolitan-district-council/leeds,Leeds City Council,31/10/2016,City Development,Libraries  Arts & Heritage  ,Supplies and Services,Operational Furniture And Equipment,203,17/09/2016,1610-00697,0.00,15.72,R,Amazon UK Marketplace,Yes
Http://opendatacommunities.org/id/metropolitan-district-council/leeds,Leeds City Council,31/10/2016,Childrens Services,Learning Skills & Universal  ,Supplies and Services,Teaching Furniture & Equipment,207,17/09/2016,1610-00698,0.00,20.37,R,Amazon UK Marketplace,Yes
Http://opendatacommunities.org/id/metropolitan-district-council/leeds,Leeds City Council,31/10/2016,City Development,Libraries  Arts & Heritage  ,Supplies and Services,Operational Furniture And Equipment,203,17/09/2016,1610-00699,0.00,2.06,R,Amazon UK Marketplace,Yes
Http://opendatacommunities.org/id/metropolitan-district-council/leeds,Leeds City Council,31/10/2016,City Development,Libraries  Arts & Heritage  ,Supplies and Services,Operational Furniture And Equipment,203,17/09/2016,1610-00700,0.00,9.56,R,Amazon UK Marketplace,Yes
Http://opendatacommunities.org/id/metropolitan-district-council/leeds,Leeds City Council,31/10/2016,City Development,Recreation  ,Supplies and Services,Books & Audio-Visual Materials,206,17/09/2016,1610-00701,0.00,3.99,R,Amazon UK Marketplace,Yes
Http://opendatacommunities.org/id/metropolitan-district-council/leeds,Leeds City Council,31/10/2016,Adult Social Care,Home Care Services  ,Supplies and Services,Office Furniture & Equipment,201,18/09/2016,1610-00702,0.00,29.99,R,Amazon UK Marketplace,Yes
Http://opendatacommunities.org/id/metropolitan-district-council/leeds,Leeds City Council,31/10/2016,City Development,Economic Development  ,Premises,Plant and Machinery,102,18/09/2016,1610-00703,0.00,7.49,R,Amazon UK Marketplace,Yes
Http://opendatacommunities.org/id/metropolitan-district-council/leeds,Leeds City Council,31/10/2016,Childrens Services,Learning Skills & Universal  ,Supplies and Services,Teaching Furniture & Equipment,207,19/09/2016,1610-00704,0.00,9.35,R,Amazon UK Marketplace,Yes
Http://opendatacommunities.org/id/metropolitan-district-council/leeds,Leeds City Council,31/10/2016,City Development,Economic Development  ,Supplies and Services,Office Consumables,210,19/09/2016,1610-00705,0.00,101.70,R,Amazon UK Marketplace,Yes
Http://opendatacommunities.org/id/metropolitan-district-council/leeds,Leeds City Council,31/10/2016,City Development,Libraries  Arts & Heritage  ,Supplies and Services,Operational Furniture And Equipment,203,19/09/2016,1610-00706,0.00,8.96,R,Amazon UK Marketplace,Yes
Http://opendatacommunities.org/id/metropolitan-district-council/leeds,Leeds City Council,31/10/2016,Adult Social Care,Services For Older People - 65 And Over  ,Premises,First Aid Requisites,128,19/09/2016,1610-00707,0.00,57.06,R,Amazon UK Marketplace,Yes
Http://opendatacommunities.org/id/metropolitan-district-council/leeds,Leeds City Council,31/10/2016,City Development,Economic Development  ,Supplies and Services,Office Consumables,210,19/09/2016,1610-00708,0.00,25.96,R,Amazon UK Marketplace,Yes
Http://opendatacommunities.org/id/metropolitan-district-council/leeds,Leeds City Council,31/10/2016,Childrens Services,Learning Skills & Universal  ,Supplies and Services,Teaching Furniture & Equipment,207,19/09/2016,1610-00709,0.00,14.60,R,Amazon UK Marketplace,Yes
Http://opendatacommunities.org/id/metropolitan-district-council/leeds,Leeds City Council,31/10/2016,Childrens Services,Learning Skills & Universal  ,Supplies and Services,Teaching Furniture & Equipment,207,19/09/2016,1610-00710,0.00,17.74,R,Amazon UK Marketplace,Yes
Http://opendatacommunities.org/id/metropolitan-district-council/leeds,Leeds City Council,31/10/2016,Adult Social Care,Services For Older People - 65 And Over  ,Employees,Best Value Training,70,19/09/2016,1610-00711,0.00,1.99,R,Amazon UK Marketplace,Yes
Http://opendatacommunities.org/id/metropolitan-district-council/leeds,Leeds City Council,31/10/2016,Childrens Services,Learning Skills & Universal  ,Supplies and Services,Office Consumables,210,20/09/2016,1610-00712,0.00,9.99,R,Amazon UK Marketplace,Yes
Http://opendatacommunities.org/id/metropolitan-district-council/leeds,Leeds City Council,31/10/2016,City Development,Libraries  Arts & Heritage  ,Supplies and Services,Operational Furniture And Equipment,203,20/09/2016,1610-00713,0.00,20.40,R,Amazon UK Marketplace,Yes
Http://opendatacommunities.org/id/metropolitan-district-council/leeds,Leeds City Council,31/10/2016,Childrens Services,Safeguarding Targeted & Specialist  ,Supplies and Services,Teaching Materials,202,20/09/2016,1610-00714,0.00,44.96,R,Amazon UK Marketplace,Yes
Http://opendatacommunities.org/id/metropolitan-district-council/leeds,Leeds City Council,31/10/2016,Adult Social Care,Services For Older People - 65 And Over  ,Supplies and Services,Office Consumables,210,20/09/2016,1610-00715,0.00,2.05,R,Amazon UK Marketplace,Yes
Http://opendatacommunities.org/id/metropolitan-district-council/leeds,Leeds City Council,31/10/2016,Adult Social Care,Services For Adults Under 65 Learn/Dis  ,Supplies and Services,Books & Audio-Visual Materials,206,20/09/2016,1610-00716,0.00,8.98,R,Amazon UK Marketplace,Yes
Http://opendatacommunities.org/id/metropolitan-district-council/leeds,Leeds City Council,31/10/2016,Adult Social Care,Services For Older People - 65 And Over  ,Supplies and Services,Teaching Furniture & Equipment,207,20/09/2016,1610-00717,0.00,2.99,R,Amazon UK Marketplace,Yes
Http://opendatacommunities.org/id/metropolitan-district-council/leeds,Leeds City Council,31/10/2016,Central & Corporate,Technology  ,Supplies and Services,Office Furniture & Equipment,201,20/09/2016,1610-00718,0.00,25.82,R,Amazon UK Marketplace,Yes
Http://opendatacommunities.org/id/metropolitan-district-council/leeds,Leeds City Council,31/10/2016,City Development,Libraries  Arts & Heritage  ,Supplies and Services,Operational Materials,205,21/09/2016,1610-00719,0.00,9.30,R,Amazon UK Marketplace,Yes
Http://opendatacommunities.org/id/metropolitan-district-council/leeds,Leeds City Council,31/10/2016,Citizens And Communities,Customer Access  ,Supplies and Services,Operational Materials,205,21/09/2016,1610-00720,0.00,10.47,R,Amazon UK Marketplace,Yes
Http://opendatacommunities.org/id/metropolitan-district-council/leeds,Leeds City Council,31/10/2016,Citizens And Communities,Customer Access  ,Supplies and Services,Operational Materials,205,21/09/2016,1610-00721,0.00,2.78,R,Amazon UK Marketplace,Yes
Http://opendatacommunities.org/id/metropolitan-district-council/leeds,Leeds City Council,31/10/2016,City Development,Economic Development  ,Supplies and Services,Books & Audio-Visual Materials,206,21/09/2016,1610-00722,0.00,48.69,R,Amazon UK Marketplace,Yes
Http://opendatacommunities.org/id/metropolitan-district-council/leeds,Leeds City Council,31/10/2016,Citizens And Communities,Customer Access  ,Supplies and Services,Operational Materials,205,21/09/2016,1610-00723,0.00,40.52,R,Amazon UK Marketplace,Yes
Http://opendatacommunities.org/id/metropolitan-district-council/leeds,Leeds City Council,31/10/2016,City Development,Libraries  Arts & Heritage  ,Supplies and Services,Operational Furniture And Equipment,203,21/09/2016,1610-00724,0.00,29.90,R,Amazon UK Marketplace,Yes
Http://opendatacommunities.org/id/metropolitan-district-council/leeds,Leeds City Council,31/10/2016,Environment & Housing,Environmental Action (West North West)  ,Supplies and Services,Operational Furniture And Equipment,203,21/09/2016,1610-00725,0.00,9.94,R,Amazon UK Marketplace,Yes
Http://opendatacommunities.org/id/metropolitan-district-council/leeds,Leeds City Council,31/10/2016,City Development,Libraries  Arts & Heritage  ,Supplies and Services,Operational Furniture And Equipment,203,21/09/2016,1610-00726,0.00,7.98,R,Amazon UK Marketplace,Yes
Http://opendatacommunities.org/id/metropolitan-district-council/leeds,Leeds City Council,31/10/2016,Strategic Landlord,Housing Management  ,Supplies and Services,Grant Related Expenditure,290,21/09/2016,1610-00727,0.00,99.99,R,Amazon UK Marketplace,Yes
Http://opendatacommunities.org/id/metropolitan-district-council/leeds,Leeds City Council,31/10/2016,Civic Enterprise Leeds,Commercial Services  ,Supplies and Services,Office Consumables,210,22/09/2016,1610-00728,0.00,11.00,R,Amazon UK Marketplace,Yes
Http://opendatacommunities.org/id/metropolitan-district-council/leeds,Leeds City Council,31/10/2016,Civic Enterprise Leeds,Commercial Services  ,Supplies and Services,Operational Furniture And Equipment,203,22/09/2016,1610-00729,0.00,3.14,R,Amazon UK Marketplace,Yes
Http://opendatacommunities.org/id/metropolitan-district-council/leeds,Leeds City Council,31/10/2016,Childrens Services,Learning Skills & Universal  ,Supplies and Services,Books & Audio-Visual Materials,206,22/09/2016,1610-00730,0.00,24.48,R,Amazon UK Marketplace,Yes
Http://opendatacommunities.org/id/metropolitan-district-council/leeds,Leeds City Council,31/10/2016,City Development,Libraries  Arts & Heritage  ,Supplies and Services,Operational Furniture And Equipment,203,22/09/2016,1610-00731,0.00,63.85,R,Amazon UK Marketplace,Yes
Http://opendatacommunities.org/id/metropolitan-district-council/leeds,Leeds City Council,31/10/2016,Citizens And Communities,Customer Access  ,Supplies and Services,Operational Materials,205,22/09/2016,1610-00732,0.00,6.00,R,Amazon UK Marketplace,Yes
Http://opendatacommunities.org/id/metropolitan-district-council/leeds,Leeds City Council,31/10/2016,Citizens And Communities,Customer Access  ,Premises,First Aid Requisites,128,22/09/2016,1610-00733,0.00,6.29,R,Amazon UK Marketplace,Yes
Http://opendatacommunities.org/id/metropolitan-district-council/leeds,Leeds City Council,31/10/2016,City Development,Libraries  Arts & Heritage  ,Supplies and Services,Operational Furniture And Equipment,203,22/09/2016,1610-00734,0.00,19.33,R,Amazon UK Marketplace,Yes
Http://opendatacommunities.org/id/metropolitan-district-council/leeds,Leeds City Council,31/10/2016,Adult Social Care,Services For Older People - 65 And Over  ,Premises,Cleaning Maintenance & Toiletries,127,23/09/2016,1610-00735,0.00,21.36,R,Amazon UK Marketplace,Yes
Http://opendatacommunities.org/id/metropolitan-district-council/leeds,Leeds City Council,31/10/2016,Citizens And Communities,Customer Access  ,Supplies and Services,Operational Materials,205,23/09/2016,1610-00736,0.00,15.24,R,Amazon UK Marketplace,Yes
Http://opendatacommunities.org/id/metropolitan-district-council/leeds,Leeds City Council,31/10/2016,Citizens And Communities,Customer Access  ,Supplies and Services,Operational Materials,205,23/09/2016,1610-00737,0.00,8.01,R,Amazon UK Marketplace,Yes
Http://opendatacommunities.org/id/metropolitan-district-council/leeds,Leeds City Council,31/10/2016,Childrens Services,Learning Skills & Universal  ,Supplies and Services,Teaching Furniture & Equipment,207,23/09/2016,1610-00738,0.00,21.60,R,Amazon UK Marketplace,Yes
Http://opendatacommunities.org/id/metropolitan-district-council/leeds,Leeds City Council,31/10/2016,Childrens Services,Learning Skills & Universal  ,Supplies and Services,Operational Materials,205,23/09/2016,1610-00739,0.00,2.49,R,Amazon UK Marketplace,Yes
Http://opendatacommunities.org/id/metropolitan-district-council/leeds,Leeds City Council,31/10/2016,Environment & Housing,Community Safety  ,Supplies and Services,Telephones,213,23/09/2016,1610-00740,0.00,15.93,R,Amazon UK Marketplace,Yes
Http://opendatacommunities.org/id/metropolitan-district-council/leeds,Leeds City Council,31/10/2016,City Development,Libraries  Arts & Heritage  ,Supplies and Services,Operational Materials,205,23/09/2016,1610-00741,0.00,-7.99,R,Amazon UK Marketplace,Yes
Http://opendatacommunities.org/id/metropolitan-district-council/leeds,Leeds City Council,31/10/2016,Childrens Services,Safeguarding Targeted & Specialist  ,Supplies and Services,General Amenity For Clients/Residents,285,24/09/2016,1610-00742,0.00,16.38,R,Amazon UK Marketplace,Yes
Http://opendatacommunities.org/id/metropolitan-district-council/leeds,Leeds City Council,31/10/2016,Childrens Services,Learning Skills & Universal  ,Supplies and Services,Books & Audio-Visual Materials,206,26/09/2016,1610-00743,0.00,29.89,R,Amazon UK Marketplace,Yes
Http://opendatacommunities.org/id/metropolitan-district-council/leeds,Leeds City Council,31/10/2016,Childrens Services,Learning Skills & Universal  ,Supplies and Services,Operational Furniture And Equipment,203,26/09/2016,1610-00744,0.00,14.49,R,Amazon UK Marketplace,Yes
Http://opendatacommunities.org/id/metropolitan-district-council/leeds,Leeds City Council,31/10/2016,Childrens Services,Learning Skills & Universal  ,Supplies and Services,Office Consumables,210,26/09/2016,1610-00745,0.00,-20.98,R,Amazon UK Marketplace,Yes
Http://opendatacommunities.org/id/metropolitan-district-council/leeds,Leeds City Council,31/10/2016,Citizens And Communities,Customer Access  ,Supplies and Services,Computer Software & Equipment,214,26/09/2016,1610-00746,0.00,12.71,R,Amazon UK Marketplace,Yes
Http://opendatacommunities.org/id/metropolitan-district-council/leeds,Leeds City Council,31/10/2016,Citizens And Communities,Customer Access  ,Supplies and Services,Office Consumables,210,26/09/2016,1610-00747,0.00,7.80,R,Amazon UK Marketplace,Yes
Http://opendatacommunities.org/id/metropolitan-district-council/leeds,Leeds City Council,31/10/2016,Childrens Services,Learning Skills & Universal  ,Supplies and Services,Teaching Materials,202,27/09/2016,1610-00748,0.00,23.84,R,Amazon UK Marketplace,Yes
Http://opendatacommunities.org/id/metropolitan-district-council/leeds,Leeds City Council,31/10/2016,Civic Enterprise Leeds,Commercial Services  ,Transport,Public Transport Expenses,310,27/09/2016,1610-00749,0.00,244.35,R,Amazon UK Marketplace,Yes
Http://opendatacommunities.org/id/metropolitan-district-council/leeds,Leeds City Council,31/10/2016,City Development,Libraries  Arts & Heritage  ,Supplies and Services,Operational Materials,205,27/09/2016,1610-00750,0.00,41.96,R,Amazon UK Marketplace,Yes
Http://opendatacommunities.org/id/metropolitan-district-council/leeds,Leeds City Council,31/10/2016,Civic Enterprise Leeds,Commercial Services  ,Transport,Public Transport Expenses,310,27/09/2016,1610-00751,0.00,239.60,R,Amazon UK Marketplace,Yes
Http://opendatacommunities.org/id/metropolitan-district-council/leeds,Leeds City Council,31/10/2016,Childrens Services,Learning Skills & Universal  ,Supplies and Services,Computer Software & Equipment,214,27/09/2016,1610-00752,0.00,21.85,R,Amazon UK Marketplace,Yes
Http://opendatacommunities.org/id/metropolitan-district-council/leeds,Leeds City Council,31/10/2016,Childrens Services,Learning Skills & Universal  ,Supplies and Services,Operational Materials,205,27/09/2016,1610-00753,0.00,3.02,R,Amazon UK Marketplace,Yes
Http://opendatacommunities.org/id/metropolitan-district-council/leeds,Leeds City Council,31/10/2016,City Development,Planning & Sustainable Development  ,Supplies and Services,Computer Software & Equipment,214,27/09/2016,1610-00754,0.00,10.82,R,Amazon UK Marketplace,Yes
Http://opendatacommunities.org/id/metropolitan-district-council/leeds,Leeds City Council,31/10/2016,Childrens Services,Safeguarding Targeted & Specialist  ,Supplies and Services,Operational Furniture And Equipment,203,28/09/2016,1610-00755,0.00,1.10,R,Amazon UK Marketplace,Yes
Http://opendatacommunities.org/id/metropolitan-district-council/leeds,Leeds City Council,31/10/2016,Childrens Services,Safeguarding Targeted & Specialist  ,Transfer Payments,Leaving Care Grants,635,28/09/2016,1610-00756,0.00,69.99,R,Amazon UK Marketplace,Yes
Http://opendatacommunities.org/id/metropolitan-district-council/leeds,Leeds City Council,31/10/2016,Civic Enterprise Leeds,Commercial Services  ,Transport,Public Transport Expenses,310,28/09/2016,1610-00757,0.00,58.80,R,Amazon UK Marketplace,Yes
Http://opendatacommunities.org/id/metropolitan-district-council/leeds,Leeds City Council,31/10/2016,Childrens Services,Learning Skills & Universal  ,Supplies and Services,Teaching Materials,202,28/09/2016,1610-00758,0.00,8.29,R,Amazon UK Marketplace,Yes
Http://opendatacommunities.org/id/metropolitan-district-council/leeds,Leeds City Council,31/10/2016,Childrens Services,Safeguarding Targeted & Specialist  ,Supplies and Services,Operational Furniture And Equipment,203,29/09/2016,1610-00759,0.00,6.99,R,Amazon UK Marketplace,Yes
Http://opendatacommunities.org/id/metropolitan-district-council/leeds,Leeds City Council,31/10/2016,Childrens Services,Safeguarding Targeted & Specialist  ,Transfer Payments,Leaving Care Grants,635,29/09/2016,1610-00760,0.00,173.32,R,Amazon UK Marketplace,Yes
Http://opendatacommunities.org/id/metropolitan-district-council/leeds,Leeds City Council,31/10/2016,City Development,Highways  ,Supplies and Services,Operational Materials,205,29/09/2016,1610-00761,0.00,53.97,R,Amazon UK Marketplace,Yes
Http://opendatacommunities.org/id/metropolitan-district-council/leeds,Leeds City Council,31/10/2016,Childrens Services,Safeguarding Targeted & Specialist  ,Supplies and Services,Books & Audio-Visual Materials,206,29/09/2016,1610-00762,0.00,7.98,R,Amazon UK Marketplace,Yes
Http://opendatacommunities.org/id/metropolitan-district-council/leeds,Leeds City Council,31/10/2016,Citizens And Communities,Benefits  Wlefare And Poverty  ,Supplies and Services,Office Furniture & Equipment,201,29/09/2016,1610-00763,0.00,10.82,R,Amazon UK Marketplace,Yes
